Workbook

Sheet Introduction
A3: =IF(D21="English","NECB 2011 Part 5 and Part 6 - HVAC Trade-Off Path and DHW Trade-Off Path Compliance Calculation Tool","Outil de conformité par la méthode de remplacement pour la partie 5 et la partie 6 du CNÉB 2011") -> NECB 2011 Part 5 and Part 6 - HVAC Trade-Off Path and DHW Trade-Off Path Compliance Calculation Tool
C5: =Tables!EU4 -> This tool allows the demonstration of compliance with NECB 2011 when using the Part 5 and/or Part 6 Trade-off path. Users must define all of the systems in the building along with their component characteristics for the output to be valid. The HVAC and SWH indices indicate whether a system passes or fails. Only cells highlighted in BLUE need to be filled. This tool does not calculate the actual energy use index of a system but only its compliance to the NECB 2011 trade-off path.
C12: =IF(D21="English","Building Data","Données sur le bâtiment") -> Building Data
C13: =IF(D21="English","Building Name","Nom du bâtiment") -> Building Name | D13: Test 1
C14: =IF(D21="English","Climate Zone","Zone climatique") -> Climate Zone | D14: Zone 5
C15: =IF(D21="English","Address","Adresse") -> Address | D15: 5555 street AAAA
C16: =IF(D21="English",CONCATENATE("Building Conditioned Area",IF(Select_Units="IP"," - ft2"," - m2")),CONCATENATE("Superficie du bâtiment",IF(Select_Units="IP"," - pi2"," - m2"))) -> Building Conditioned Area - m2 | D16: 1000
C17: =IF(D21="English","Applicant Name","Nom du soumissionaire") -> Applicant Name | D17: ABC
C18: =IF(D21="English","Applicant Address","Adresse du soumissionaire") -> Applicant Address | D18: ####
C19: =IF(D21="English","Applicant Phone #","No. de téléphone du soumissionaire") -> Applicant Phone # | D19: ####
C21: =IF(D21="English","Language","Langage") -> Language | D21: English
C22: =IF(D21="English","Units","Unités") -> Units | D22: SI
C36: =Tables!GI4 -> This tool is the property of Natural Resources Canada.All rights reserved. No part of this Tool may be reproduced, modified, distributed, published, sold, licensed, broadcasted, retransmitted, circulated in any form or used this tool in any way other than for compliance to the 2011 NECB.

Sheet HVAC-CVCA
A1: =Tables!FP4 -> Compliance of the heating, ventilating and air-conditioning systems (HVAC)
A2: =IF(Select_Lang="English","Building Compliance:","Conformité du bâtiment :") -> Building Compliance: | B2: =IF(MIN(B6:XFD6)>=0,Tables!EC4,Tables!EC5) -> HVAC system deemed to comply with Section 5.3
A6: HVACTOI | C6: =ROUNDDOWN(C51,5) -> 0
A7: =IF(Select_Lang="English","Compliance:","Conformité :") -> Compliance: | C7: =IF(Select_Lang="English",IF(C6>=0,"System is NECB Compliant","System is not NECB Compliant"),IF(C6>=0,"Le système est conforme au CNÉB","Le système n'est pas conforme au CNÉB")) -> System is NECB Compliant
C8: =CONCATENATE(Tables!$B$73," #",VLOOKUP(C9,Tables!$B$4:$C$30,2, FALSE)) -> HVAC Type ID - #1
A9: =Tables!DZ4 -> System Type: | C9: Built-up variable-volume
A10: =Tables!DZ5 -> Cooling System Type: | C10: Room Air Conditioners and Room Air Conditioner Heat Pumps
A11: =Tables!DZ6 -> Cooling Sub-System Type: | C11: Room air conditioners with reserve cycle with louvered sides < 10.55 (36000)
A12: =Tables!DZ7 -> Cooling capacity: | B12: =Tables!DW37 -> W | C12: 3515.968356
A13: =Tables!DZ8 -> Heating System Type: | C13: Electric boilers
A14: =IF(Select_Lang="English","Component","Composante") -> Component | B14: =IF(Select_Lang="English","Units","Unités") -> Units | C14: =IF(Select_Lang="English","Components Efficiencies","Rendement de la composante") -> Components Efficiencies
A15: =Tables!AI4 -> Supply fan mechanical efficiency | B15: =Tables!DW5 -> % | C15: 0.6
A16: =Tables!AI5 -> Supply motor efficiency | B16: =Tables!DW6 -> % | C16: 0.9166666667
A17: =Tables!AI6 -> Return fan mechanical efficiency | B17: =Tables!DW7 -> % | C17: 0.38
A18: =Tables!AI7 -> Return fan motor efficiency | B18: =Tables!DW8 -> % | C18: 0.8
A19: =Tables!AI8 -> Supply temperature control | B19: =Tables!DW9 -> Selection | C19: Constant <= 15°C
A20: =Tables!AI9 -> Airflow control efficiency | B20: =Tables!DW10 -> Selection | C20: Forward curve with vanes
A21: =Tables!AI10 -> Supply fan total static pressure | B21: =Tables!DW11 -> Pa | C21: 996.36
A22: =Tables!AI11 -> Supply duct insulation | B22: =Tables!DW12 -> RSI Value | C22: 0.58
A23: =Tables!AI12 -> Return fan total static pressure | B23: =Tables!DW13 -> Pa | C23: 249.09
A24: =Tables!AI13 -> Heating coil design temperature drop | B24: =Tables!DW14 -> °C | C24: 11.11111111
A25: =Tables!AI14 -> Baseboard heater design temperature drop | B25: =Tables!DW15 -> °C | C25: 11.11111111
A26: =Tables!AI15 -> Boiler/furnace/heat pump heating efficiency | B26: =Tables!DW16 -> Fraction | C26: 1
A27: =Tables!AI16 -> Chillers/direct expansion system/heat pump cooling efficiency | B27: =Tables!DW17 -> COP | C27: 2.490477586
A28: =Tables!AI17 -> Rejection fan input power ratio | B28: =Tables!DW18 -> W/W | C28: 0.051195
A29: =Tables!AI18 -> Cooling by direct use of outdoor air (air economizer) | B29: =Tables!DW19 -> Selection | C29: Dual DBT
A30: =Tables!AI19 -> Outdoor airflow control | B30: =Tables!DW20 -> Selection | C30: Fixed
A31: =Tables!AI20 -> Exhaust air heat-recovery efficiency | B31: =Tables!DW21 -> % | C31: 0
A32: =Tables!AI21 -> Cooling by indirect use of outdoor air (water economizer) | B32: =Tables!DW22 -> % | C32: 0
A33: =Tables!AI22 -> Piping insulation - hot water | B33: =Tables!DW23 -> RSI Value | C33: 0.8805917577
A34: =Tables!AI23 -> Piping insulation - chilled water | B34: =Tables!DW24 -> RSI Value | C34: 0.8805917577
A35: =Tables!AI24 -> Piping pressure losses - hot water | B35: =Tables!DW25 -> kPa | C35: 179.34
A36: =Tables!AI25 -> Piping pressure losses - chilled water | B36: =Tables!DW26 -> kPa | C36: 119.56
A37: =Tables!AI26 -> Pump mechanical efficiency - hot water | B37: =Tables!DW27 -> % | C37: 0.6
A38: =Tables!AI27 -> Pump mechanical efficiency - chilled water | B38: =Tables!DW28 -> % | C38: 0.6
A39: =Tables!AI28 -> Pump motor efficiency - hot water | B39: =Tables!DW29 -> % | C39: 0.9
A40: =Tables!AI29 -> Pump motor efficiency - chilled water | B40: =Tables!DW30 -> % | C40: 0.9
A41: =Tables!AI30 -> Hot water pump control | B41: =Tables!DW31 -> Selection | C41: Snap outdoor
A42: =Tables!AI31 -> Chilled water pump control | B42: =Tables!DW32 -> Selection | C42: Snap outdoor
A43: =Tables!AI32 -> Hot water loop temperature control | B43: =Tables!DW33 -> Selection | C43: OA Reset, min >140 °F
A44: =Tables!AI33 -> Chilled water loop temperature control | B44: =Tables!DW34 -> Selection | C44: OA Reset, min <54 °F
A45: =Tables!AI34 -> Hot water flow control | B45: =Tables!DW35 -> Selection | C45: Constant
A46: =Tables!AI35 -> Chilled water flow control | B46: =Tables!DW36 -> Selection | C46: Two speed, .5, fixed
C49: =MATCH(C10,Cooling_Equip,0) -> 8
C50: Net impact
C51: =SUM(C583:C614) -> -1.734723476e-18
C52: Selected HVAC
C53: =MATCH(C9,System_Type,0) -> 1
C54: Reference Efficiencies
C55: =INDEX(BaV_Table,C88,C$53) -> 0.6
C56: =INDEX(BaV_Table,C89,C$53) -> 0.9166666667
C57: =INDEX(BaV_Table,C90,C$53) -> 0.38
C58: =INDEX(BaV_Table,C91,C$53) -> 0.8
C59: =INDEX(BaV_Table,C92,C$53) -> 0.5
C60: =INDEX(BaV_Table,C93,C$53) -> 0.5569821282
C61: =INDEX(BaV_Table,C94,C$53) -> 4
C62: =INDEX(BaV_Table,C95,C$53) -> 3.29324
C63: =INDEX(BaV_Table,C96,C$53) -> 1
C64: =INDEX(BaV_Table,C97,C$53) -> 20
C65: =INDEX(BaV_Table,C98,C$53) -> 20
C66: =VLOOKUP(C13,Tables!$BP$4:$BQ$20,2,FALSE) -> 1
C67: =IF(VLOOKUP(C11,Tables!$BT$17:$BU$136,2,FALSE)<0,INDEX(C616:C618,ABS(VLOOKUP(C11,Tables!$BT$17:$BU$136,2,FALSE))),VLOOKUP(C11,Tables!$BT$17:$BU$136,2,FALSE)) -> 2.490477586
C68: =INDEX(BaV_Table,C101,C$53) -> 0.015
C69: =INDEX(BaV_Table,C102,C$53) -> 0.8
C70: =INDEX(BaV_Table,C103,C$53) -> 0
C71: =INDEX(BaV_Table,C104,C$53) -> 0
C72: =INDEX(BaV_Table,C105,C$53) -> 0
C73: =INDEX(BaV_Table,C106,C$53) -> 5
C74: =INDEX(BaV_Table,C107,C$53) -> 5
C75: =INDEX(BaV_Table,C108,C$53) -> 60
C76: =INDEX(BaV_Table,C109,C$53) -> 40
C77: =INDEX(BaV_Table,C110,C$53) -> 0.6
C78: =INDEX(BaV_Table,C111,C$53) -> 0.6
C79: =INDEX(BaV_Table,C112,C$53) -> 0.9
C80: =INDEX(BaV_Table,C113,C$53) -> 0.9
C81: =INDEX(BaV_Table,C114,C$53) -> 0.8
C82: =INDEX(BaV_Table,C115,C$53) -> 0.8
C83: =INDEX(BaV_Table,C116,C$53) -> 0.8
C84: =INDEX(BaV_Table,C117,C$53) -> 0.8
C85: =INDEX(BaV_Table,C118,C$53) -> 0.8
C86: =INDEX(BaV_Table,C119,C$53) -> 0.8
C87: Component
C88: 1
C89: 2
C90: 3
C91: 4
C92: 5
C93: 6
C94: 7
C95: 8
C96: 9
C97: 10
C98: 11
C99: 12
C100: 13
C101: 14
C102: 15
C103: 16
C104: 17
C105: 18
C106: 19
C107: 20
C108: 21
C109: 22
C110: 23
C111: 24
C112: 25
C113: 26
C114: 27
C115: 28
C116: 29
C117: 30
C118: 31
C119: 32
C120: HDD/CDD/TDD for a's
C121: =INDEX(Coef_Table,C88+(C$53-1)*32,7) -> HDD
C122: =INDEX(Coef_Table,C89+(C$53-1)*32,7) -> HDD
C123: =INDEX(Coef_Table,C90+(C$53-1)*32,7) -> HDD
C124: =INDEX(Coef_Table,C91+(C$53-1)*32,7) -> HDD
C125: =INDEX(Coef_Table,C92+(C$53-1)*32,7) -> HDD
C126: =INDEX(Coef_Table,C93+(C$53-1)*32,7) -> TDD
C127: =INDEX(Coef_Table,C94+(C$53-1)*32,7) -> HDD
C128: =INDEX(Coef_Table,C95+(C$53-1)*32,7) -> HDD
C129: =INDEX(Coef_Table,C96+(C$53-1)*32,7) -> HDD
C130: =INDEX(Coef_Table,C97+(C$53-1)*32,7) -> HDD
C131: =INDEX(Coef_Table,C98+(C$53-1)*32,7) -> HDD
C132: =INDEX(Coef_Table,C99+(C$53-1)*32,7) -> HDD
C133: =INDEX(Coef_Table,C100+(C$53-1)*32,7) -> HDD
C134: =INDEX(Coef_Table,C101+(C$53-1)*32,7) -> TDD
C135: =INDEX(Coef_Table,C102+(C$53-1)*32,7) -> CDD
C136: =INDEX(Coef_Table,C103+(C$53-1)*32,7) -> TDD
C137: =INDEX(Coef_Table,C104+(C$53-1)*32,7) -> TDD
C138: =INDEX(Coef_Table,C105+(C$53-1)*32,7) -> CDD
C139: =INDEX(Coef_Table,C106+(C$53-1)*32,7) -> TDD
C140: =INDEX(Coef_Table,C107+(C$53-1)*32,7) -> CDD
C141: =INDEX(Coef_Table,C108+(C$53-1)*32,7) -> HDD
C142: =INDEX(Coef_Table,C109+(C$53-1)*32,7) -> CDD
C143: =INDEX(Coef_Table,C110+(C$53-1)*32,7) -> TDD
C144: =INDEX(Coef_Table,C111+(C$53-1)*32,7) -> CDD
C145: =INDEX(Coef_Table,C112+(C$53-1)*32,7) -> HDD
C146: =INDEX(Coef_Table,C113+(C$53-1)*32,7) -> CDD
C147: =INDEX(Coef_Table,C114+(C$53-1)*32,7) -> HDD
C148: =INDEX(Coef_Table,C115+(C$53-1)*32,7) -> CDD
C149: =INDEX(Coef_Table,C116+(C$53-1)*32,7) -> HDD
C150: =INDEX(Coef_Table,C117+(C$53-1)*32,7) -> CDD
C151: =INDEX(Coef_Table,C118+(C$53-1)*32,7) -> TDD
C152: =INDEX(Coef_Table,C119+(C$53-1)*32,7) -> CDD
C153: Applicability to system
C154: =INDEX(ToV_Applicability,C88,C$53) -> 1
C155: =INDEX(ToV_Applicability,C89,C$53) -> 1
C156: =INDEX(ToV_Applicability,C90,C$53) -> 1
C157: =INDEX(ToV_Applicability,C91,C$53) -> 1
C158: =INDEX(ToV_Applicability,C92,C$53) -> 1
C159: =INDEX(ToV_Applicability,C93,C$53) -> 1
C160: =INDEX(ToV_Applicability,C94,C$53) -> 1
C161: =INDEX(ToV_Applicability,C95,C$53) -> 1
C162: =INDEX(ToV_Applicability,C96,C$53) -> 1
C163: =INDEX(ToV_Applicability,C97,C$53) -> 1
C164: =INDEX(ToV_Applicability,C98,C$53) -> 1
C165: =INDEX(ToV_Applicability,C99,C$53) -> 1
C166: =INDEX(ToV_Applicability,C100,C$53) -> 1
C167: =INDEX(ToV_Applicability,C101,C$53) -> 1
C168: =INDEX(ToV_Applicability,C102,C$53) -> 1
C169: =INDEX(ToV_Applicability,C103,C$53) -> 1
C170: =INDEX(ToV_Applicability,C104,C$53) -> 1
C171: =INDEX(ToV_Applicability,C105,C$53) -> 1
C172: =INDEX(ToV_Applicability,C106,C$53) -> 1
C173: =INDEX(ToV_Applicability,C107,C$53) -> 1
C174: =INDEX(ToV_Applicability,C108,C$53) -> 1
C175: =INDEX(ToV_Applicability,C109,C$53) -> 1
C176: =INDEX(ToV_Applicability,C110,C$53) -> 1
C177: =INDEX(ToV_Applicability,C111,C$53) -> 1
C178: =INDEX(ToV_Applicability,C112,C$53) -> 1
C179: =INDEX(ToV_Applicability,C113,C$53) -> 1
C180: =INDEX(ToV_Applicability,C114,C$53) -> 1
C181: =INDEX(ToV_Applicability,C115,C$53) -> 1
C182: =INDEX(ToV_Applicability,C116,C$53) -> 1
C183: =INDEX(ToV_Applicability,C117,C$53) -> 1
C184: =INDEX(ToV_Applicability,C118,C$53) -> 1
C185: =INDEX(ToV_Applicability,C119,C$53) -> 1
C186: b0
C187: =INDEX(Coef_Table,C88+(C$53-1)*32,1) -> 0.9901110994
C188: =INDEX(Coef_Table,C89+(C$53-1)*32,1) -> 0.6993755073
C189: =INDEX(Coef_Table,C90+(C$53-1)*32,1) -> 0.6087343852
C190: =INDEX(Coef_Table,C91+(C$53-1)*32,1) -> 0.2915969636
C191: =INDEX(Coef_Table,C92+(C$53-1)*32,1) -> -0.2174599045
C192: =INDEX(Coef_Table,C93+(C$53-1)*32,1) -> 0.1034290307
C193: =INDEX(Coef_Table,C94+(C$53-1)*32,1) -> -0.06403509844
C194: =INDEX(Coef_Table,C95+(C$53-1)*32,1) -> 0.0162999025
C195: =INDEX(Coef_Table,C96+(C$53-1)*32,1) -> -0.07725552946
C196: =INDEX(Coef_Table,C97+(C$53-1)*32,1) -> 0
C197: =INDEX(Coef_Table,C98+(C$53-1)*32,1) -> 0
C198: =INDEX(Coef_Table,C99+(C$53-1)*32,1) -> 0.7747799077
C199: =INDEX(Coef_Table,C100+(C$53-1)*32,1) -> 0.07436393646
C200: =INDEX(Coef_Table,C101+(C$53-1)*32,1) -> 0.1120893241
C201: =INDEX(Coef_Table,C102+(C$53-1)*32,1) -> 99.51521016
C202: =INDEX(Coef_Table,C103+(C$53-1)*32,1) -> -1.162000963
C203: =INDEX(Coef_Table,C104+(C$53-1)*32,1) -> 0.02682719667
C204: =INDEX(Coef_Table,C105+(C$53-1)*32,1) -> -0.01193172044
C205: =INDEX(Coef_Table,C106+(C$53-1)*32,1) -> 0.08839053746
... 457 more rows

Sheet SWH-CES
A1: =Tables!FN4 -> Compliance of the service water heating (SWH) systems
A2: =IF(Select_Lang="English","Building Compliance:","Conformité du bâtiment :") -> Building Compliance: | B2: =IF(A4=0,IF(MIN(B6:XFD6)>=0,Tables!EZ4,Tables!EZ5), Tables!B83) -> The SWH system is deemed to comply with Section 6.3
C3: =IF(C22+C23>1, 1,0) -> 0
A4: =IF(SUM(3:3)>0,1,0) -> 0 | C4: =Tables!$B$71 -> The sum of the faucet flow ratio and the shower flow ratio must not exceed 100%.
A6: SWHTOI | C6: =ROUNDDOWN(C26,5) -> 0
A7: =IF(Select_Lang="English","Compliance:","Conformité :") -> Compliance: | C7: =IF(Select_Lang="English",IF(C6>=0,"System is NECB Compliant","System is not NECB Compliant"),IF(C6>=0,"Le système est conforme au CNÉB","Le système n'est pas conforme au CNÉB")) -> System is NECB Compliant
C8: =CONCATENATE(Tables!$B$77," #",VLOOKUP(C9,Tables!$B$65:$C$67,2, FALSE)) -> SWH Type ID - #1
A9: =Tables!FG4 -> System Type: | C9: Tank
A10: =Tables!FG5 -> Equipment Type: | C10: Electric
A11: =Tables!FG6 -> Tank Volume: | B11: =Tables!FC15 -> L | C11: 60
A12: =IF(Select_Lang="English","Component","Composante") -> Component | B12: =IF(Select_Lang="English","Units","Unités") -> Units | C12: =IF(Select_Lang="English","Component Efficiency","Rendement de la composante") -> Component Efficiency
A13: =Tables!EL4 -> Service water heating equipment efficiency | B13: =Tables!FC4 -> % | C13: 0.98
A14: =Tables!EL5 -> Tank insulation value | B14: =Tables!FC5 -> RSI Value | C14: 2.183867559
A15: =Tables!EL6 -> Piping insulation value | B15: =Tables!FC6 -> RSI Value | C15: 0.67735118
A16: =Tables!EL7 -> Pump motor efficiency | B16: =Tables!FC7 -> % | C16: 0.8
A17: =Tables!EL8 -> Pump efficiency | B17: =Tables!FC8 -> % | C17: 0.6
A18: =Tables!EL9 -> Heat recovery ratio | B18: =Tables!FC9 -> W/W | C18: 0
A19: =Tables!EL10 -> Average flow of all faucets | B19: =Tables!FC10 -> L/min | C19: 8.327024981
A20: =Tables!EL11 -> Average flow of all showers | B20: =Tables!FC11 -> L/min | C20: 9.462528388
A21: =Tables!EL14 -> Average flow of other uses | B21: =Tables!FC12 -> L/min | C21: 7.6
A22: =Tables!EL12 -> Faucet flow ratio | B22: =Tables!FC13 -> % | C22: 0.5
A23: =Tables!EL13 -> Shower flow ratio | B23: =Tables!FC14 -> % | C23: 0.5
B26: Selected | C26: =ROUND(INDEX(C27:C29,C39),10) -> 0
B27: SWH-1 | C27: =2.813*(2.813*C32/C13*(1-0.6514*C18*EXP(-0.312*C18))+0.06153*(C30/(C14/Tables!$FD5)+ROUND(26.18/(C15/Tables!$FD6),3))+ROUND(0.00677/(C16*C17),4))^(-1)-2.813*(2.813/C33+0.06153*(C30/12.4+6.807)+0.0141)^-1 -> 0
B28: SWH-2 | C28: =2.813*(2.813*C32/C13*(1-0.6514*C18*EXP(-0.312*C18))+ROUND(1.611/(C15/Tables!$FD6)+0.00677/(C16*C17),5))^(-1)-2.813*(2.813/C33+0.43298)^-1 -> 0
B29: SWH-3 | C29: =2.813*(2.813*C32/C33*(1-0.6514*C18*EXP(-0.312*C18))+0.06153*(C30/(C14/Tables!$FD5)+ROUND(26.18/(C15/Tables!$FD6),3))+ROUND(0.00677/(C16*C17),4))^(-1)-2.813*(2.813/C33+0.06153*(C30/12.4+6.807)+0.0141)^-1 -> 0
B30: Anorm | C30: =5.5*PI()*(C31)^2 -> 11.45251146
B31: Dnorm | C31: =0.32409*(C11/Tables!$FD15)^(1/3) -> 0.8141306147
B32: PDR | C32: =ROUND(((C19/Tables!$FD10)*C22+(C20/Tables!$FD11)*C23+(C21/Tables!$FD12)*(1-C22-C23))/(2.2*C22+2.5*C23+(C21/Tables!$FD12)*(1-C22-C23)),5) -> 1
B33: Ref | C33: =IF(C39=3,C38,IF(C37<0,INDEX(C34:C36,ABS(C37)),C37)) -> 0.98
B34: Gas-fired < 22 kW | C34: =0.67 - 0.0005*C11 -> 0.64
B35: Gas-fired 22 - 117 kW | C35: =0.67 - 0.0005*C11 -> 0.64
B36: Oil-fired, instantaneous, ≤ 61.5 kW | C36: =0.59 - 0.0019*C11 -> 0.476
B37: Ref Tank+Instantaneous | C37: =INDEX(Tables!$EJ$4:$EJ$13,MATCH(C10,DHW_Equip,0)) -> 0.98
B38: Ref Boiler | C38: =INDEX(Tables!$BQ$4:$BQ$13,MATCH(C10,Boilers,0)) -> 
B39: Sys Type | C39: =MATCH(C9,DHW_Sys,0) -> 1
B43: Reference values
B46: Tank volume | C46: =C11 -> 60
B47: Service water heating equipment efficiency | C47: =IF(C39=3,C38,IF(C37<0,C33,C37)) -> 0.98
B48: Tank insulation value | C48: =12.4/5.678 -> 2.183867559
B49: Piping insulation value | C49: =3.846/5.678 -> 0.67735118
B50: Pump motor efficiency | C50: 0.8
B51: Pump efficiency | C51: 0.6
B52: Heat recovery ratio | C52: 0
B53: Average flow of all faucets | C53: =2.2/0.2642 -> 8.327024981
B54: Average flow of all showers | C54: =2.5/0.2642 -> 9.462528388
B55: Average flow of other uses | C55: 7.6
B56: Faucet flow ratio | C56: =C22 -> 0.5
B57: Shower flow ratio | C57: =C23 -> 0.5
C59: Data Ranges Min
B60: Service water heating equipment efficiency | C60: 0.2
B61: Tank insulation value | C61: =IF(Select_Units="IP", 0.1, 0.02) -> 0.02
B62: Piping insulation value | C62: =IF(Select_Units="IP", 0.1, 0.02) -> 0.02
B63: Pump motor efficiency | C63: 0.1
B64: Pump efficiency | C64: 0.1
B65: Heat recovery ratio | C65: 0
B66: Average flow of all faucets | C66: =IF(Select_Units="IP", 0.1, 0.006309) -> 0.006309
B67: Average flow of all showers | C67: =IF(Select_Units="IP", 0.1, 0.006309) -> 0.006309
B68: Average flow of other uses | C68: 0
B69: Faucet flow ratio | C69: 0
B70: Shower flow ratio | C70: 0
C72: Data Ranges Max
B73: Service water heating equipment efficiency | C73: 10
B74: Tank insulation value | C74: =IF(Select_Units="IP", 40, 7.04) -> 7.04
B75: Piping insulation value | C75: =IF(Select_Units="IP", 40, 7.04) -> 7.04
B76: Pump motor efficiency | C76: 0.99
B77: Pump efficiency | C77: 0.7
B78: Heat recovery ratio | C78: 1
B79: Average flow of all faucets | C79: =IF(Select_Units="IP", 4, 15.14 ) -> 15.14
B80: Average flow of all showers | C80: =IF(Select_Units="IP", 2.64, 10 ) -> 10
B81: Average flow of other uses | C81: =IF(Select_Units="IP", 100, 378.5 ) -> 378.5
B82: Faucet flow ratio | C82: 1
B83: Shower flow ratio | C83: 1

Sheet Tables (hidden)
A1: # of Systems | B1: =COUNTA('HVAC-CVCA'!B6:XFD6) -> 1 | C1: Call for HVAC-CVCA Sheet Worksheet_Change Function from sheet not from macro | D1: TRUE | E1: # SWH | F1: =COUNTA('SWH-CES'!B6:XFD6) -> 1 | G1: Call for SWH-CES Sheet Worksheet_Change Function from sheet not from macro | H1: TRUE
A2: Current Language (1: English, 0: French) | B2: 1 | C2: Current units (1: SI, 0 : IP) | D2: 1 | DC2: Table 5.3.2.8 | GD2: =IF(Select_Lang="English",GF96,GD96) -> Climate Zones
B3: Table 5.3.1.1: Types of HVAC Systems | E3: Table 5.3.2.2 | AI3: Table 5.3.2.3 | AL3: Table 5.3.2.4 | BP3: Table 5.2.12.1 - Heating | BT3: Table 5.2.12.1 - Cooling | BX3: Table 5.3.2.7 | DF3: Parameter | DZ3: Menu | EC3: Pass_Fail | EF3: Choice | EI3: DHW Eff Table | EL3: SHW ToV | EO3: DHW Sys Type | ES3: General | EU3: Intro | EX3: =IF(Select_Lang="English",EY46,EX46) -> HVAC Help Table | EZ3: Pass_Fail | FC3: Units Label | FD3: Conversion (IP value * factor = SI) | FG3: Titre | FJ3: =IF(Select_Lang="English",FK36,FJ36) -> SWH Help Table | FN3: Titres | FS3: Reports | FV3: Reports | GA3: Reports | GD3: City / Location | GE3: =IF(Select_Lang="English",GG97,GE97) -> Province/Territory | GF3: Zone
B4: =IF(Select_Lang="English",C35,B35) -> Built-up variable-volume | C4: 1 | F4: System | AI4: =IF(Select_Lang="English",AJ48,AI48) -> Supply fan mechanical efficiency | AM4: System | BP4: =IF(Select_Lang="English",BQ24,BP24) -> Electric boilers | BQ4: ='Minimum efficiencies entries'!G11 -> 1 | BT4: =IF(Select_Lang="English",BU150,BT150) -> Air Cooled Unitary Central Air-Conditioners and Heat Pumps - Electrically Operated | BZ4: System | DC4: System | DD4: ToV | DE4: Index | DF4: α1 | DG4: α2 | DH4: α3 | DI4: β1 | DJ4: β2 | DK4: β3 | DN4: Location | DO4: HDD | DP4: CDD | DQ4: TDD | DS4: Location Data | DW4: Units Label | DX4: Conversion (IP value * factor = SI) | DZ4: =IF(Select_Lang="English",EA13,DZ13) -> System Type: | EC4: =IF(Select_Lang="English",ED16,EC16) -> HVAC system deemed to comply with Section 5.3 | EF4: =IF(Select_Lang="English",EG13,EF13) -> Yes | EI4: =IF(Select_Lang="English",EJ34,EI34) -> Electric | EJ4: =EK34 -> 0.98 | EL4: =IF(Select_Lang="English",EM21,EL21) -> Service water heating equipment efficiency | EO4: =IF(Select_Lang="English",EP21,EO21) -> Tank | EQ4: =IF(Select_Lang="English",ER7,EQ7) -> (m2): | ES4: Français | EU4: =IF(Select_Lang="English",EV7,EU7) -> This tool allows the demonstration of compliance with NECB 2011 when using the Part 5 and/or Part 6 Trade-off path. Users must define all of the systems in the building along with their component characteristics for the output to be valid. The HVAC and SWH indices indicate whether a system passes or fails. Only cells highlighted in BLUE need to be filled. This tool does not calculate the actual energy use index of a system but only its compliance to the NECB 2011 trade-off path. | EX4: Enter the supply fan design mechanical efficiency. | EZ4: =IF(Select_Lang="English",FA16,EZ16) -> The SWH system is deemed to comply with Section 6.3 | FC4: =IF(Select_Lang="English",FD39,FC39) -> % | FD4: 1 | FG4: =IF(Select_Lang="English",FH15,FG15) -> System Type: | FJ4: Select the system type that most closely matches the one being evaluated. | FN4: =IF(Select_Lang="English",FO15,FN15) -> Compliance of the service water heating (SWH) systems | FP4: =IF(Select_Lang="English",FQ15,FP15) -> Compliance of the heating, ventilating and air-conditioning systems (HVAC) | FS4: =IF(Select_Lang="English",FT35,FS35) -> Statement of Compliance – National Energy Code of Canada for Buildings 2011 Summary Compliance Report to NECB Part 5 - HVAC | FV4: =IF(Select_Lang="English",FW35,FV35) -> Statement of Compliance – National Energy Code of Canada for Buildings 2011 Summary Compliance Report to NECB Part 6 - SWH | GA4: =IF(Select_Lang="English",GB7,GA7) -> System | GD4: Vancouver | GE4: Br. Columbia | GF4: 4 | GI4: =IF(Select_Lang="English",GJ8,GI8) -> This tool is the property of Natural Resources Canada.All rights reserved. No part of this Tool may be reproduced, modified, distributed, published, sold, licensed, broadcasted, retransmitted, circulated in any form or used this tool in any way other than for compliance to the 2011 NECB.
B5: Constant-volume reheat | C5: 2 | F5: 1 | G5: 2 | H5: 3 | I5: 4 | J5: 5 | K5: 6 | L5: 7 | M5: 8 | N5: 9 | O5: 10 | P5: 11 | Q5: 12 | R5: 13 | S5: 14 | T5: 15 | U5: 16 | V5: 17 | W5: 18 | X5: 19 | Y5: 20 | Z5: 21 | AA5: 22 | AB5: 23 | AC5: 24 | AD5: 25 | AE5: 26 | AF5: 27 | AI5: Supply motor efficiency | AM5: 1 | AN5: 2 | AO5: 3 | AP5: 4 | AQ5: 5 | AR5: 6 | AS5: 7 | AT5: 8 | AU5: 9 | AV5: 10 | AW5: 11 | AX5: 12 | AY5: 13 | AZ5: 14 | BA5: 15 | BB5: 16 | BC5: 17 | BD5: 18 | BE5: 19 | BF5: 20 | BG5: 21 | BH5: 22 | BI5: 23 | BJ5: 24 | BK5: 25 | BL5: 26 | BM5: 27 | BP5: Gas-fired boilers, < 88 kW | BQ5: ='Minimum efficiencies entries'!G12 -> 0.85 | BR5: AFUE | BT5: =IF(Select_Lang="English",BU151,BT151) -> Single-Package Vertical Air Conditioners (SPVAC) and Heat Pumps (SPVHP) | BX5: ToV | BY5: Parameter | BZ5: 1 | CA5: 2 | CB5: 3 | CC5: 4 | CD5: 5 | CE5: 6 | CF5: 7 | CG5: 8 | CH5: 9 | CI5: 10 | CJ5: 11 | CK5: 12 | CL5: 13 | CM5: 14 | CN5: 15 | CO5: 16 | CP5: 17 | CQ5: 18 | CR5: 19 | CS5: 20 | CT5: 21 | CU5: 22 | CV5: 23 | CW5: 24 | CX5: 25 | CY5: 26 | CZ5: 27 | DC5: 1 | DD5: 1 | DE5: =32*(DC5-1)+DD5 -> 1 | DF5: 0.9901110994 | DG5: -0.0001417847496 | DH5: 5.710486511e-09 | DI5: -0.5191109832 | DJ5: 7.036703084e-05 | DK5: -2.625993363e-09 | DL5: HDD | DN5: Zone 4 | DO5: 2900 | DP5: 250 | DQ5: =DO5+DP5 -> 3150 | DS5: Location | DT5: =VLOOKUP(Climate_Zone,YDD_Table,1,FALSE) -> Zone 5 | DW5: =IF(Select_Lang="English",DX40,DW40) -> % | DX5: 1 | DZ5: =IF(Select_Lang="English",EA14,DZ14) -> Cooling System Type: | EC5: =IF(Select_Lang="English",ED17,EC17) -> HVAC system does not comply with Section 5.3 | EF5: =IF(Select_Lang="English",EG14,EF14) -> No | EI5: Heat pump water heaters | EJ5: =EK35 -> 2.1 | EL5: Tank insulation value | EO5: =IF(Select_Lang="English",EP22,EO22) -> Tankless (instantaneous) | ES5: English | EX5: Enter the supply fan motor design efficiency. | EZ5: =IF(Select_Lang="English",FA17,EZ17) -> The SHW system does not comply with Section 6.3 | FC5: RSI Value | FD5: =IF(Select_Units="IP", 1,1/5.678) -> 0.1761183515 | FG5: =IF(Select_Lang="English",FH16,FG16) -> Equipment Type: | FJ5: Select the type of equipment used in producing the service hot water. | FS5: Project Name: | FV5: Project Name: | GD5: Abbotsford | GE5: Br. Columbia | GF5: 5
B6: Packaged single duct - single zone | C6: 3 | E6: ToV1 | F6: 1 | G6: 1 | H6: 1 | I6: 1 | J6: 1 | K6: 1 | L6: 1 | M6: 1 | N6: 1 | O6: 1 | P6: 1 | Q6: 1 | R6: 1 | S6: 1 | T6: 1 | U6: 1 | V6: 1 | W6: 1 | X6: 1 | Y6: 1 | Z6: 1 | AA6: 1 | AB6: 1 | AC6: 1 | AD6: 0 | AE6: 1 | AF6: 1 | AI6: Return fan mechanical efficiency | AL6: BaV1 | AM6: 0.6 | AN6: 0.6 | AO6: 0.44 | AP6: 0.5454545455 | AQ6: 0.6 | AR6: 0.4909090909 | AS6: 0.6 | AT6: 0.4909090909 | AU6: 0.6 | AV6: 0.6 | AW6: 0.4909090909 | AX6: 0.6 | AY6: 0.6 | AZ6: 0.6 | BA6: 0.6 | BB6: 0.6 | BC6: 0.6 | BD6: 0.6 | BE6: 0.65 | BF6: 0.65 | BG6: 0.65 | BH6: 0.4363636364 | BI6: 0.6 | BJ6: 0.65 | BK6: 0.5454545455 | BL6: 0.5454545455 | BM6: 0.6 | BP6: Gas-fired boilers, >= 88 kW and < 733 kW | BQ6: ='Minimum efficiencies entries'!G13 -> 0.83 | BR6: Et | BT6: Evaporatively Cooled and Water Evaporatively Cooled Unitary Air Conditioners and Heat Pumps - Electically Operated | BX6: 5 | BY6: =IF(Select_Lang="English",BZ60,BY60) -> Supply OA Reset | BZ6: 0.9343692362 | CA6: 0.3489995027 | CB6: 0.9180469606 | CC6: 0.9180469606 | CD6: 0.9343692362 | CE6: 0.9343692362 | CF6: 0.9343692362 | CG6: 0.9343692362 | CH6: 0.9343692362 | CI6: 0.9343692362 | CJ6: 0.9343692362 | CK6: 0.9343692362 | CL6: 0.9343692362 | CM6: 0.9343692362 | CN6: 0.9343692362 | CO6: 0.9343692362 | CP6: 0.93 | CQ6: 0.93 | CR6: 0.93 | CS6: 0.93 | CT6: 0.93 | CU6: 0.93 | CV6: 0.93 | CW6: 0.93 | CX6: 0.93 | CY6: 0.93 | CZ6: 0.93 | DC6: 1 | DD6: 2 | DE6: =32*(DC6-1)+DD6 -> 2 | DF6: 0.6993755073 | DG6: -0.0001012536257 | DH6: 4.054572573e-09 | DI6: -0.2670356781 | DJ6: 3.68701276e-05 | DK6: -1.362001787e-09 | DL6: HDD | DN6: Zone 5 | DO6: 3500 | DP6: 550 | DQ6: =DO6+DP6 -> 4050 | DS6: HDD | DT6: =VLOOKUP(Climate_Zone,YDD_Table,2,FALSE) -> 3500 | DW6: % | DX6: 1 | DZ6: =IF(Select_Lang="English",EA15,DZ15) -> Cooling Sub-System Type: | EC6: =IF(Select_Lang="English",ED18,EC18) -> Incomplete data entry | EI6: Gas-fired < 22 kW | EJ6: -1 | EL6: Piping insulation value | EO6: =IF(Select_Lang="English",EP23,EO23) -> Space-heating boiler | EU6: French | EV6: English | EX6: Enter the return fan design mechanical efficiency. | EZ6: =IF(Select_Lang="English",FA18,EZ18) -> Incomplete data entry | FC6: RSI Value | FD6: =IF(Select_Units="IP", 1,1/5.678) -> 0.1761183515 | FG6: =IF(Select_Lang="English",FH17,FG17) -> Tank Volume: | FH6: =IF(Select_Units="IP", 1,3.785) -> 3.785 | FJ6: Total volume of all storage tanks included in this system. Value must be equal or greater than 0. | FS6: Project Address: | FV6: Project Address: | GD6: Tofino | GE6: Br. Columbia | GF6: 5
B7: Built-up single duct - single zone | C7: 4 | E7: ToV2 | F7: 1 | G7: 1 | H7: 1 | I7: 1 | J7: 1 | K7: 1 | L7: 1 | M7: 1 | N7: 1 | O7: 1 | P7: 1 | Q7: 1 | R7: 1 | S7: 1 | T7: 1 | U7: 1 | V7: 1 | W7: 1 | X7: 1 | Y7: 1 | Z7: 1 | AA7: 1 | AB7: 1 | AC7: 1 | AD7: 0 | AE7: 1 | AF7: 1 | AI7: Return fan motor efficiency | AL7: BaV2 | AM7: 0.9166666667 | AN7: 0.9166666667 | AO7: 0.9166666667 | AP7: 0.9166666667 | AQ7: 0.9166666667 | AR7: 0.9166666667 | AS7: 0.9166666667 | AT7: 0.9166666667 | AU7: 0.9167 | AV7: 0.9166666667 | AW7: 0.9166666667 | AX7: 0.9166666667 | AY7: 0.9166666667 | AZ7: 0.9166666667 | BA7: 0.9166666667 | BB7: 0.9166666667 | BC7: 0.916666667 | BD7: 0.916666667 | BE7: 0.9166666667 | BF7: 0.916666667 | BG7: 0.916666667 | BH7: 0.9166666667 | BI7: 0.9166666667 | BJ7: 0.9166666667 | BK7: 0.9166666667 | BL7: 0.9166666667 | BM7: 0.9166666667 | BP7: Gas-fired boilers, >= 733 kW | BQ7: ='Minimum efficiencies entries'!G14 -> 0.833 | BR7: Ec | BT7: Condensing Units | BX7: 5 | BY7: Warmest | BZ7: 1 | CA7: 0.4252789745 | CB7: 0.7302608654 | CC7: 0.7302608654 | CD7: 1 | CE7: 1 | CF7: 1 | CG7: 1 | CH7: 1 | CI7: 1 | CJ7: 1 | CK7: 1 | CL7: 1 | CM7: 1 | CN7: 1 | CO7: 1 | CP7: 1 | CQ7: 1 | CR7: 1 | CS7: 1 | CT7: 1 | CU7: 1 | CV7: 1 | CW7: 1 | CX7: 1 | CY7: 1 | CZ7: 1 | DC7: 1 | DD7: 3 | DE7: 3 | DF7: 0.6087343852 | DG7: -5.513358962e-05 | DH7: 7.351728191e-10 | DI7: -0.5243582673 | DJ7: 4.324254507e-05 | DK7: -2.152920432e-10 | DL7: HDD | DN7: Zone 6 | DO7: 4500 | DP7: 500 | DQ7: 5000 | DS7: CDD | DT7: =VLOOKUP(Climate_Zone,YDD_Table,3,FALSE) -> 550 | DW7: % | DX7: 1 | DZ7: =IF(Select_Lang="English",EA16,DZ16) -> Cooling capacity: | EI7: Gas-fired 22 - 117 kW | EJ7: -2 | EL7: Pump motor efficiency | EQ7: =IF(Select_Units="IP","(pi2) :","(m2) :") -> (m2) : | ER7: =IF(Select_Units="IP","(ft2):","(m2):") -> (m2): | ES7: SI | EU7: Cet outil permet de démontrer la conformité selon la méthode des solutions de remplacement pour la Partie 5 et la Partie 6 du CNÉB 2011. L’utilisateur doit définir tous les systèmes du bâtiment ainsi que les caractéristiques de toutes leurs composantes pour que le résultat soit valide. Les indices de solution de remplacement CVCA et SWH, indiquent si un système est conforme ou non-conforme au CNÉB. Seulement les cellules surlignées en BLEU doivent être remplies. L'outil ne sert pas à établir un indice de consommation réel d'un système mais uniquement à déterminer sa conformité au CNÉB 2011 selon la méthode des solutions de remplacement. | EV7: This tool allows the demonstration of compliance with NECB 2011 when using the Part 5 and/or Part 6 Trade-off path. Users must define all of the systems in the building along with their component characteristics for the output to be valid. The HVAC and SWH indices indicate whether a system passes or fails. Only cells highlighted in BLUE need to be filled. This tool does not calculate the actual energy use index of a system but only its compliance to the NECB 2011 trade-off path. | EX7: Enter the return fan motor design efficiency. | FC7: % | FD7: 1 | FJ7: Enter the efficiency of the equipment used in producing the service hot water. For heat pumps, enter the COP in terms of %. For Efficiency Factors (EF), enter directly that value except for electric hot water tanks where an efficiency of 100% is to be used. If more than one equipment of the same type serves a system, enter the capacity-weighted average efficiency. Value must be greater than 0. | FS7: Applicant Name: | FV7: Applicant Name: | GA7: Système | GB7: System | GD7: Penticton | GE7: Br. Columbia | GF7: 5
B8: Packaged variable-volume | C8: 5 | E8: ToV3 | F8: 1 | G8: 1 | H8: 1 | I8: 1 | J8: 1 | K8: 1 | L8: 1 | M8: 1 | N8: 1 | O8: 1 | P8: 1 | Q8: 1 | R8: 1 | S8: 1 | T8: 1 | U8: 1 | V8: 1 | W8: 1 | X8: 1 | Y8: 1 | Z8: 1 | AA8: 1 | AB8: 1 | AC8: 1 | AD8: 0 | AE8: 0 | AF8: 1 | AI8: Supply temperature control | AL8: BaV3 | AM8: 0.38 | AN8: 0.375 | AO8: 0.31 | AP8: 0.3125 | AQ8: 0.375 | AR8: 0.25 | AS8: 0.375 | AT8: 0.25 | AU8: 0.3 | AV8: 0.375 | AW8: 0.25 | AX8: 0.375 | AY8: 0.375 | AZ8: 0.375 | BA8: 0.375 | BB8: 0.375 | BC8: 0.375 | BD8: 0.375 | BE8: 0.375 | BF8: 0.375 | BG8: 0.375 | BH8: 0.3125 | BI8: 0.375 | BJ8: 0.375 | BK8: 0.3125 | BL8: 0.3125 | BM8: 0.375 | BP8: Oil-fired boilers, < 88 kW | BQ8: ='Minimum efficiencies entries'!G15 -> 0.847 | BR8: AFUE | BT8: Water-Cooled Unitary Air Conditioners and Heat Pumps - Electrically Operated | BX8: 5 | BY8: Constant > 15°C | BZ8: 0.8622933263 | CA8: 0.3227540595 | CB8: 0.9181107818 | CC8: 0.9181107818 | CD8: 0.8622933263 | CE8: 0.8622933263 | CF8: 0.8622933263 | CG8: 0.8622933263 | CH8: 0.8622933263 | CI8: 0.8622933263 | CJ8: 0.8622933263 | CK8: 0.8622933263 | CL8: 0.8622933263 | CM8: 0.8622933263 | CN8: 0.8622933263 | CO8: 0.8622933263 | CP8: 0.86 | CQ8: 0.86 | CR8: 0.86 | CS8: 0.86 | CT8: 0.86 | CU8: 0.86 | CV8: 0.86 | CW8: 0.86 | CX8: 0.86 | CY8: 0.86 | CZ8: 0.86 | DC8: 1 | DD8: 4 | DE8: 4 | DF8: 0.2915969636 | DG8: -2.712390118e-05 | DH8: 3.971822156e-10 | DI8: -0.1264139262 | DJ8: 1.09531325e-05 | DK8: -8.619883871e-11 | DL8: HDD | DN8: Zone 7A | DO8: 5500 | DP8: 450 | DQ8: 5950 | DS8: TDD | DT8: =VLOOKUP(Climate_Zone,YDD_Table,4,FALSE) -> 4050 | DW8: % | DX8: 1 | DZ8: =IF(Select_Lang="English",EA17,DZ17) -> Heating System Type: | EI8: Gas-fired > 117 kW | EJ8: 0.77 | EL8: Pump efficiency | ES8: IP | EX8: Choose from the drop down list the type of supply temperature control applicable to this HVAC system. | FC8: % | FD8: 1 | FJ8: Define the tank's insulating value. For systems with multiple tanks, enter the surface-weighted average insulating value. Value must be between R 0.1 and 40 (RSI 0.5678-7.04). | FS8: Applicant Address: | FV8: Applicant Address: | GD8: Penticton | GE8: Br. Columbia | GF8: 5 | GI8: Cet outil est la propriété de Ressources naturelles Canada. Tous droits réservés. Il est interdit de modifier, de distribuer, de publier, de vendre, de concéder par licence, de diffuser, de retransmettre, de mettre en circulation et d'utiliser cet outil sous quelque forme autres que celles prévues aux fins de vérification de conformité au CNÉB 2011. | GJ8: This tool is the property of Natural Resources Canada.All rights reserved. No part of this Tool may be reproduced, modified, distributed, published, sold, licensed, broadcasted, retransmitted, circulated in any form or used this tool in any way other than for compliance to the 2011 NECB.
B9: Packaged constant-volume with reheat | C9: 6 | E9: ToV4 | F9: 1 | G9: 1 | H9: 1 | I9: 1 | J9: 1 | K9: 1 | L9: 1 | M9: 1 | N9: 1 | O9: 1 | P9: 1 | Q9: 1 | R9: 1 | S9: 1 | T9: 1 | U9: 1 | V9: 1 | W9: 1 | X9: 1 | Y9: 1 | Z9: 1 | AA9: 1 | AB9: 1 | AC9: 1 | AD9: 0 | AE9: 0 | AF9: 1 | AI9: Airflow control efficiency | AL9: BaV4 | AM9: 0.8 | AN9: 0.8 | AO9: 0.8 | AP9: 0.8 | AQ9: 0.8 | AR9: 0.8 | AS9: 0.8 | AT9: 0.8 | AU9: 0.8 | AV9: 0.8 | AW9: 0.8 | AX9: 0.8 | AY9: 0.8 | AZ9: 0.8 | BA9: 0.8 | BB9: 0.8 | BC9: 0.8 | BD9: 0.8 | BE9: 0.8 | BF9: 0.8 | BG9: 0.8 | BH9: 0.8 | BI9: 0.8 | BJ9: 0.8 | BK9: 0.8 | BL9: 0.8 | BM9: 0.8 | BP9: Oil-fired boilers, >= 88 kW and < 733 kW | BQ9: ='Minimum efficiencies entries'!G16 -> 0.834 | BR9: Et | BT9: Direct-expansion ground-source heat pumps <= 21 (71700) | BX9: 5 | BY9: Constant <= 15°C | BZ9: 0.5 | CA9: 0.2 | CB9: 0.94 | CC9: 0.94 | CD9: 0.5 | CE9: 0.5 | CF9: 0.5 | CG9: 0.5 | CH9: 0.5 | CI9: 0.5 | CJ9: 0.5 | CK9: 0.5 | CL9: 0.5 | CM9: 0.5 | CN9: 0.5 | CO9: 0.5 | CP9: 0.5 | CQ9: 0.5 | CR9: 0.5 | CS9: 0.5 | CT9: 0.5 | CU9: 0.94 | CV9: 0.5 | CW9: 0.5 | CX9: 0.94 | CY9: 0.94 | CZ9: 0.5 | DC9: 1 | DD9: 5 | DE9: 5 | DF9: -0.2174599045 | DG9: 0.0001610454444 | DH9: -1.976246835e-08 | DI9: 1.081433856 | DJ9: -0.0003447607209 | DK9: 2.887370386e-08 | DL9: HDD | DN9: Zone 7B | DO9: 6500 | DP9: 400 | DQ9: 6900 | DW9: Selection | DX9: 1 | EI9: =IF(Select_Lang="English",EJ39,EI39) -> Oil-fired, instantaneous, <= 61.5 kW | EJ9: =EK39 -> -3 | EL9: Heat recovery ratio | EX9: Choose from the drop down list the type of supply airflow control applicable to this HVAC system. | FC9: W/W | FD9: 1 | FJ9: Define the average piping insulation value for this service water heating system. Value must be between R 0.1 and 40 (RSI 0.5678-7.04). | FS9: Applicant Phone: | FV9: Applicant Phone: | GD9: Port Hardy | GE9: Br. Columbia | GF9: 5
B10: Built-up ceiling bypass VAV | C10: 7 | E10: ToV5 | F10: 1 | G10: 1 | H10: 0 | I10: 0 | J10: 1 | K10: 1 | L10: 1 | M10: 1 | N10: 1 | O10: 1 | P10: 1 | Q10: 1 | R10: 1 | S10: 1 | T10: 1 | U10: 1 | V10: 1 | W10: 1 | X10: 1 | Y10: 1 | Z10: 1 | AA10: 1 | AB10: 1 | AC10: 1 | AD10: 0 | AE10: 0 | AF10: 1 | AI10: Supply fan total static pressure | AL10: BaV5 | AM10: 0.5 | AN10: 0.2 | AO10: 0.943 | AP10: 0.943 | AQ10: 0.5 | AR10: 0.5 | AS10: 0.5 | AT10: 0.5 | AU10: 0.5 | AV10: 0.5 | AW10: 0.5 | AX10: 0.5 | AY10: 0.5 | AZ10: 0.5 | BA10: 0.5 | BB10: 0.5 | BC10: 0.5 | BD10: 0.5 | BE10: 0.5 | BF10: 0.5 | BG10: 0.5 | BH10: 0.943 | BI10: 0.5 | BJ10: 0.5 | BK10: 0.943 | BL10: 0.943 | BM10: 0.5 | BP10: Oil-fired boilers, >= 733 kW | BQ10: ='Minimum efficiencies entries'!G17 -> 0.858 | BR10: Ec | BT10: Packaged Terminal Air Conditioners (PTAC) and Heat Pumps (PTHP) | BX10: 6 | BY10: Forward curve with vanes | BZ10: 0.5569821282 | CA10: 0.5569821282 | CB10: 0.5569821282 | CC10: 0.5569821282 | CD10: 0.5569821282 | CE10: 0.5569821282 | CF10: 0.5569821282 | CG10: 0.5569821282 | CH10: 0.5569821282 | CI10: 0.5569821282 | CJ10: 0.5569821282 | CK10: 0.5569821282 | CL10: 0.5569821282 | CM10: 0.5569821282 | CN10: 0.5569821282 | CO10: 0.5569821282 | CP10: 0.5569821282 | CQ10: 0.5569821282 | CR10: 0.5569821282 | CS10: 0.5569821282 | CT10: 0.5569821282 | CU10: 0.5569821282 | CV10: 0.5569821282 | CW10: 0.5569821282 | CX10: 0.5569821282 | CY10: 0.5569821282 | CZ10: 0.5569821282 | DC10: 1 | DD10: 6 | DE10: 6 | DF10: 0.1034290307 | DG10: 3.422000305e-05 | DH10: -3.996955264e-09 | DI10: 0.8109623075 | DJ10: -0.0002076151835 | DK10: 1.352775472e-08 | DL10: TDD | DN10: Zone 8 | DO10: 8900 | DP10: 150 | DQ10: 9050 | DW10: Selection | DX10: 1 | EI10: =IF(Select_Lang="English",EJ40,EI40) -> Oil-fired, instantaneous, Vt < 37.8 L | EJ10: =EK40 -> 0.8 | EL10: Average flow of all faucets | EX10: Enter the supply fan design total static pressure. It is important not to enter the external static pressure value, sometimes indicated on the equipment specifications. | FC10: L/min | FD10: =IF(Select_Units="IP", 1,3.785) -> 3.785 | FJ10: Enter the efficiency of all pump motors used on this service water heating system. When multiple pumps are present, define the capacity-weighted average efficiency for all the pump motors. Value must be between 30% and 99%. | FS10: General information | FV10: General information | GD10: Windsor | GE10: Ontario | GF10: 5
B11: Packaged ceiling bypass VAV | C11: 8 | E11: ToV6 | F11: 1 | G11: 0 | H11: 0 | I11: 0 | J11: 1 | K11: 1 | L11: 0 | M11: 0 | N11: 1 | O11: 0 | P11: 0 | Q11: 0 | R11: 1 | S11: 0 | T11: 0 | U11: 0 | V11: 0 | W11: 0 | X11: 0 | Y11: 0 | Z11: 0 | AA11: 0 | AB11: 0 | AC11: 0 | AD11: 0 | AE11: 0 | AF11: 0 | AI11: Supply duct insulation | AL11: BaV6 | AM11: 0.5569821282 | AN11: 0.5569821282 | AO11: 0.5569821282 | AP11: 0.5569821282 | AQ11: 0.5569821282 | AR11: 0.5569821282 | AS11: 0.5569821282 | AT11: 0.5569821282 | AU11: 0.5569821282 | AV11: 0.5569821282 | AW11: 0.5569821282 | AX11: 0.5569821282 | AY11: 0.5569821282 | AZ11: 0.5569821282 | BA11: 0.5569821282 | BB11: 0.5569821282 | BC11: 0.556982128 | BD11: 0.556982128 | BE11: 0.5569821282 | BF11: 0.556982128 | BG11: 0.556982128 | BH11: 0.5569821282 | BI11: 0.5569821282 | BJ11: 0.5569821282 | BK11: 0.5569821282 | BL11: 0.5569821282 | BM11: 0.5569821282 | BP11: Oil-fired boilers, residulal (No.5 or No.6 oil) and other, < 88 kW | BQ11: ='Minimum efficiencies entries'!G18 -> 0.847 | BR11: AFUE | BT11: Room Air Conditioners and Room Air Conditioner Heat Pumps | BX11: 6 | BY11: VSD | BZ11: 0.604 | CA11: 0.604 | CB11: 0.604 | CC11: 0.604 | CD11: 0.604 | CE11: 0.604 | CF11: 0.604 | CG11: 0.604 | CH11: 0.604 | CI11: 0.604 | CJ11: 0.604 | CK11: 0.604 | CL11: 0.604 | CM11: 0.604 | CN11: 0.604 | CO11: 0.604 | CP11: 0.604 | CQ11: 0.604 | CR11: 0.604 | CS11: 0.604 | CT11: 0.604 | CU11: 0.604 | CV11: 0.604 | CW11: 0.604 | CX11: 0.604 | CY11: 0.604 | CZ11: 0.604 | DC11: 1 | DD11: 7 | DE11: 7 | DF11: -0.06403509844 | DG11: 1.179535927e-05 | DH11: -6.096496858e-10 | DI11: 0.001976389286 | DJ11: -4.923110868e-07 | DK11: 3.046495009e-11 | DL11: HDD | DW11: Pa | DX11: =IF(Select_Units="IP", 1,249.09) -> 249.09 | EI11: =IF(Select_Lang="English",EJ41,EI41) -> Oil-fired, instantaneous, Vt >= 37.8 L | EJ11: =EK41 -> 0.77 | EL11: Average flow of all showers | EX11: Enter the average insulation value for the supply ducts served by this HVAC system. | FC11: L/min | FD11: =IF(Select_Units="IP", 1,3.785) -> 3.785 | FJ11: Enter the efficiency of all pumps ("pump efficiency" in this case refers to "pump mechanical efficiency") used on this service water heating system. When multiple pumps are present, define the capacity-weighted average efficiency for all the pumps. Value must be between 30% and 75%. | FS11: Date of plans: | FV11: Date of plans: | GD11: Kamloops | GE11: Br. Columbia | GF11: 5
B12: Powered induction unit | C12: 9 | E12: ToV7 | F12: 1 | G12: 1 | H12: 1 | I12: 1 | J12: 1 | K12: 1 | L12: 1 | M12: 1 | N12: 1 | O12: 1 | P12: 1 | Q12: 1 | R12: 1 | S12: 1 | T12: 1 | U12: 1 | V12: 1 | W12: 1 | X12: 1 | Y12: 1 | Z12: 1 | AA12: 1 | AB12: 1 | AC12: 1 | AD12: 0 | AE12: 0 | AF12: 1 | AI12: Return fan total static pressure | AL12: BaV7 | AM12: 4 | AN12: 4 | AO12: 1.3 | AP12: 2 | AQ12: 4 | AR12: 3 | AS12: 4 | AT12: 3 | AU12: 6 | AV12: 4 | AW12: 3 | AX12: 4 | AY12: 4 | AZ12: 2 | BA12: 2 | BB12: 2 | BC12: 2 | BD12: 2 | BE12: 6 | BF12: 6 | BG12: 6 | BH12: 1.3 | BI12: 2 | BJ12: 6 | BK12: 2 | BL12: 2 | BM12: 2 | BP12: Oil-fired boilers, residulal (No.5 or No.6 oil) and other, >= 88 kW and < 733 kW | BQ12: ='Minimum efficiencies entries'!G19 -> 0.834 | BR12: Et | BT12: Computer Room Air Conditioners | BX12: 6 | BY12: Airfoil with inlet vanes | BZ12: 0.366 | CA12: 0.366 | CB12: 0.366 | CC12: 0.366 | CD12: 0.366 | CE12: 0.366 | CF12: 0.366 | CG12: 0.366 | CH12: 0.366 | CI12: 0.366 | CJ12: 0.366 | CK12: 0.366 | CL12: 0.366 | CM12: 0.366 | CN12: 0.366 | CO12: 0.366 | CP12: 0.366 | CQ12: 0.366 | CR12: 0.366 | CS12: 0.366 | CT12: 0.366 | CU12: 0.366 | CV12: 0.366 | CW12: 0.366 | CX12: 0.366 | CY12: 0.366 | CZ12: 0.366 | DC12: 1 | DD12: 8 | DE12: 8 | DF12: 0.0162999025 | DG12: -3.773549944e-06 | DH12: 2.416537656e-10 | DI12: -0.00169458875 | DJ12: 3.890411964e-07 | DK12: -2.470674278e-11 | DL12: HDD | DN12: Valeurs pour la série originale de coefficients | DW12: RSI Value | DX12: =IF(Select_Units="IP", 1,1/5.678) -> 0.1761183515 | EF12: French | EG12: English | EI12: =IF(Select_Lang="English",EJ42,EI42) -> Oil-fired, storage-type, <= 30.5 kW | EJ12: =EK42 -> 0.55 | EL12: Faucet flow ratio | EX12: Enter the return fan design total static pressure. It is important not to enter the external static pressure value, sometimes indicated on the equipment specifications. | FC12: L/min | FD12: =IF(Select_Units="IP", 1,3.785) -> 3.785 | FJ12: The installed recovery capacity divided by the total installed capacity of the SWH system, from the design specifications. If the heat recovery is limited to grey-water waste heat recovery then the installed recovery capacity is = Q * (Tin - Tout) * 4.182, where Q: flow rate (L/s), Tin: inlet temperature (warm) of the waste heat fluid (°C), Tout: outlet temperature (cold) of the waste heat fluid (°C). Value must be between 0 and 1. The conversion rate from litre per second to USGPM is 15.85 | FS12: Building conditioned Floor area | FV12: Building conditioned Floor area | GD12: Toronto | GE12: Ontario | GF12: 5
B13: Built-up multi-zone system | C13: 10 | E13: ToV8 | F13: 1 | G13: 1 | H13: 1 | I13: 1 | J13: 1 | K13: 1 | L13: 1 | M13: 1 | N13: 1 | O13: 1 | P13: 1 | Q13: 1 | R13: 1 | S13: 1 | T13: 1 | U13: 1 | V13: 1 | W13: 1 | X13: 1 | Y13: 1 | Z13: 1 | AA13: 1 | AB13: 1 | AC13: 1 | AD13: 0 | AE13: 0 | AF13: 1 | AI13: Heating coil design temperature drop | AL13: BaV8 | AM13: 3.29324 | AN13: 3.29324 | AO13: 3.29324 | AP13: 3.29324 | AQ13: 3.29324 | AR13: 3.29324 | AS13: 3.29324 | AT13: 3.29324 | AU13: 3.29324 | AV13: 3.29324 | AW13: 3.29324 | AX13: 3.29324 | AY13: 3.29324 | AZ13: 3.29 | BA13: 3.29 | BB13: 3.29 | BC13: 3.29 | BD13: 3.29 | BE13: 3.29324 | BF13: 3.29324 | BG13: 3.29324 | BH13: 3.29324 | BI13: 3.29 | BJ13: 3.29324 | BK13: 3.29324 | BL13: 3.29324 | BM13: 3.29 | BP13: Oil-fired boilers, residulal (No.5 or No.6 oil) and other, >= 733 kW | BQ13: ='Minimum efficiencies entries'!G20 -> 0.858 | BR13: Ec | BT13: Packaged Water Chillers | BX13: 6 | BY13: Riding fan curve | BZ13: 0.207 | CA13: 0.207 | CB13: 0.207 | CC13: 0.207 | CD13: 0.207 | CE13: 0.207 | CF13: 0.207 | CG13: 0.207 | CH13: 0.207 | CI13: 0.207 | CJ13: 0.207 | CK13: 0.207 | CL13: 0.207 | CM13: 0.207 | CN13: 0.207 | CO13: 0.207 | CP13: 0.207 | CQ13: 0.207 | CR13: 0.207 | CS13: 0.207 | CT13: 0.207 | CU13: 0.207 | CV13: 0.207 | CW13: 0.207 | CX13: 0.207 | CY13: 0.207 | CZ13: 0.207 | DC13: 1 | DD13: 9 | DE13: 9 | DF13: -0.07725552946 | DG13: 9.584044643e-06 | DH13: -3.299885895e-10 | DI13: 0.004848643557 | DJ13: -1.126298276e-06 | DK13: 6.597150296e-11 | DL13: HDD | DN13: Montreal | DO13: 4682 | DP13: 519 | DQ13: =DO13+DP13 -> 5201 | DW13: Pa | DX13: =IF(Select_Units="IP", 1,249.09) -> 249.09 | DZ13: Type de système de CVC : | EA13: System Type: | EF13: Oui | EG13: Yes | EI13: =IF(Select_Lang="English",EJ43,EI43) -> Oil-fired, storage-type, > 30.5 kW | EJ13: =EK43 -> 0.55 | EL13: Shower flow ratio | EX13: Enter the design temperature differential for the HVAC system heating coil. If multiple coils are present, use the capacity-weighted average value. | FC13: % | FD13: 1 | FJ13: Enter the average flow rate of all faucets served by the service water heating system. Value must be greater than 0.1 and smaller than 4 gpm (0.006309 and 15.14 L/min). | FS13: Climate zone: | FV13: Building Location Heating Degree-Days: | GD13: Castlegar | GE13: Br. Columbia | GF13: 5 | GJ13: Glossary | GL13: Glossaire
B14: Packaged multi-zone system | C14: 11 | E14: ToV9 | F14: 1 | G14: 1 | H14: 1 | I14: 1 | J14: 1 | K14: 1 | L14: 1 | M14: 1 | N14: 1 | O14: 1 | P14: 1 | Q14: 1 | R14: 1 | S14: 1 | T14: 1 | U14: 1 | V14: 1 | W14: 1 | X14: 1 | Y14: 1 | Z14: 1 | AA14: 1 | AB14: 1 | AC14: 1 | AD14: 0 | AE14: 0 | AF14: 1 | AI14: Baseboard heater design temperature drop | AL14: BaV9 | AM14: 1 | AN14: 1 | AO14: 0 | AP14: 0.6 | AQ14: 1 | AR14: 0.6 | AS14: 1 | AT14: 0.6 | AU14: 1.5 | AV14: 1 | AW14: 0.6 | AX14: 1 | AY14: 1 | AZ14: 0.6 | BA14: 0.6 | BB14: 0.6 | BC14: 0.6 | BD14: 0.6 | BE14: 1.5 | BF14: 1.5 | BG14: 1.5 | BH14: 0.6 | BI14: 0.6 | BJ14: 1.5 | BK14: 0.6 | BL14: 0.6 | BM14: 0.6 | BP14: Gas-fired warm-air furnaces, <= 117.23 kW | BQ14: ='Minimum efficiencies entries'!G21 -> 0.924 | BR14: AFUE | BX14: 15 | BY14: Dual DBT | BZ14: 0.8 | CA14: 0.8 | CB14: 0.85 | CC14: 0.85 | CD14: 0.85 | CE14: 0.8 | CF14: 0.85 | CG14: 0.85 | CH14: 0.85 | CI14: 0.8 | CJ14: 0.85 | CK14: 0.85 | CL14: 0.85 | CM14: 0.85 | CN14: 0.85 | CO14: 0.85 | CP14: 0.85 | CQ14: 0.85 | CR14: 0.85 | CS14: 0.85 | CT14: 0.85 | CU14: 0.85 | CV14: 0.85 | CW14: 0.85 | CX14: 0.85 | CY14: 0.85 | CZ14: 0.85 | DC14: 1 | DD14: 10 | DE14: 10 | DF14: 0 | DG14: 0 | DH14: 0 | DI14: 0 | DJ14: 0 | DK14: 0 | DL14: HDD | DN14: Toronto | DO14: 4176 | DP14: 533 | DQ14: =DO14+DP14 -> 4709 | DW14: °C | DX14: =IF(Select_Units="IP", 1,5/9) -> 0.5555555556 | DZ14: Type primaire de système de refroidissement : | EA14: Cooling System Type: | EF14: Non | EG14: No | EL14: Average flow of other uses | EX14: Enter the design temperature differential for the baseboard heaters. | FC14: % | FD14: 1 | FJ14: Enter the average flow rate of all shower heads served by the service water heating system. Value must be greater than 0.1 and smaller than 4 gpm (0.006309 and 15.14 L/min). | FS14: Building Location Cooling Degree-Days: | FV14: Building Location Cooling Degree-Days: | GD14: Victoria | GE14: Br. Columbia | GF14: 5 | GJ14: English | GL14: français
B15: Constant-volume dual-duct system | C15: 12 | E15: ToV10 | F15: 1 | G15: 1 | H15: 0 | I15: 1 | J15: 1 | K15: 1 | L15: 1 | M15: 1 | N15: 1 | O15: 1 | P15: 1 | Q15: 1 | R15: 1 | S15: 1 | T15: 1 | U15: 1 | V15: 1 | W15: 1 | X15: 1 | Y15: 1 | Z15: 1 | AA15: 1 | AB15: 1 | AC15: 1 | AD15: 1 | AE15: 1 | AF15: 1 | AI15: Boiler/furnace/heat pump heating efficiency | AL15: BaV10 | AM15: 20 | AN15: 20 | AO15: 20 | AP15: 20 | AQ15: 20 | AR15: 20 | AS15: 20 | AT15: 20 | AU15: 20 | AV15: 20 | AW15: 20 | AX15: 20 | AY15: 20 | AZ15: 20 | BA15: 20 | BB15: 20 | BC15: 20 | BD15: 20 | BE15: 20 | BF15: 20 | BG15: 20 | BH15: 20 | BI15: 20 | BJ15: 20 | BK15: 20 | BL15: 20 | BM15: 20 | BP15: Gas-fired warm-air furnaces, > 117.23 kW | BQ15: ='Minimum efficiencies entries'!G22 -> 0.81 | BR15: Et | BX15: 15 | BY15: Enthalpy | BZ15: 0.8000069136 | CA15: 0.8 | CB15: 0.9 | CC15: 0.9 | CD15: 0.9 | CE15: 0.8 | CF15: 0.9 | CG15: 0.9 | CH15: 0.9 | CI15: 0.8000025361 | CJ15: 0.9 | CK15: 0.9 | CL15: 0.9 | CM15: 0.9 | CN15: 0.9 | CO15: 0.9 | CP15: 0.9 | CQ15: 0.9 | CR15: 0.9 | CS15: 0.9 | CT15: 0.9 | CU15: 0.9 | CV15: 0.9 | CW15: 0.9 | CX15: 0.9 | CY15: 0.9 | CZ15: 0.9 | DC15: 1 | DD15: 11 | DE15: 11 | DF15: 0 | DG15: 0 | DH15: 0 | DI15: 0 | DJ15: 0 | DK15: 0 | DL15: HDD | DN15: Halifax | DO15: 4240 | DP15: 304 | DQ15: 4544 | DW15: °C | DX15: =IF(Select_Units="IP", 1,5/9) -> 0.5555555556 | DZ15: Type secondaire de système de refroidissement : | EA15: Cooling Sub-System Type: | EC15: French | ED15: English | EX15: Enter the heating equipment efficiency. For heat pumps, the COP must be expressed as fractions, such as 0.83 for 83% efficiency. For smaller equipment where only the AFUE is available, enter this value directly. If more than one piece of equipment is serving the system, enter the capacity-weighted average efficiency. If multiple energy sources are used, the fuel source of equipment providing the majority of the heating load must be selected. | EZ15: French | FA15: English | FC15: L | FD15: =IF(Select_Units="IP", 1,3.785) -> 3.785 | FG15: Type de système : | FH15: System Type: | FJ15: Define the typical weekly fraction of the hot water volume used by faucets through this service water heating system. Refer to standard calculation methods such as those presented in ASHRAE to evaluate this %. This value must be between 0% and 100%. | FN15: Conformité des systèmes de chauffage de l'eau sanitaire (CES) | FO15: Compliance of the service water heating (SWH) systems | FP15: Conformité des systèmes de chauffage, ventilation et conditionnement de l'air (CVCA) | FQ15: Compliance of the heating, ventilating and air-conditioning systems (HVAC) | FS15: Number of HVAC Systems in the Building: | FV15: Number of SWH Systems in the Building: | GD15: Prince Rupert | GE15: Br. Columbia | GF15: 6
B16: Variable-volume dual-duct system | C16: 13 | E16: ToV11 | F16: 1 | G16: 1 | H16: 1 | I16: 1 | J16: 1 | K16: 1 | L16: 1 | M16: 1 | N16: 1 | O16: 0 | P16: 0 | Q16: 0 | R16: 0 | S16: 1 | T16: 1 | U16: 1 | V16: 1 | W16: 1 | X16: 1 | Y16: 1 | Z16: 1 | AA16: 0 | AB16: 1 | AC16: 1 | AD16: 1 | AE16: 1 | AF16: 1 | AI16: Chillers/direct expansion system/heat pump cooling efficiency | AL16: BaV11 | AM16: 20 | AN16: 20 | AO16: 20 | AP16: 20 | AQ16: 20 | AR16: 20 | AS16: 20 | AT16: 20 | AU16: 20 | AV16: 20 | AW16: 20 | AX16: 20 | AY16: 20 | AZ16: 20 | BA16: 20 | BB16: 20 | BC16: 20 | BD16: 20 | BE16: 20 | BF16: 20 | BG16: 20 | BH16: 20 | BI16: 20 | BJ16: 20 | BK16: 20 | BL16: 20 | BM16: 20 | BP16: Gas-fired duct furnaces, <= 117.23 kW | BQ16: ='Minimum efficiencies entries'!G23 -> 0.81 | BR16: Et | BT16: Sub-System | BX16: 15 | BY16: Dual Enthalpy | BZ16: 0.800499445 | CA16: 0.8000057729 | CB16: 0.95 | CC16: 0.95 | CD16: 0.95 | CE16: 0.8 | CF16: 0.95 | CG16: 0.95 | CH16: 0.95 | CI16: 0.8000354321 | CJ16: 0.95 | CK16: 0.95 | CL16: 0.95 | CM16: 0.95 | CN16: 0.95 | CO16: 0.95 | CP16: 0.95 | CQ16: 0.95 | CR16: 0.95 | CS16: 0.95 | CT16: 0.95 | CU16: 0.95 | CV16: 0.95 | CW16: 0.95 | CX16: 0.95 | CY16: 0.95 | CZ16: 0.95 | DC16: 1 | DD16: 12 | DE16: 12 | DF16: 0.7747799077 | DG16: 2.128507873e-06 | DH16: 3.76325334e-09 | DI16: 0 | DJ16: 0 | DK16: 0 | DL16: HDD | DN16: Vancouver | DO16: 3157 | DP16: 220 | DQ16: 3377 | DW16: Fraction | DX16: 1 | DZ16: Puissance de refroidissement : | EA16: Cooling capacity: | EC16: Le système de CVCA est considéré conforme à la section 5.3 | ED16: HVAC system deemed to comply with Section 5.3 | EX16: Enter the cooling equipment efficiency. All efficiencies have to be entered in terms of COP. If more than one piece of equipment is serving the system, enter the capacity-weighted average efficiency. | EZ16: Le système de CES est considéré conforme à la section 6.3 | FA16: The SWH system is deemed to comply with Section 6.3 | FG16: Type d'appareil : | FH16: Equipment Type: | FJ16: Define the typical weekly fraction of the hot water volume used by showers through this service water heating system. Refer to standard calculation methods such as those presented in ASHRAE to evaluate this %. This value must be between 0% and 100%. | FS16: Overall HVAC-TOI: | FV16: Overall SWH-TOI: | GD16: Halifax | GE16: Nova Scotia | GF16: 6 | GJ16: OA | GK16: Outdoor Air | GL16: AE | GM16: Air extérieur
B17: Two-pipe fan coil with optional make-up air unit | C17: 14 | E17: ToV12 | F17: 1 | G17: 1 | H17: 1 | I17: 1 | J17: 1 | K17: 1 | L17: 1 | M17: 1 | N17: 1 | O17: 1 | P17: 1 | Q17: 1 | R17: 1 | S17: 1 | T17: 1 | U17: 1 | V17: 1 | W17: 1 | X17: 1 | Y17: 1 | Z17: 1 | AA17: 1 | AB17: 1 | AC17: 1 | AD17: 1 | AE17: 1 | AF17: 1 | AI17: Rejection fan input power ratio | AL17: BaV12 | AM17: 0.8 | AN17: 0.8 | AO17: 0.8 | AP17: 0.8 | AQ17: 0.8 | AR17: 0.8 | AS17: 0.8 | AT17: 0.8 | AU17: 0.8 | AV17: 0.8 | AW17: 0.8 | AX17: 0.8 | AY17: 0.8 | AZ17: 0.8 | BA17: 0.8 | BB17: 0.8 | BC17: 0.8 | BD17: 3.095975232 | BE17: 0.8 | BF17: 0.8 | BG17: 0.8 | BH17: 0.8 | BI17: 0.8 | BJ17: 0.8 | BK17: 0.85 | BL17: 0.8 | BM17: 0.8 | BP17: Gas-fired unit heaters, <= 117.23 kW | BQ17: ='Minimum efficiencies entries'!G24 -> 0.82 | BR17: Et | BT17: =IF(Select_Lang="English",BU170,BT170) -> Split System <= 19 (65000) | BU17: ='Minimum efficiencies entries'!C10 -> 4.394960445 | BV17: SEER | BX17: 15 | BY17: Fixed | BZ17: 0.7611739734 | CA17: 0.8007197878 | CB17: 0 | CC17: 0 | CD17: 0 | CE17: 0 | CF17: 0 | CG17: 0 | CH17: 0 | CI17: 0.78 | CJ17: 0 | CK17: 0 | CL17: 0 | CM17: 0 | CN17: 0 | CO17: 0 | CP17: 0 | CQ17: 0 | CR17: 0 | CS17: 0 | CT17: 0 | CU17: 0 | CV17: 0 | CW17: 0 | CX17: 0 | CY17: 0 | CZ17: 0 | DC17: 1 | DD17: 13 | DE17: 13 | DF17: 0.07436393646 | DG17: 3.208216569e-06 | DH17: -1.107977973e-09 | DI17: -0.00446391885 | DJ17: -2.334245925e-07 | DK17: 7.025774705e-11 | DL17: HDD | DN17: Winnipeg | DO17: 6032 | DP17: 415 | DQ17: 6447 | DW17: COP | DX17: 1 | DZ17: Type de système de chauffage : | EA17: Heating System Type: | EC17: Le système de CVCA est considéré non conforme à la section 5.3 | ED17: HVAC system does not comply with Section 5.3 | EX17: Enter the heat rejection equipment unitary fan power. This value represents the ratio of the total installed fan power of the equipment divided by its heat rejection capacity, expressed in the same unit. | EZ17: Le système de CES est considéré non conforme à la section 6.3 | FA17: The SHW system does not comply with Section 6.3 | FG17: Volume du réservoir : | FH17: Tank Volume: | FJ17: Enter the average flow rates of all other appliances using hot water in this system. A default value of 7.6 L/min (2 gpm) can be used if other design data is unavailable. This value must be greater between 0 and 378.5 L/min and (100 gpm). | FS17: Number of Compliant Systems: | FV17: Number of Compliant Systems: | GD17: Yarmouth | GE17: Nova Scotia | GF17: 6 | GJ17: SPVAC | GK17: Single Package Vertical Air Conditioner | GL17: CAVM | GM17: Conditionneurs d'air verticaux monoblocs
B18: Four-pipe fan coil with optional make-up air unit | C18: 15 | E18: ToV13 | F18: 1 | G18: 1 | H18: 1 | I18: 1 | J18: 1 | K18: 1 | L18: 1 | M18: 1 | N18: 1 | O18: 1 | P18: 1 | Q18: 1 | R18: 1 | S18: 1 | T18: 1 | U18: 1 | V18: 1 | W18: 1 | X18: 1 | Y18: 1 | Z18: 1 | AA18: 1 | AB18: 1 | AC18: 1 | AD18: 0 | AE18: 0 | AF18: 1 | AI18: Cooling by direct use of outdoor air (air economizer) | AL18: BaV13 | AM18: 5.2 | AN18: 5.2 | AO18: 2.95945546 | AP18: 5.2 | AQ18: 2.777777778 | AR18: 2.777777778 | AS18: 5.2 | AT18: 2.777777778 | AU18: 5.200208008 | AV18: 5.2 | AW18: 2.8 | AX18: 5.2 | AY18: 5.2 | AZ18: 5.2 | BA18: 5.2 | BB18: 5.2 | BC18: 3.52 | BD18: 3.937007874 | BE18: 5.2 | BF18: 5.2 | BG18: 5.2 | BH18: 2.95945546 | BI18: 5.2 | BJ18: 5.2 | BK18: 5.2 | BL18: 5.2 | BM18: 5.2 | BP18: Oil-fired warm-air furnaces, <= 66 kW | BQ18: ='Minimum efficiencies entries'!G25 -> 0.845 | BR18: Et | BT18: Single-package systems <= 19 (65000) | BU18: ='Minimum efficiencies entries'!C11 -> 4.101963082 | BV18: SEER | BX18: 15 | BY18: Dry Bulb | BZ18: 0.8 | CA18: 0.8 | CB18: 0.8 | CC18: 0.8 | CD18: 0.8 | CE18: 0.8 | CF18: 0.8 | CG18: 0.8 | CH18: 0.8 | CI18: 0.8 | CJ18: 0.8 | CK18: 0.8 | CL18: 0.8 | CM18: 0.8 | CN18: 0.8 | CO18: 0.8 | CP18: 0.8 | CQ18: 0.8 | CR18: 0.8 | CS18: 0.8 | CT18: 0.8 | CU18: 0.8 | CV18: 0.8 | CW18: 0.8 | CX18: 0.8 | CY18: 0.8 | CZ18: 0.8 | DC18: 1 | DD18: 14 | DE18: 14 | DF18: 0.1120893241 | DG18: -0.0001660536807 | DH18: 1.65200611e-08 | DI18: -0.4322183596 | DJ18: 0.0001884260518 | DK18: -1.581359019e-08 | DL18: TDD | DN18: Yellowknife | DO18: 8642 | DP18: 141 | DQ18: 8783 | DW18: W/W | DX18: =IF(Select_Units="IP", 1,3.413) -> 3.413 | EC18: Données d'entrée incomplètes | ED18: Incomplete data entry | EX18: Select the type of air-side economizer used in this HVAC system. | EZ18: Données d'entrée incomplètes | FA18: Incomplete data entry | FS18: Number of non-Compliant Systems: | FV18: Number of non-Compliant Systems: | GD18: London | GE18: Ontario | GF18: 6 | GJ18: SPVHP | GK18: Single Package Vertical Heat Pump | GL18: TVM | GM18: Themopompes verticales monoblocs
B19: Three-pipe fan coil with optional make-up air unit | C19: 16 | E19: ToV14 | F19: 1 | G19: 1 | H19: 1 | I19: 1 | J19: 1 | K19: 1 | L19: 1 | M19: 1 | N19: 1 | O19: 1 | P19: 1 | Q19: 1 | R19: 1 | S19: 1 | T19: 1 | U19: 1 | V19: 1 | W19: 0 | X19: 1 | Y19: 1 | Z19: 1 | AA19: 1 | AB19: 1 | AC19: 1 | AD19: 0 | AE19: 0 | AF19: 1 | AI19: Outdoor airflow control | AL19: BaV14 | AM19: 0.015 | AN19: 0.015 | AO19: 0.015 | AP19: 0.015 | AQ19: 0.015 | AR19: 0.015 | AS19: 0.015 | AT19: 0.015 | AU19: 0.015 | AV19: 0.015 | AW19: 0.015 | AX19: 0.015 | AY19: 0.015 | AZ19: 0.015 | BA19: 0.015 | BB19: 0.015 | BC19: 0.015 | BD19: 0.015 | BE19: 0.015 | BF19: 0.015 | BG19: 0.015 | BH19: 0.015 | BI19: 0.015 | BJ19: 0.015 | BK19: 0.015 | BL19: 0.015 | BM19: 0.015 | BP19: Oil-fired warm-air furnaces, > 66 kW | BQ19: ='Minimum efficiencies entries'!G26 -> 0.813 | BR19: Et | BT19: All phases > 19 (65000) and < 73 (250000) | BU19: ='Minimum efficiencies entries'!C12 -> 2.842074421 | BV19: EER | BX19: 16 | BY19: Fraction of hourly | BZ19: 0.8434822792 | CA19: 0.8000118379 | CB19: 0 | CC19: 0 | CD19: 0.85 | CE19: 0.85 | CF19: 0.85 | CG19: 0.85 | CH19: 0.85 | CI19: 0.8 | CJ19: 0.85 | CK19: 0.85 | CL19: 0.85 | CM19: 0 | CN19: 0 | CO19: 0 | CP19: 0 | CQ19: 0 | CR19: 0 | CS19: 0 | CT19: 0 | CU19: 0 | CV19: 0 | CW19: 0 | CX19: 0 | CY19: 0 | CZ19: 0 | DC19: 1 | DD19: 15 | DE19: 15 | DF19: 99.51521016 | DG19: -0.4685513733 | DH19: 0.0004601457061 | DI19: -63.6506277 | DJ19: 0.3051310556 | DK19: -0.000303073254 | DL19: CDD | DW19: Selection | DX19: 1 | EX19: Select the type of outdoor air control used for this HVAC system (DCV = Demand control ventilation). | FS19: Statement of Compliance | FV19: Statement of Compliance | GD19: Trenton | GE19: Ontario | GF19: 6 | GJ19: PTHP | GK19: Packaged Terminal Heat Pump | GL19: CAIL | GM19: Conditionneurs d'air intégrées locales
B20: Water-loop heat pump with optional make-up air unit | C20: 17 | E20: ToV15 | F20: 1 | G20: 1 | H20: 1 | I20: 1 | J20: 1 | K20: 1 | L20: 1 | M20: 1 | N20: 1 | O20: 1 | P20: 1 | Q20: 1 | R20: 1 | S20: 0 | T20: 0 | U20: 0 | V20: 0 | W20: 0 | X20: 1 | Y20: 1 | Z20: 1 | AA20: 1 | AB20: 0 | AC20: 0 | AD20: 0 | AE20: 0 | AF20: 0 | AI20: Exhaust air heat-recovery efficiency | AL20: BaV15 | AM20: 0.8 | AN20: 0.8 | AO20: 0.8 | AP20: 0.8 | AQ20: 0.8 | AR20: 0.8 | AS20: 0.8 | AT20: 0.8 | AU20: 0.8 | AV20: 0.8 | AW20: 0.8 | AX20: 0.8 | AY20: 0.8 | AZ20: 0.8 | BA20: 0.8 | BB20: 0.8 | BC20: 0.8 | BD20: 0.8 | BE20: 0.8 | BF20: 0.8 | BG20: 0.8 | BH20: 0.8 | BI20: 0.8 | BJ20: 0.8 | BK20: 0.8 | BL20: 0.8 | BM20: 0.8 | BP20: Oil-fired duct furnaces or unit heaters | BQ20: ='Minimum efficiencies entries'!G27 -> 0.81 | BR20: Et | BT20: Air conditioners, all phases, split and single package >= 19 kW and < 40 kW, electric resistance heating section | BU20: ='Minimum efficiencies entries'!C13 -> 3.28 | BV20: COP | BX20: 16 | BY20: DCV Return | BZ20: 0.9091147561 | CA20: 0.8510818938 | CB20: 0.9 | CC20: 0.9 | CD20: 0.9 | CE20: 0.9 | CF20: 0.9 | CG20: 0.9 | CH20: 0.9 | CI20: 0.849310871 | CJ20: 0.9 | CK20: 0.9 | CL20: 0.9 | CM20: 0.2601792647 | CN20: 0.2601792647 | CO20: 0.2601792647 | CP20: 0.12 | CQ20: 0.12 | CR20: 0.12 | CS20: 0.12 | CT20: 0.12 | CU20: 0.9 | CV20: 0.12 | CW20: 0.117238915 | CX20: 0.9 | CY20: 0.9 | CZ20: 0.9 | DC20: 1 | DD20: 16 | DE20: 16 | DF20: -1.162000963 | DG20: 2.173776169e-05 | DH20: 6.84518845e-09 | DI20: 1.298550499 | DJ20: -1.210301329e-06 | DK20: -7.953988867e-09 | DL20: TDD | DW20: Selection | DX20: 1 | EX20: Enter the design heat recovery effectiveness. | FS20: This Certificate of Compliance lists the Building features as per actual building permit drawings and specifications in accordance with Part 5.3 of the National Energy Code for Buildings. | FV20: This Certificate of Compliance lists the Building features as per actual building permit drawings and specifications in accordance with Part 6.3 of the National Energy Code for Buildings. | GD20: Montreal (Dorval) | GE20: Quebec | GF20: 6 | GJ20: PTAC | GK20: Packaged Terminal Air Conditioner | GL20: TIL | GM20: Thermopompes intégrées locales
B21: Ground-source heat pump with optional make-up air unit | C21: 18 | E21: ToV16 | F21: 1 | G21: 1 | H21: 1 | I21: 1 | J21: 1 | K21: 1 | L21: 1 | M21: 1 | N21: 1 | O21: 1 | P21: 1 | Q21: 1 | R21: 1 | S21: 1 | T21: 1 | U21: 1 | V21: 1 | W21: 1 | X21: 1 | Y21: 1 | Z21: 1 | AA21: 1 | AB21: 1 | AC21: 1 | AD21: 0 | AE21: 1 | AF21: 1 | AI21: Cooling by indirect use of outdoor air (water economizer) | AL21: BaV16 | AM21: 0 | AN21: 0.8 | AO21: 0 | AP21: 0 | AQ21: 0 | AR21: 0 | AS21: 0 | AT21: 0 | AU21: 0 | AV21: 0.8 | AW21: 0 | AX21: 0 | AY21: 0 | AZ21: 0 | BA21: 0 | BB21: 0 | BC21: 0 | BD21: 0 | BE21: 0 | BF21: 0 | BG21: 0 | BH21: 0 | BI21: 0 | BJ21: 0 | BK21: 0 | BL21: 0 | BM21: 0 | BT21: Air conditioners, all phases, split and single package >= 19 kW and < 40 kW, other heating section | BU21: ='Minimum efficiencies entries'!C14 -> 3.22 | BV21: COP | BX21: 16 | BY21: DCV Supply | BZ21: 0.9059255707 | CA21: 0.8510481733 | CB21: 0.88 | CC21: 0.88 | CD21: 0.88 | CE21: 0.88 | CF21: 0.88 | CG21: 0.88 | CH21: 0.88 | CI21: 0.8493029088 | CJ21: 0.88 | CK21: 0.88 | CL21: 0.88 | CM21: 0.2407500159 | CN21: 0.2407500159 | CO21: 0.2407500159 | CP21: 0.11 | CQ21: 0.11 | CR21: 0.11 | CS21: 0.11 | CT21: 0.11 | CU21: 0.88 | CV21: 0.11 | CW21: 0.1088339425 | CX21: 0.88 | CY21: 0.88 | CZ21: 0.88 | DC21: 1 | DD21: 17 | DE21: 17 | DF21: 0.02682719667 | DG21: -2.528640868e-05 | DH21: 5.176108948e-09 | DI21: -0.02883856584 | DJ21: 2.113003841e-05 | DK21: -3.501758751e-09 | DL21: TDD | DW21: % | DX21: 1 | EL21: Efficacité de l'équipement de chauffage de l'eau sanitaire | EM21: Service water heating equipment efficiency | EO21: Réservoir | EP21: Tank | EX21: Enter the design water-side cooling coil heat exchange effectiveness. | FS21: National Energy Code for Buildings | FV21: National Energy Code for Buildings | GD21: Greenwood | GE21: Nova Scotia | GF21: 6 | GJ21: VSD | GK21: Variable Speed Drive | GL21: CVD | GM21: Contrôle de la ventilation selon la demande
B22: Induction unit, two-pipe | C22: 19 | E22: ToV17 | F22: 1 | G22: 1 | H22: 1 | I22: 1 | J22: 1 | K22: 1 | L22: 1 | M22: 1 | N22: 1 | O22: 1 | P22: 1 | Q22: 1 | R22: 1 | S22: 1 | T22: 1 | U22: 1 | V22: 1 | W22: 1 | X22: 1 | Y22: 1 | Z22: 1 | AA22: 0 | AB22: 1 | AC22: 1 | AD22: 0 | AE22: 0 | AF22: 1 | AI22: Piping insulation - hot water | AL22: BaV17 | AM22: 0 | AN22: 0 | AO22: 0 | AP22: 0 | AQ22: 0 | AR22: 0 | AS22: 0 | AT22: 0 | AU22: 0 | AV22: 0 | AW22: 0 | AX22: 0 | AY22: 0 | AZ22: 0 | BA22: 0 | BB22: 0 | BC22: 0 | BD22: 0 | BE22: 0 | BF22: 0 | BG22: 0 | BH22: 0 | BI22: 0 | BJ22: 0 | BK22: 0 | BL22: 0 | BM22: 0 | BT22: Air conditioners, all phases, split and single package >= 40 kW and < 70 kW, electric resistance heating section | BU22: ='Minimum efficiencies entries'!C15 -> 3.22 | BV22: COP | BX22: 16 | BY22: DCV, fraction of hourly, Return | BZ22: 0.9298675019 | CA22: 0.8510818938 | CB22: 0.93 | CC22: 0.93 | CD22: 0.93 | CE22: 0.93 | CF22: 0.93 | CG22: 0.93 | CH22: 0.93 | CI22: 0.849310871 | CJ22: 0.93 | CK22: 0.93 | CL22: 0.93 | CM22: 0.2601509701 | CN22: 0.2601509701 | CO22: 0.2601509701 | CP22: 0.12 | CQ22: 0.12 | CR22: 0.12 | CS22: 0.12 | CT22: 0.12 | CU22: 0.93 | CV22: 0.12 | CW22: 0.117238915 | CX22: 0.93 | CY22: 0.93 | CZ22: 0.93 | DC22: 1 | DD22: 18 | DE22: 18 | DF22: -0.01193172044 | DG22: 8.377962252e-05 | DH22: -1.196564748e-07 | DI22: 0.01623709874 | DJ22: -2.165133149e-05 | DK22: 2.748011119e-08 | DL22: CDD | DW22: % | DX22: 1 | EL22: Indice d'isolation du réservoir | EM22: Tank insulation value | EO22: Sans réservoir (instantanné) | EP22: Tankless (instantaneous) | EX22: Enter the average piping insulation value. | FS22: Documentation Author | FV22: Documentation Author | GD22: Terrace | GE22: Br. Columbia | GF22: 6 | GJ22: DCV | GK22: Demand Control Ventilation | GL22: TTS | GM22: Température de thermomètre sec
B23: Induction unit, four-pipe | C23: 20 | E23: ToV18 | F23: 1 | G23: 1 | H23: 0 | I23: 1 | J23: 0 | K23: 0 | L23: 1 | M23: 0 | N23: 1 | O23: 1 | P23: 0 | Q23: 1 | R23: 1 | S23: 1 | T23: 1 | U23: 1 | V23: 1 | W23: 0 | X23: 1 | Y23: 1 | Z23: 1 | AA23: 0 | AB23: 1 | AC23: 1 | AD23: 0 | AE23: 0 | AF23: 1 | AI23: Piping insulation - chilled water | AL23: BaV18 | AM23: 0 | AN23: 0 | AO23: 0 | AP23: 0 | AQ23: 0 | AR23: 0 | AS23: 0 | AT23: 0 | AU23: 0 | AV23: 0 | AW23: 0 | AX23: 0 | AY23: 0 | AZ23: 0 | BA23: 0 | BB23: 0 | BC23: 4.2017 | BD23: 4.2017 | BE23: 0 | BF23: 0 | BG23: 0 | BH23: 0 | BI23: 0 | BJ23: 0 | BK23: 0 | BL23: 0 | BM23: 0 | BP23: French | BQ23: English | BT23: Air conditioners, all phases, split and single package >= 40 kW and < 70 kW, other heating section | BU23: ='Minimum efficiencies entries'!C16 -> 3.16 | BV23: COP | BX23: 16 | BY23: Fixed | BZ23: 0 | CA23: 0.8 | CB23: 0 | CC23: 0 | CD23: 0 | CE23: 0 | CF23: 0 | CG23: 0 | CH23: 0 | CI23: 0.8 | CJ23: 0 | CK23: 0 | CL23: 0 | CM23: 0 | CN23: 0 | CO23: 0 | CP23: 0 | CQ23: 0 | CR23: 0 | CS23: 0 | CT23: 0 | CU23: 0 | CV23: 0 | CW23: 0 | CX23: 0 | CY23: 0 | CZ23: 0 | DC23: 1 | DD23: 19 | DE23: 19 | DF23: 0.08839053746 | DG23: -2.09854234e-05 | DH23: 1.345054751e-09 | DI23: -0.006071423517 | DJ23: 1.451780995e-06 | DK23: -9.134494093e-11 | DL23: TDD | DW23: RSI Value | DX23: =IF(Select_Units="IP", 1,1/5.678) -> 0.1761183515 | EL23: Indice d'isolation des tuyauteries | EM23: Piping insulation value | EO23: Chaudière pour le chauffage des espaces | EP23: Space-heating boiler | EX23: Enter the average piping insulation value. | FS23: The Coordinating Professional hereby certifies that the proposed building design represented in the construction documents and modelled for this permit application are consistent with all other forms and worksheets, specifications, and other calculations submitted with this permit application. The proposed building, as designed, meets the requirements of the National Energy Code for Buildings. | FV23: The Coordinating Professional hereby certifies that the proposed building design represented in the construction documents and modelled for this permit application are consistent with all other forms and worksheets, specifications, and other calculations submitted with this permit application. The proposed building, as designed, meets the requirements of the National Energy Code for Buildings. | GD23: Ottawa | GE23: Ontario | GF23: 6 | GJ23: DBT | GK23: Dry Bulb Temperature | GL23: VAIAL | GM23: Ventilateur à aubes inclées vers l’avant avec lames
B24: Induction unit, three-pipe | C24: 21 | E24: ToV19 | F24: 1 | G24: 1 | H24: 1 | I24: 1 | J24: 1 | K24: 1 | L24: 1 | M24: 1 | N24: 1 | O24: 1 | P24: 1 | Q24: 1 | R24: 1 | S24: 1 | T24: 1 | U24: 1 | V24: 0 | W24: 1 | X24: 1 | Y24: 1 | Z24: 1 | AA24: 1 | AB24: 1 | AC24: 1 | AD24: 1 | AE24: 1 | AF24: 1 | AI24: Piping pressure losses - hot water | AL24: BaV19 | AM24: 5 | AN24: 5 | AO24: 5 | AP24: 5 | AQ24: 5 | AR24: 5 | AS24: 5 | AT24: 5 | AU24: 5 | AV24: 5 | AW24: 5 | AX24: 5 | AY24: 5 | AZ24: 5 | BA24: 5 | BB24: 5 | BC24: 5 | BD24: 5 | BE24: 5 | BF24: 5 | BG24: 5 | BH24: 5 | BI24: 5 | BJ24: 5 | BK24: 5 | BL24: 5 | BM24: 5 | BP24: Chaudieres electriques | BQ24: Electric boilers | BT24: Air conditioners, all phases, split and single package >= 70 kW and < 223 kW, electric resistance heating section | BU24: ='Minimum efficiencies entries'!C17 -> 2.93 | BV24: COP | BX24: 27 | BY24: Demand-only | BZ24: 0.8554924532 | CA24: 0.7970895152 | CB24: 0.8913112147 | CC24: 0.89921354 | CD24: 0.8472830429 | CE24: 0.7971267736 | CF24: 0.8252341926 | CG24: 0.8419976025 | CH24: 0.8477853594 | CI24: 0.781803632 | CJ24: 0.7785287493 | CK24: 0.7815845628 | CL24: 0.8019251918 | CM24: 0.9857354512 | CN24: 0.9588387545 | CO24: 0.9588387545 | CP24: 0.96 | CQ24: 0.96 | CR24: 0.8 | CS24: 1.02 | CT24: 1.02 | CU24: 0.9499716562 | CV24: 1.071874062 | CW24: 1.096438886 | CX24: 0.8651292231 | CY24: 0.8634476693 | CZ24: 1.071874062 | DC24: 1 | DD24: 20 | DE24: 20 | DF24: 2.706660352e-05 | DG24: 5.514784086e-06 | DH24: -7.091884457e-09 | DI24: 7.653204546e-06 | DJ24: -2.891702901e-07 | DK24: 3.200927069e-10 | DL24: CDD | DW24: RSI Value | DX24: =IF(Select_Units="IP", 1,1/5.678) -> 0.1761183515 | EL24: Efficacité du moteur de la pompe | EM24: Pump motor efficiency | EX24: Enter the total hydronic heating system pressure losses. In the case of multiple loops associated with a single HVAC system, enter the equivalent head calculated using the flow and head of each loop and expressed as an equivalent head for the loop having the largest flow rate. | FS24: I hereby affirm that I am eligible, under the provisions of the authorities having jurisdiction, to sign this document as the person responsible for its preparation; and that I am licensed as a civil engineer, mechanical engineer, electrical engineer or architect. | FV24: I hereby affirm that I am eligible, under the provisions of the authorities having jurisdiction, to sign this document as the person responsible for its preparation; and that I am licensed as a civil engineer, mechanical engineer, electrical engineer or architect. | GD24: Charlottetown | GE24: P.E.I. | GF24: 6 | GJ24: VAV | GK24: Variable Air Volume | GL24: VAPAL | GM24: Ventilateur à aubes à profil aérodynamique avec lames
B25: Packaged terminal AC - split | C25: 22 | E25: ToV20 | F25: 1 | G25: 1 | H25: 0 | I25: 1 | J25: 0 | K25: 0 | L25: 1 | M25: 0 | N25: 1 | O25: 1 | P25: 0 | Q25: 1 | R25: 1 | S25: 1 | T25: 1 | U25: 1 | V25: 1 | W25: 1 | X25: 1 | Y25: 1 | Z25: 1 | AA25: 0 | AB25: 1 | AC25: 1 | AD25: 0 | AE25: 0 | AF25: 1 | AI25: Piping pressure losses - chilled water | AL25: BaV20 | AM25: 5 | AN25: 5 | AO25: 5 | AP25: 5 | AQ25: 5 | AR25: 5 | AS25: 5 | AT25: 5 | AU25: 5 | AV25: 5 | AW25: 5 | AX25: 5 | AY25: 5 | AZ25: 5 | BA25: 5 | BB25: 5 | BC25: 5 | BD25: 5 | BE25: 5 | BF25: 5 | BG25: 5 | BH25: 5 | BI25: 5 | BJ25: 5 | BK25: 5 | BL25: 5 | BM25: 5 | BP25: Chaudieres au gaz < 88 (300000) | BQ25: Gas-fired boilers, < 88 kW | BT25: Air conditioners, all phases, split and single package >= 70 kW and < 223 kW, electric resistance heating section | BU25: ='Minimum efficiencies entries'!C18 -> 2.87 | BV25: COP | BX25: 27 | BY25: Standby | BZ25: 0.7954288836 | CA25: 0.7848538915 | CB25: 0.7831165579 | CC25: 0.7815552326 | CD25: 0.7858706523 | CE25: 0.7833857715 | CF25: 0.7915066467 | CG25: 0.7903580124 | CH25: 0.7863507472 | CI25: 0.781803632 | CJ25: 0.7785287493 | CK25: 0.7815845628 | CL25: 0.7979801903 | CM25: 0.7715449919 | CN25: 0.7709360349 | CO25: 0.7709360349 | CP25: 0.77 | CQ25: 0.77 | CR25: 0.6216350824 | CS25: 0.77 | CT25: 0.77 | CU25: 0.7754265075 | CV25: 0.7851441909 | CW25: 0.7665396915 | CX25: 0.7911099909 | CY25: 0.7912131229 | CZ25: 0.7851441909 | DC25: 1 | DD25: 21 | DE25: 21 | DF25: -0.0001786027047 | DG25: -1.741885181e-08 | DH25: 1.281918355e-12 | DI25: 1.948451364e-07 | DJ25: -4.486123883e-11 | DK25: 4.201760545e-15 | DL25: HDD | DW25: kPa | DX25: =IF(Select_Units="IP", 1,2.989) -> 2.989 | EL25: Efficacité de la pompe | EM25: Pump efficiency | EX25: Enter the total hydronic cooling system pressure losses. In the case of multiple loops associated with a single HVAC system, enter the equivalent head calculated using the flow and head of each loop and expressed as an equivalent head for the loop having the largest flow rate. | FS25: I affirm that I am eligible to sign this document as the person responsible for its preparation; and for the following reason: | FV25: I affirm that I am eligible to sign this document as the person responsible for its preparation; and for the following reason: | GD25: St. Hubert | GE25: Quebec | GF25: 6 | GL25: VAPA | GM25: Ventilateur à aubes à profil aérodynamique
B26: Radiant (in-floor, ceiling) with optional make-up air unit | C26: 23 | E26: ToV21 | F26: 1 | G26: 1 | H26: 1 | I26: 1 | J26: 1 | K26: 1 | L26: 1 | M26: 1 | N26: 1 | O26: 1 | P26: 1 | Q26: 1 | R26: 1 | S26: 1 | T26: 1 | U26: 1 | V26: 0 | W26: 0 | X26: 1 | Y26: 1 | Z26: 1 | AA26: 1 | AB26: 1 | AC26: 1 | AD26: 1 | AE26: 1 | AF26: 1 | AI26: Pump mechanical efficiency - hot water | AL26: BaV21 | AM26: 60 | AN26: 60 | AO26: 60 | AP26: 60 | AQ26: 60 | AR26: 60 | AS26: 60 | AT26: 60 | AU26: 60 | AV26: 60 | AW26: 60 | AX26: 60 | AY26: 60 | AZ26: 60 | BA26: 60 | BB26: 60 | BC26: 60 | BD26: 60 | BE26: 60 | BF26: 60 | BG26: 60 | BH26: 60 | BI26: 60 | BJ26: 60 | BK26: 60 | BL26: 60 | BM26: 60 | BP26: Chaudieres au gaz >= 88 (300000) et < 733 (2500000) | BQ26: Gas-fired boilers, >= 88 kW and < 733 kW | BT26: Air conditioners, all phases, split and single package >= 223 kW, electric resistance heating section | BU26: ='Minimum efficiencies entries'!C19 -> 2.84 | BV26: COP | BX26: 27 | BY26: Snap zone | BZ26: 0.8066272914 | CA26: 0.7868805391 | CB26: 0.8517318688 | CC26: 0.8566539856 | CD26: 0.8026074131 | CE26: 0.7857396832 | CF26: 0.7991379262 | CG26: 0.802931019 | CH26: 0.802119333 | CI26: 0.8498100224 | CJ26: 0.8510216045 | CK26: 0.8484614921 | CL26: 0.8009028065 | CM26: 0.905950277 | CN26: 0.8939340775 | CO26: 0.8939340775 | CP26: 0.89 | CQ26: 0.89 | CR26: 0.7743373444 | CS26: 0.88 | CT26: 0.88 | CU26: 0.8841108918 | CV26: 1.008868127 | CW26: 0.8987557102 | CX26: 0.8683435244 | CY26: 0.8661845892 | CZ26: 1.008868127 | DC26: 1 | DD26: 22 | DE26: 22 | DF26: 4.462607014e-05 | DG26: -1.355484465e-06 | DH26: 1.642857811e-09 | DI26: -1.699140063e-08 | DJ26: -7.295946241e-10 | DK26: 1.24254248e-12 | DL26: CDD | DW26: kPa | DX26: =IF(Select_Units="IP", 1,2.989) -> 2.989 | EL26: Coefficient de récupération de chaleur | EM26: Heat recovery ratio | EX26: Enter the pump motor efficiency. When multiple pumps serve the system, use the power-weighted average pump efficiency. | FS26: Coordinating Professional: | FV26: Coordinating Professional: | GD26: Lethbridge | GE26: Alberta | GF26: 6 | GL26: CVCA | GM26: Chauffage, ventilation et conditionement d'air
B27: Active chilled beams with optional make-up air unit | C27: 24 | E27: ToV22 | F27: 1 | G27: 1 | H27: 0 | I27: 1 | J27: 0 | K27: 0 | L27: 1 | M27: 0 | N27: 1 | O27: 1 | P27: 0 | Q27: 1 | R27: 1 | S27: 1 | T27: 1 | U27: 1 | V27: 1 | W27: 1 | X27: 1 | Y27: 1 | Z27: 1 | AA27: 0 | AB27: 1 | AC27: 1 | AD27: 0 | AE27: 0 | AF27: 1 | AI27: Pump mechanical efficiency - chilled water | AL27: BaV22 | AM27: 40 | AN27: 40 | AO27: 40 | AP27: 40 | AQ27: 40 | AR27: 40 | AS27: 40 | AT27: 40 | AU27: 40 | AV27: 40 | AW27: 40 | AX27: 40 | AY27: 40 | AZ27: 60 | BA27: 40 | BB27: 40 | BC27: 40 | BD27: 60 | BE27: 60 | BF27: 40 | BG27: 40 | BH27: 40 | BI27: 40 | BJ27: 40 | BK27: 40 | BL27: 40 | BM27: 40 | BP27: Chaudieres au gaz >= 733 (2500000) | BQ27: Gas-fired boilers, >= 733 kW | BT27: Air conditioners, all phases, split and single package >= 223 kW, other heating section | BU27: ='Minimum efficiencies entries'!C20 -> 2.78 | BV27: COP | BX27: 27 | BY27: Scheduled | BZ27: 0.7974776795 | CA27: 0.785431357 | CB27: 0.7856031324 | CC27: 0.7843582029 | CD27: 0.7876593849 | CE27: 0.7840614664 | CF27: 0.7926941473 | CG27: 0.7920929042 | CH27: 0.7903705977 | CI27: 0.7860539847 | CJ27: 0.7835189381 | CK27: 0.7858982024 | CL27: 0.7984144137 | CM27: 0.7750281673 | CN27: 0.7765184543 | CO27: 0.7765184543 | CP27: 0.78 | CQ27: 0.78 | CR27: 0.6216350824 | CS27: 0.78 | CT27: 0.78 | CU27: 0.7788555968 | CV27: 0.7867941587 | CW27: 0.7710054676 | CX27: 0.7929782923 | CY27: 0.7929970562 | CZ27: 0.7867941587 | DC27: 1 | DD27: 23 | DE27: 23 | DF27: 0.04106006233 | DG27: 9.93069894e-06 | DH27: -8.282457377e-10 | DI27: -0.02156712786 | DJ27: -6.029055868e-06 | DK27: 5.10576984e-10 | DL27: TDD | DW27: % | DX27: 1 | EL27: Débit moyen de l'ensembles des robinets | EM27: Average flow of all faucets | EX27: Enter the pump motor efficiency. When multiple pumps serve the system, use the power-weighted average pump efficiency. | FS27: Date: | FV27: Date: | GD27: Cranbrook | GE27: Br. Columbia | GF27: 6 | GL27: CA | GM27: Conditionnement d'air
B28: Unit heater | C28: 25 | E28: ToV23 | F28: 1 | G28: 1 | H28: 1 | I28: 1 | J28: 1 | K28: 1 | L28: 1 | M28: 1 | N28: 1 | O28: 1 | P28: 1 | Q28: 1 | R28: 1 | S28: 1 | T28: 1 | U28: 1 | V28: 0 | W28: 0 | X28: 1 | Y28: 1 | Z28: 1 | AA28: 1 | AB28: 1 | AC28: 1 | AD28: 1 | AE28: 1 | AF28: 1 | AI28: Pump motor efficiency - hot water | AL28: BaV23 | AM28: 0.6 | AN28: 0.6 | AO28: 0.6 | AP28: 0.6 | AQ28: 0.6 | AR28: 0.6 | AS28: 0.6 | AT28: 0.6 | AU28: 0.6 | AV28: 0.6 | AW28: 0.6 | AX28: 0.6 | AY28: 0.6 | AZ28: 0.6 | BA28: 0.6 | BB28: 0.6 | BC28: 0.6 | BD28: 0.6 | BE28: 0.6 | BF28: 0.6 | BG28: 0.6 | BH28: 0.6 | BI28: 0.6 | BJ28: 0.6 | BK28: 0.6 | BL28: 0.6 | BM28: 0.6 | BP28: Chaudieres au mazout < 88 (300000) | BQ28: Oil-fired boilers, < 88 kW | BT28: Heat Pumps >= 19 kW and < 40 kW, electric resistance heating section, split and single | BU28: ='Minimum efficiencies entries'!C21 -> 3.22 | BV28: COP | BX28: 27 | BY28: Snap outdoor | BZ28: 0.8 | CA28: 0.8 | CB28: 0.8 | CC28: 0.8 | CD28: 0.8 | CE28: 0.8 | CF28: 0.8 | CG28: 0.8 | CH28: 0.8 | CI28: 0.8 | CJ28: 0.8 | CK28: 0.8 | CL28: 0.8 | CM28: 0.8 | CN28: 0.8 | CO28: 0.8 | CP28: 0.8 | CQ28: 0.8 | CR28: 0.8 | CS28: 0.8 | CT28: 0.8 | CU28: 0.8 | CV28: 0.8 | CW28: 0.8 | CX28: 0.8 | CY28: 0.8 | CZ28: 0.8 | DC28: 1 | DD28: 24 | DE28: 24 | DF28: -0.0110095294 | DG28: 0.0003037107879 | DH28: -3.664434879e-07 | DI28: 0.006831262022 | DJ28: -0.000174097683 | DK28: 2.093807155e-07 | DL28: CDD | DW28: % | DX28: 1 | EL28: Débit moyen de l'ensembles des douches | EM28: Average flow of all showers | EX28: Enter the design efficiency of the pump motor. When multiple pumps serve the system, use the power-weighted average motor efficiency. | FS28: Signature: | FV28: Signature: | GD28: Fredericton | GE28: New Brunswick | GF28: 6 | GL28: VAV | GM28: Volume d'air variable
B29: Unit ventilator | C29: 26 | E29: ToV24 | F29: 1 | G29: 1 | H29: 0 | I29: 1 | J29: 0 | K29: 0 | L29: 1 | M29: 0 | N29: 1 | O29: 1 | P29: 0 | Q29: 1 | R29: 1 | S29: 1 | T29: 1 | U29: 1 | V29: 1 | W29: 1 | X29: 1 | Y29: 1 | Z29: 1 | AA29: 0 | AB29: 1 | AC29: 1 | AD29: 0 | AE29: 0 | AF29: 1 | AI29: Pump motor efficiency - chilled water | AL29: BaV24 | AM29: 0.6 | AN29: 0.6 | AO29: 0.6 | AP29: 0.6 | AQ29: 0.6 | AR29: 0.6 | AS29: 0.6 | AT29: 0.6 | AU29: 0.6 | AV29: 0.6 | AW29: 0.6 | AX29: 0.6 | AY29: 0.6 | AZ29: 0.6 | BA29: 0.6 | BB29: 0.6 | BC29: 0.6 | BD29: 0.6 | BE29: 0.6 | BF29: 0.6 | BG29: 0.6 | BH29: 0.6 | BI29: 0.6 | BJ29: 0.6 | BK29: 0.6 | BL29: 0.6 | BM29: 0.6 | BP29: Chaudieres au mazout >= 88 (300000) et < 733 (2500000) | BQ29: Oil-fired boilers, >= 88 kW and < 733 kW | BT29: Heat Pumps >= 19 kW and < 40 kW, other heating section, split and single | BU29: ='Minimum efficiencies entries'!C22 -> 3.16 | BV29: COP | BX29: 28 | BY29: Demand-only | BZ29: 0.8021149797 | CA29: 0.8165129384 | CB29: 0.7452623536 | CC29: 0.7593672501 | CD29: 0.8011291147 | CE29: 0.8011291147 | CF29: 0.003690350566 | CG29: 0.8011291147 | CH29: 0.8011291147 | CI29: 0.8119956171 | CJ29: 0.8011291147 | CK29: 0.8095508196 | CL29: 0.8357035123 | CM29: 0.8 | CN29: 0.7685763425 | CO29: 0.7685763425 | CP29: 0.81 | CQ29: 0.81 | CR29: 0.8 | CS29: 0.8 | CT29: 0.8 | CU29: 0.7452623536 | CV29: 0.850502131 | CW29: 0.7901377793 | CX29: 0.7593672501 | CY29: 0.7593672501 | CZ29: 0.850502131 | DC29: 1 | DD29: 25 | DE29: 25 | DF29: 0.02782621163 | DG29: 7.040971163e-06 | DH29: -5.351701088e-10 | DI29: -0.01049099782 | DJ29: -2.671418521e-06 | DK29: 1.989008939e-10 | DL29: HDD | DW29: % | DX29: 1 | EL29: Coefficient de débit des robinets | EM29: Faucet flow ratio | EX29: Enter the design efficiency of the pump motor. When multiple pumps serve the system, use the power-weighted average motor efficiency. | FS29: Check One | FV29: Check One | GD29: Truro | GE29: Nova Scotia | GF29: 6
B30: Radiation with optional make-up air unit | C30: 27 | E30: ToV25 | F30: 1 | G30: 1 | H30: 1 | I30: 1 | J30: 1 | K30: 1 | L30: 1 | M30: 1 | N30: 1 | O30: 1 | P30: 1 | Q30: 1 | R30: 1 | S30: 1 | T30: 1 | U30: 1 | V30: 0 | W30: 0 | X30: 1 | Y30: 1 | Z30: 1 | AA30: 1 | AB30: 1 | AC30: 1 | AD30: 1 | AE30: 1 | AF30: 1 | AI30: Hot water pump control | AL30: BaV25 | AM30: 0.9 | AN30: 0.9 | AO30: 0.9 | AP30: 0.9 | AQ30: 0.9 | AR30: 0.9 | AS30: 0.9 | AT30: 0.9 | AU30: 0.9 | AV30: 0.9 | AW30: 0.9 | AX30: 0.9 | AY30: 0.9 | AZ30: 0.9 | BA30: 0.9 | BB30: 0.9 | BC30: 0.9 | BD30: 0.9 | BE30: 0.9 | BF30: 0.9 | BG30: 0.9 | BH30: 0.9 | BI30: 0.9 | BJ30: 0.9 | BK30: 0.9 | BL30: 0.9 | BM30: 0.9 | BP30: Chaudieres au mazout >= 733 (2500000) | BQ30: Oil-fired boilers, >= 733 kW | BT30: Heat Pumps >= 40 kW and < 70 kW, electric resistance heating section, split and single | BU30: ='Minimum efficiencies entries'!C23 -> 3.1 | BV30: COP | BX30: 28 | BY30: Standby | BZ30: 0.7924060001 | CA30: 0.8147982873 | CB30: 0.6874816482 | CC30: 0.7235831826 | CD30: 0.7626506338 | CE30: 0.7626506338 | CF30: -2.48193945e-05 | CG30: 0.7626506338 | CH30: 0.7626506338 | CI30: 0.8108860836 | CJ30: 0.7626506338 | CK30: 0.8084055213 | CL30: 0.8252960619 | CM30: 0.7960475993 | CN30: 0.7630678661 | CO30: 0.7630678661 | CP30: 0.8 | CQ30: 0.8 | CR30: 0.6216350824 | CS30: 0.8 | CT30: 0.8 | CU30: 0.6874816482 | CV30: 0.7714845868 | CW30: 0.7893424782 | CX30: 0.7235831826 | CY30: 0.7235831826 | CZ30: 0.7714845868 | DC30: 1 | DD30: 26 | DE30: 26 | DF30: -0.003722411628 | DG30: 0.0001520361777 | DH30: -1.592951062e-07 | DI30: 0.001206859197 | DJ30: -5.516171074e-05 | DK30: 5.26418859e-08 | DL30: CDD | DW30: % | DX30: 1 | EL30: Coefficient de débit des douches | EM30: Shower flow ratio | EX30: Select the hot water pump control logic applicable to this system. | FS30: Summary compliance results | FV30: Summary compliance results | GD30: Summerside | GE30: P.E.I. | GF30: 6
E31: ToV26 | F31: 1 | G31: 1 | H31: 0 | I31: 1 | J31: 0 | K31: 0 | L31: 1 | M31: 0 | N31: 1 | O31: 1 | P31: 0 | Q31: 1 | R31: 1 | S31: 1 | T31: 1 | U31: 1 | V31: 1 | W31: 1 | X31: 1 | Y31: 1 | Z31: 1 | AA31: 0 | AB31: 1 | AC31: 1 | AD31: 0 | AE31: 0 | AF31: 1 | AI31: Chilled water pump control | AL31: BaV26 | AM31: 0.9 | AN31: 0.9 | AO31: 0.9 | AP31: 0.9 | AQ31: 0.9 | AR31: 0.9 | AS31: 0.9 | AT31: 0.9 | AU31: 0.9 | AV31: 0.9 | AW31: 0.9 | AX31: 0.9 | AY31: 0.9 | AZ31: 0.9 | BA31: 0.9 | BB31: 0.9 | BC31: 0.9 | BD31: 0.9 | BE31: 0.9 | BF31: 0.9 | BG31: 0.9 | BH31: 0.9 | BI31: 0.9 | BJ31: 0.9 | BK31: 0.9 | BL31: 0.9 | BM31: 0.9 | BP31: Chaudieres au mazout residuel (#5 ou 6) et autres < 88 (300000) | BQ31: Oil-fired boilers, residulal (No.5 or No.6 oil) and other, < 88 kW | BT31: Heat Pumps >= 40 kW and < 70 kW, otherheating section, split and single | BU31: ='Minimum efficiencies entries'!C24 -> 3.04 | BV31: COP | BX31: 28 | BY31: Snap zone | BZ31: 0.8051485247 | CA31: 0.8230807547 | CB31: 0.7101761556 | CC31: 0.7354656106 | CD31: 0.7798843406 | CE31: 0.7798843406 | CF31: 0.008528935728 | CG31: 0.7798843406 | CH31: 0.7798843406 | CI31: 0.8108860836 | CJ31: 0.7798843406 | CK31: 0.8084055213 | CL31: 0.8271254387 | CM31: 0.774246653 | CN31: 0.7651115353 | CO31: 0.7651115353 | CP31: 0.81 | CQ31: 0.81 | CR31: 0.7588442235 | CS31: 0.8 | CT31: 0.8 | CU31: 0.7101761556 | CV31: 0.7736108982 | CW31: 0.7906801318 | CX31: 0.7354656106 | CY31: 0.7354656106 | CZ31: 0.7736108982 | DC31: 1 | DD31: 27 | DE31: 27 | DF31: -131.4748092 | DG31: 0.04821568051 | DH31: -3.904244649e-06 | DI31: 79.7917697 | DJ31: -0.0289842138 | DK31: 2.341727015e-06 | DL31: HDD | DW31: Selection | DX31: 1 | EL31: Débit moyen de tous les autres usages | EM31: Average flow of other uses | EX31: Select the chilled water pump control logic applicable to this system. | FS31: National Energy Code of Canada for Buildings – 2011 | FV31: National Energy Code of Canada for Buildings – 2011 | GD31: Medicine Hat | GE31: Alberta | GF31: 6
E32: ToV27 | F32: 1 | G32: 1 | H32: 1 | I32: 1 | J32: 1 | K32: 1 | L32: 1 | M32: 1 | N32: 1 | O32: 1 | P32: 1 | Q32: 1 | R32: 1 | S32: 1 | T32: 1 | U32: 1 | V32: 0 | W32: 0 | X32: 1 | Y32: 1 | Z32: 1 | AA32: 1 | AB32: 1 | AC32: 1 | AD32: 1 | AE32: 1 | AF32: 1 | AI32: Hot water loop temperature control | AL32: BaV27 | AM32: 0.8 | AN32: 0.8 | AO32: 0.8 | AP32: 0.8 | AQ32: 0.8 | AR32: 0.8 | AS32: 0.8 | AT32: 0.8 | AU32: 0.8 | AV32: 0.8 | AW32: 0.8 | AX32: 0.8 | AY32: 0.8 | AZ32: 0.8 | BA32: 0.8 | BB32: 0.8 | BC32: 0.8 | BD32: 0.8 | BE32: 0.8 | BF32: 0.8 | BG32: 0.8 | BH32: 0.8 | BI32: 0.8 | BJ32: 0.8 | BK32: 0.8 | BL32: 0.8 | BM32: 0.8 | BP32: Chaudieres au mazout residuel (#5 ou 6) et autres >= 88 (300000) et < 733 (2500000) | BQ32: Oil-fired boilers, residulal (No.5 or No.6 oil) and other, >= 88 kW and < 733 kW | BT32: Heat Pumps >= 70 kW, electric resistance heating section, split and single | BU32: ='Minimum efficiencies entries'!C25 -> 2.78 | BV32: COP | BX32: 28 | BY32: Scheduled | BZ32: 0.8026264364 | CA32: 0.8202503276 | CB32: 0.754908105 | CC32: 0.7912671875 | CD32: 0.7731102427 | CE32: 0.7731102427 | CF32: 0.005145883137 | CG32: 0.7731102427 | CH32: 0.7731102427 | CI32: 0.8158413919 | CJ32: 0.7731102427 | CK32: 0.8134622077 | CL32: 0.8340924454 | CM32: 0.8 | CN32: 0.7506230569 | CO32: 0.7506230569 | CP32: 0.81 | CQ32: 0.81 | CR32: 0.6216350824 | CS32: 0.79 | CT32: 0.79 | CU32: 0.754908105 | CV32: 0.7533892026 | CW32: 0.7861521901 | CX32: 0.7912671875 | CY32: 0.7912671875 | CZ32: 0.7533892026 | DC32: 1 | DD32: 28 | DE32: 28 | DF32: -0.2174599045 | DG32: 0.0001610454444 | DH32: -1.976246835e-08 | DI32: 1.081433856 | DJ32: -0.0003447607209 | DK32: 2.887370386e-08 | DL32: CDD | DW32: Selection | DX32: 1 | EX32: Select the hot water temperature control logic applicable to this system. | FS32: 0 | FV32: 0 | GD32: Moncton | GE32: New Brunswick | GF32: 6
E33: ToV28 | F33: 1 | G33: 1 | H33: 0 | I33: 1 | J33: 0 | K33: 0 | L33: 1 | M33: 0 | N33: 1 | O33: 1 | P33: 0 | Q33: 1 | R33: 1 | S33: 1 | T33: 1 | U33: 1 | V33: 1 | W33: 1 | X33: 1 | Y33: 1 | Z33: 1 | AA33: 0 | AB33: 1 | AC33: 1 | AD33: 0 | AE33: 0 | AF33: 1 | AI33: Chilled water loop temperature control | AL33: BaV28 | AM33: 0.8 | AN33: 0.8 | AO33: 0.8 | AP33: 0.8 | AQ33: 0.8 | AR33: 0.8 | AS33: 0.8 | AT33: 0.8 | AU33: 0.8 | AV33: 0.8 | AW33: 0.8 | AX33: 0.8 | AY33: 0.8 | AZ33: 0.8 | BA33: 0.8 | BB33: 0.8 | BC33: 0.8 | BD33: 0.8 | BE33: 0.8 | BF33: 0.8 | BG33: 0.8 | BH33: 0.8 | BI33: 0.8 | BJ33: 0.8 | BK33: 0.8 | BL33: 0.8 | BM33: 0.8 | BP33: Chaudieres au mazout residuel (#5 ou 6) et autres >= 88 (300000) et < 733 (2500000) | BQ33: Oil-fired boilers, residulal (No.5 or No.6 oil) and other, >= 733 kW | BT33: Heat Pumps >= 70 kW, other heating section, split and single | BU33: ='Minimum efficiencies entries'!C26 -> 2.72 | BV33: COP | BX33: 28 | BY33: Snap outdoor | BZ33: 0.8 | CA33: 0.8 | CB33: 0.8 | CC33: 0.8 | CD33: 0.8 | CE33: 0.8 | CF33: 0.8 | CG33: 0.8 | CH33: 0.8 | CI33: 0.8 | CJ33: 0.8 | CK33: 0.8 | CL33: 0.8 | CM33: 0.8 | CN33: 0.8 | CO33: 0.8 | CP33: 0.8 | CQ33: 0.8 | CR33: 0.8 | CS33: 0.8 | CT33: 0.8 | CU33: 0.8 | CV33: 0.8 | CW33: 0.8 | CX33: 0.8 | CY33: 0.8 | CZ33: 0.8 | DC33: 1 | DD33: 29 | DE33: 29 | DF33: 40.91165445 | DG33: -0.01308984489 | DH33: 9.271884652e-07 | DI33: -23.16689467 | DJ33: 0.007632600717 | DK33: -5.441801581e-07 | DL33: HDD | DW33: Selection | DX33: 1 | EX33: Select the chilled water temperature control logic applicable to this system. | GD33: Mount Forest | GE33: Ontario | GF33: 6
B34: French | C34: English | E34: ToV29 | F34: 1 | G34: 1 | H34: 1 | I34: 1 | J34: 1 | K34: 1 | L34: 1 | M34: 1 | N34: 1 | O34: 1 | P34: 1 | Q34: 1 | R34: 1 | S34: 1 | T34: 1 | U34: 1 | V34: 0 | W34: 0 | X34: 1 | Y34: 1 | Z34: 1 | AA34: 1 | AB34: 1 | AC34: 1 | AD34: 1 | AE34: 1 | AF34: 1 | AI34: Hot water flow control | AL34: BaV29 | AM34: 0.8 | AN34: 0.8 | AO34: 0.8 | AP34: 0.8 | AQ34: 0.8 | AR34: 0.8 | AS34: 0.8 | AT34: 0.8 | AU34: 0.8 | AV34: 0.8 | AW34: 0.8 | AX34: 0.8 | AY34: 0.8 | AZ34: 0.8 | BA34: 0.8 | BB34: 0.8 | BC34: 0.8 | BD34: 0.8 | BE34: 0.8 | BF34: 0.8 | BG34: 0.8 | BH34: 0.8 | BI34: 0.8 | BJ34: 0.8 | BK34: 0.8 | BL34: 0.8 | BM34: 0.8 | BP34: Generateurs d'air chaud au gaz <= 117.23 (400000) | BQ34: Gas-fired warm-air furnaces, <= 117.23 kW | BT34: Heat Pumps >= 19 kW and < 70 kW in cooling mode at 8.3 ⁰C db / 6.1 ⁰C wb | BU34: ='Minimum efficiencies entries'!C27 -> 3.3 | BV34: COP | BX34: 29 | BY34: Fixed | BZ34: 0.7914210782 | CA34: 0.7990259239 | CB34: 0.7830824914 | CC34: 0.7821013935 | CD34: 0.794460692 | CE34: 0.794460692 | CF34: 0.794460692 | CG34: 0.794460692 | CH34: 0.794460692 | CI34: 0.799463929 | CJ34: 0.794460692 | CK34: 0.794460692 | CL34: 0.7913068422 | CM34: 0.7907503047 | CN34: 0.7665565936 | CO34: 0.7665565936 | CP34: 0.77 | CQ34: 0.77 | CR34: 0.7792014347 | CS34: 0.79 | CT34: 0.79 | CU34: 0.7830824914 | CV34: 0.7665572531 | CW34: 0.7910626597 | CX34: 0.6200408872 | CY34: 0.6188493606 | CZ34: 0.7665572531 | DC34: 1 | DD34: 30 | DE34: 30 | DF34: -5.600708459 | DG34: 0.0132512602 | DH34: 1.280790004e-05 | DI34: 3.552024564 | DJ34: -0.004414007499 | DK34: -1.342718789e-05 | DL34: CDD | DW34: Selection | DX34: 1 | EI34: Électrique | EJ34: Electric | EK34: 0.98 | EX34: Select the hot water pump flow control applicable to this system. In the case where multiple pumps used different controls, select the type that controls the majority of the pump installed power. | GD34: =IF(Select_Lang="English",GF128,GD128) -> Saint John | GE34: New Brunswick | GF34: 6
A35: 1 | B35: À blocs autonomes à volume variable | C35: Built-up variable-volume | E35: ToV30 | F35: 1 | G35: 1 | H35: 0 | I35: 1 | J35: 0 | K35: 0 | L35: 1 | M35: 0 | N35: 1 | O35: 1 | P35: 0 | Q35: 1 | R35: 1 | S35: 1 | T35: 1 | U35: 1 | V35: 1 | W35: 1 | X35: 1 | Y35: 1 | Z35: 1 | AA35: 0 | AB35: 1 | AC35: 1 | AD35: 0 | AE35: 0 | AF35: 1 | AI35: Chilled water flow control | AL35: BaV30 | AM35: 0.8 | AN35: 0.8 | AO35: 0.8 | AP35: 0.8 | AQ35: 0.8 | AR35: 0.8 | AS35: 0.8 | AT35: 0.8 | AU35: 0.8 | AV35: 0.8 | AW35: 0.8 | AX35: 0.8 | AY35: 0.8 | AZ35: 0.8 | BA35: 0.8 | BB35: 0.8 | BC35: 0.8 | BD35: 0.8 | BE35: 0.8 | BF35: 0.8 | BG35: 0.8 | BH35: 0.8 | BI35: 0.8 | BJ35: 0.8 | BK35: 0.8 | BL35: 0.8 | BM35: 0.8 | BP35: Generateurs d'air chaud au gaz > 117.23 (400000) | BQ35: Gas-fired warm-air furnaces, > 117.23 kW | BT35: Heat Pumps >= 19 kW and < 70 kW in cooling mode at 8.3 ⁰C db / -9.4 ⁰C wb | BU35: ='Minimum efficiencies entries'!C28 -> 2.25 | BV35: COP | BX35: 29 | BY35: Scheduled | BZ35: 0.7973969246 | CA35: 0.7995769791 | CB35: 0.7958023769 | CC35: 0.7954120866 | CD35: 0.7982131942 | CE35: 0.7982131942 | CF35: 0.7982131942 | CG35: 0.7982131942 | CH35: 0.7982131942 | CI35: 0.7999403049 | CJ35: 0.7982131942 | CK35: 0.7982131942 | CL35: 0.7985056023 | CM35: 0.7978362907 | CN35: 0.7685840097 | CO35: 0.7685840097 | CP35: 0.77 | CQ35: 0.77 | CR35: 0.7912246045 | CS35: 0.8 | CT35: 0.8 | CU35: 0.7958023769 | CV35: 0.7938022641 | CW35: 0.7972820595 | CX35: 0.7433159139 | CY35: 0.7372439568 | CZ35: 0.7938022641 | DC35: 1 | DD35: 31 | DE35: 31 | DF35: -133.662513 | DG35: 0.05146025521 | DH35: -4.393248118e-06 | DI35: 83.2733804 | DJ35: -0.03182546802 | DK35: 2.717273298e-06 | DL35: TDD | DW35: Selection | DX35: 1 | EI35: Chauffe-eau avec thermopompe | EJ35: Heat pump water heaters | EK35: 2.1 | EL35: EF | EX35: Select the chilled water pump flow control applicable to this system. In the case where multiple pumps used different controls, select the type that controls the majority of the pump installed power. | FO35: Statement of Compliance – National Energy Code of Canada for Buildings 2011 | FS35: Déclaration de conformité – Code national de lénergie pour les bâtiments – Canada 2011 Rapport sommaire de conformité à la partie 5 du NECB - CVCA | FT35: Statement of Compliance – National Energy Code of Canada for Buildings 2011 Summary Compliance Report to NECB Part 5 - HVAC | FV35: Déclaration de conformité – Code national de lénergie pour les bâtiments – Canada 2011 Rapport sommaire de conformité à la partie 6 du NECB - CES | FW35: Statement of Compliance – National Energy Code of Canada for Buildings 2011 Summary Compliance Report to NECB Part 6 - SWH | GD35: St John's | GE35: =IF(Select_Lang="English",GG129,GE129) -> Newfoundland | GF35: 6
A36: 2 | B36: Réchauffage à volume constant | C36: Constant-volume reheat | E36: ToV31 | F36: 1 | G36: 1 | H36: 1 | I36: 1 | J36: 1 | K36: 1 | L36: 1 | M36: 1 | N36: 1 | O36: 1 | P36: 1 | Q36: 1 | R36: 1 | S36: 1 | T36: 1 | U36: 1 | V36: 0 | W36: 0 | X36: 1 | Y36: 1 | Z36: 1 | AA36: 1 | AB36: 1 | AC36: 1 | AD36: 1 | AE36: 1 | AF36: 1 | AL36: BaV31 | AM36: 0.8 | AN36: 0.8 | AO36: 0.5 | AP36: 0.5 | AQ36: 0.5 | AR36: 0.5 | AS36: 0.5 | AT36: 0.5 | AU36: 0.5 | AV36: 0.8 | AW36: 0.5 | AX36: 0.5 | AY36: 0.5 | AZ36: 0.5 | BA36: 0.5 | BB36: 0.5 | BC36: 0.5 | BD36: 0.5 | BE36: 0.5 | BF36: 0.5 | BG36: 0.5 | BH36: 0.5 | BI36: 0.5 | BJ36: 0.5 | BK36: 0.5 | BL36: 0.8 | BM36: 0.5 | BP36: Generateurs d'air chaud de conduit au gaz <= 117.23 (400000) | BQ36: Gas-fired duct furnaces, <= 117.23 kW | BT36: Heat Pumps >= 70 kW in cooling mode at 8.3 ⁰C db / 6.1 ⁰C wb | BU36: ='Minimum efficiencies entries'!C29 -> 3.2 | BV36: COP | BX36: 29 | BY36: Load reset | BZ36: 0.8674606105 | CA36: 0.8153852024 | CB36: 0.9077070753 | CC36: 0.9176556783 | CD36: 0.8543970824 | CE36: 0.8543970824 | CF36: 0.8543970824 | CG36: 0.8543970824 | CH36: 0.8543970824 | CI36: 0.8007567295 | CJ36: 0.8543970824 | CK36: 0.8543970824 | CL36: 0.8311202637 | CM36: 1.047734098 | CN36: 1.029834584 | CO36: 1.029834584 | CP36: 1.03 | CQ36: 1.03 | CR36: 0.8452628299 | CS36: 1.05 | CT36: 1.05 | CU36: 0.9077070753 | CV36: 1.040479652 | CW36: 1.130075095 | CX36: 1.221116182 | CY36: 1.229709409 | CZ36: 1.040479652 | DC36: 1 | DD36: 32 | DE36: 32 | DF36: -2.499111833 | DG36: 0.03264417833 | DH36: -5.4833266e-05 | DI36: 1.481210982 | DJ36: -0.01638416731 | DK36: 2.938241557e-05 | DL36: CDD | DW36: Selection | DX36: 1 | EI36: Au gaz < 22 kW | EJ36: Gas-fired < 22 kW | EK36: -1 | EL36: EF = 0.67 - 0.0005V | EX36: Choose from the list of 27 HVAC System Types ID available in the drop down list and as provided in Table 5.3.1.1 of the NECB. The components that are applicable to the system will then be visible. In all instances where a visible component is NOT part of the system being evaluated, its value must be defined as identical to that of the Reference value for a compliance calculation. | FJ36: Tableau d'aide pour le CES | FK36: SWH Help Table | FS36: Nom du projet : | FT36: Project Name: | FV36: Nom du projet : | FW36: Project Name: | GD36: Sherbrooke | GE36: Quebec | GF36: 6
A37: 3 | B37: Intégrée à un conduit - monozone | C37: Packaged single duct - single zone | E37: ToV32 | F37: 1 | G37: 1 | H37: 0 | I37: 1 | J37: 0 | K37: 0 | L37: 1 | M37: 0 | N37: 1 | O37: 1 | P37: 0 | Q37: 1 | R37: 1 | S37: 1 | T37: 1 | U37: 1 | V37: 1 | W37: 1 | X37: 1 | Y37: 1 | Z37: 1 | AA37: 0 | AB37: 1 | AC37: 1 | AD37: 0 | AE37: 0 | AF37: 1 | AL37: BaV32 | AM37: 0.8 | AN37: 0.8 | AO37: 0.5 | AP37: 0.5 | AQ37: 0.5 | AR37: 0.5 | AS37: 0.5 | AT37: 0.5 | AU37: 0.5 | AV37: 0.8 | AW37: 0.5 | AX37: 0.5 | AY37: 0.5 | AZ37: 0.5 | BA37: 0.5 | BB37: 0.5 | BC37: 0.5 | BD37: 0.5 | BE37: 0.5 | BF37: 0.5 | BG37: 0.5 | BH37: 0.5 | BI37: 0.5 | BJ37: 0.5 | BK37: 0.5 | BL37: 0.5 | BM37: 0.5 | BP37: Generateurs de chaleur suspendus au gaz <= 117.23 (400000) | BQ37: Gas-fired unit heaters, <= 117.23 kW | BT37: Heat Pumps >= 70 kW in cooling mode at 8.3 ⁰C db / -9.4 ⁰C wb | BU37: ='Minimum efficiencies entries'!C30 -> 2.05 | BV37: COP | BX37: 29 | BY37: OA Reset, min 140 °F | BZ37: 0.7995555536 | CA37: 0.7999149918 | CB37: 0.7994462518 | CC37: 0.7994014829 | CD37: 0.7997945507 | CE37: 0.7997945507 | CF37: 0.7997945507 | CG37: 0.7997945507 | CH37: 0.7997945507 | CI37: 0.7999838042 | CJ37: 0.7997945507 | CK37: 0.7997945507 | CL37: 0.8000540414 | CM37: 0.7992696819 | CN37: 0.7899632361 | CO37: 0.7899632361 | CP37: 0.79 | CQ37: 0.79 | CR37: 0.7975281757 | CS37: 0.8 | CT37: 0.8 | CU37: 0.7994462518 | CV37: 0.7994719869 | CW37: 0.7992968729 | CX37: 0.7923895789 | CY37: 0.7904714932 | CZ37: 0.7994719869 | DC37: 2 | DD37: 1 | DE37: 33 | DF37: 0.1055505353 | DG37: 6.47193594e-05 | DH37: -4.632877738e-09 | DI37: -0.0549790686 | DJ37: -3.464079935e-05 | DK37: 2.4267996e-09 | DL37: HDD | DW37: W | DX37: =IF(Select_Units="IP", 3.413,1) -> 1 | EI37: Au gaz 22 - 117 kW | EJ37: Gas-fired 22 - 117 kW | EK37: -2 | EL37: EF = 0.67 - 0.0005V | EX37: Choose the type of cooling equipment associated with this HVAC system as defined in Table 5.2.12.1 of the NECB. | FI37: Type de système : | FJ37: Sélectionner le type de système qui correspond le mieux à celui à être évalué. | FK37: Select the system type that most closely matches the one being evaluated. | FS37: Addresse du projet : | FT37: Project Address: | FV37: Addresse du projet : | FW37: Project Address: | GD37: Stephenville | GE37: Newfoundland | GF37: 6
A38: 4 | B38: À blocs autonomes à un conduit - monozone | C38: Built-up single duct - single zone | BP38: Generateurs d'air chaud au mazout <= 66 (225000) | BQ38: Oil-fired warm-air furnaces, <= 66 kW | BT38: SPVAC and SPVHP in cooling mode < 19 kW | BU38: ='Minimum efficiencies entries'!C31 -> 2.92997363 | BV38: EER | BX38: 29 | BY38: OA Reset, min >140 °F | BZ38: 0.8 | CA38: 0.8 | CB38: 0.8 | CC38: 0.8 | CD38: 0.8 | CE38: 0.8 | CF38: 0.8 | CG38: 0.8 | CH38: 0.8 | CI38: 0.8 | CJ38: 0.8 | CK38: 0.8 | CL38: 0.8 | CM38: 0.8 | CN38: 0.8 | CO38: 0.8 | CP38: 0.8 | CQ38: 0.8 | CR38: 0.8 | CS38: 0.8 | CT38: 0.8 | CU38: 0.8 | CV38: 0.8 | CW38: 0.8 | CX38: 0.8 | CY38: 0.8 | CZ38: 0.8 | DC38: 2 | DD38: 2 | DE38: 34 | DF38: 0.08163241239 | DG38: 4.2145372e-05 | DH38: -3.026434602e-09 | DI38: -0.03238730116 | DJ38: -1.562356721e-05 | DK38: 1.097233319e-09 | DL38: HDD | EI38: Au gaz > 117 kW | EJ38: Gas-fired > 117 kW | EK38: 0.77 | EL38: Et | EX38: Choose the precise category associated with the cooling equipment system type, as defined in Table 5.2.12.1 of the NECB. | FC38: French | FD38: English | FI38: Type d'appareil : | FJ38: Sélectionner le type d'appareil servant à produire l'eau chaude sanitaire. | FK38: Select the type of equipment used in producing the service hot water. | FS38: Nom du soumissionaire : | FT38: Applicant Name: | FV38: Nom du soumissionaire : | FW38: Applicant Name: | GD38: Williams Lake | GE38: Br. Columbia | GF38: 7A
A39: 5 | B39: Intégrée à volume variable | C39: Packaged variable-volume | BP39: Generateurs d'air chaud au mazout <= 66 (225000) | BQ39: Oil-fired warm-air furnaces, > 66 kW | BT39: SPVAC and SPVHP in cooling mode >= 19 kW and < 40 kW | BU39: ='Minimum efficiencies entries'!C32 -> 2.783474949 | BV39: EER | BX39: 30 | BY39: Fixed | BZ39: 0.77743511 | CA39: 0.793987061 | CB39: 0.7679711819 | CC39: 0.7605699705 | CD39: 0.8035423166 | CE39: 0.8035423166 | CF39: 0.7829462164 | CG39: 0.7951614954 | CH39: 0.7692907619 | CI39: 0.7965607329 | CJ39: 0.8035423166 | CK39: 0.8035423166 | CL39: 0.7757176454 | CM39: 0.8 | CN39: 0.7734374625 | CO39: 0.7734374625 | CP39: 0.8 | CQ39: 0.8 | CR39: 0.8 | CS39: 0.78 | CT39: 0.78 | CU39: 0.7679711819 | CV39: 0.7841537493 | CW39: 0.7834234033 | CX39: 0.7605699705 | CY39: 0.7605699705 | CZ39: 0.7841537493 | DC39: 2 | DD39: 3 | DE39: 35 | DF39: -0.04940197211 | DG39: 0.0001079072366 | DH39: -7.374790625e-09 | DI39: 0.04175105983 | DJ39: -9.437713526e-05 | DK39: 6.424099924e-09 | DL39: HDD | DW39: French | DX39: English | EI39: Au mazout, instantanné, <= 61.5 kW | EJ39: Oil-fired, instantaneous, <= 61.5 kW | EK39: -3 | EL39: EF = 0.59 - 0.0019V | EX39: This value only serves in defining the Reference value performance for certain type of cooling equipment, as defined in Table 5.2.12.1 of the NECB. | FC39: % | FD39: % | FI39: Volume du réservoir : | FJ39: Volume total de tous les réservoirs associés à ce système. La valeur doit être égale ou supérieure à 0. | FK39: Total volume of all storage tanks included in this system. Value must be equal or greater than 0. | FS39: Adresse du soumissionaire : | FT39: Applicant Address: | FV39: Adresse du soumissionaire : | FW39: Applicant Address: | GD39: Sault Ste. Marie | GE39: Ontario | GF39: 7A
A40: 6 | B40: Intégrée à volume constant avec réchauffage | C40: Packaged constant-volume with reheat | BP40: Generateur de chaleur suspendus et generateurs d'air chaud de conduit au mazout | BQ40: Oil-fired duct furnaces or unit heaters | BT40: SPVAC and SPVHP in cooling mode >= 40 kW and < 70 kW | BU40: ='Minimum efficiencies entries'!C33 -> 2.519777322 | BV40: EER | BX40: 30 | BY40: Scheduled | BZ40: 0.7883869028 | CA40: 0.7967275159 | CB40: 0.7795843828 | CC40: 0.7739700084 | CD40: 0.8 | CE40: 0.8 | CF40: 0.7910481606 | CG40: 0.7979125859 | CH40: 0.7834123726 | CI40: 0.7981186869 | CJ40: 0.8 | CK40: 0.8 | CL40: 0.7875844417 | CM40: 0.8040317354 | CN40: 0.7868139743 | CO40: 0.7868139743 | CP40: 0.84 | CQ40: 0.8 | CR40: 0.801976588 | CS40: 0.79 | CT40: 0.79 | CU40: 0.7795843828 | CV40: 0.792939493 | CW40: 0.7911468577 | CX40: 0.7739700084 | CY40: 0.7739700084 | CZ40: 0.792939493 | DC40: 2 | DD40: 4 | DE40: 36 | DF40: -0.02366014902 | DG40: 5.117946469e-05 | DH40: -3.498237092e-09 | DI40: 0.009902339713 | DJ40: -2.229120883e-05 | DK40: 1.516437912e-09 | DL40: HDD | DW40: % | DX40: % | EI40: Au mazout, instantanné, Vt < 37.8 L | EJ40: Oil-fired, instantaneous, Vt < 37.8 L | EK40: 0.8 | EL40: Et | EX40: Choose the type of heating equipment associated with this HVAC system as defined in Table 5.2.12.1 of the NECB. For all resistance electric heating cases, the user must select "Electric boilers". However, in this case, all of the components relating to the hot water distribution system must be defined using the Reference values. | FC40: =IF(Select_Units="IP", "Valeur R","Valeur RSI") -> Valeur RSI | FD40: =IF(Select_Units="IP", "R-value","RSI Value") -> RSI Value | FI40: Efficacité de l'équipement de chauffage de l'eau sanitaire | FJ40: Entrer le rendement de l'équipement servant à produire l'eau chaude sanitaire. Pour les pompes à chaleur, le COP doit être défini en terme de %. Dans le cas des facteurs d'efficacité (EF), utiliser directement cette valeur, sauf pour les chauffe-eau électriques où un efficacité de 100% doit être utilisé. Si plus d'un appareil du même type est associé au système, définir le rendement pondéré selon la puissance des appareils. La valeur doit être supérieure à 0. | FK40: Enter the efficiency of the equipment used in producing the service hot water. For heat pumps, enter the COP in terms of %. For Efficiency Factors (EF), enter directly that value except for electric hot water tanks where an efficiency of 100% is to be used. If more than one equipment of the same type serves a system, enter the capacity-weighted average efficiency. Value must be greater than 0. | FS40: Téléphone du soumissionaire : | FT40: Applicant Phone: | FV40: Téléphone du soumissionaire : | FW40: Applicant Phone: | GD40: Calgary | GE40: Alberta | GF40: 7A
A41: 7 | B41: À blocs autonomes à VAV et dérivation au plafond | C41: Built-up ceiling bypass VAV | BT41: SPVHP in heating mode < 19 kW | BU41: ='Minimum efficiencies entries'!C34 -> 3.1 | BV41: COP | BX41: 30 | BY41: Load reset | BZ41: 0.8332972721 | CA41: 0.8079954034 | CB41: 0.7941913688 | CC41: 0.8013866396 | CD41: 0.8035423166 | CE41: 0.8035423166 | CF41: 0.8266265661 | CG41: 0.855751661 | CH41: 0.8359758237 | CI41: 0.8041024153 | CJ41: 0.8035423166 | CK41: 0.8035423166 | CL41: 0.8324159124 | CM41: 0.8222552501 | CN41: 0.8404565348 | CO41: 0.8404565348 | CP41: 0.8 | CQ41: 0.8 | CR41: 0.8006423758 | CS41: 0.8 | CT41: 0.8 | CU41: 0.7941913688 | CV41: 0.8217655857 | CW41: 0.8006481763 | CX41: 0.8013866396 | CY41: 0.8013866396 | CZ41: 0.8217655857 | DC41: 2 | DD41: 5 | DE41: 37 | DF41: -7.300091889 | DG41: 0.00270864979 | DH41: -1.904726373e-07 | DI41: 13.41025662 | DJ41: -0.004390390368 | DK41: 3.101852712e-07 | DL41: HDD | DW41: % | DX41: % | EI41: Au mazout, instantanné, Vt >= 37.8 L | EJ41: Oil-fired, instantaneous, Vt >= 37.8 L | EK41: 0.77 | EL41: Et | FC41: =IF(Select_Units="IP", "Valeur R","Valeur RSI") -> Valeur RSI | FD41: =IF(Select_Units="IP", "R-value","RSI Value") -> RSI Value | FI41: Indice d'isolation du réservoir | FJ41: Spécifier le niveau d'isolation du réservoir. Dans le cas où plusieurs réservoirs sont présents, définir la valeur d'isolation pondérée selon la surface des réservoirs. La valeur doit être entre R0.1 et 40 (RSI 0.5678-7.04). | FK41: Define the tank's insulating value. For systems with multiple tanks, enter the surface-weighted average insulating value. Value must be between R 0.1 and 40 (RSI 0.5678-7.04). | FS41: Information général | FT41: General information | FV41: Information général | FW41: General information | GD41: Gander | GE41: Newfoundland | GF41: 7A
A42: 8 | B42: Intégrée à VAV et dérivation au plafond | C42: Packaged ceiling bypass VAV | BT42: SPVHP in heating mode >= 19 kW and < 40 kW | BU42: ='Minimum efficiencies entries'!C35 -> 3 | BV42: COP | BX42: 30 | BY42: OA Reset, min 58 °F | BZ42: 0.8169662964 | CA42: 0.8043413653 | CB42: 0.8136095111 | CC42: 0.8167563888 | CD42: 0.8035423166 | CE42: 0.8035423166 | CF42: 0.8125378914 | CG42: 0.7994890572 | CH42: 0.8223455149 | CI42: 0.8024319355 | CJ42: 0.8035423166 | CK42: 0.8035423166 | CL42: 0.8181895279 | CM42: 0.8169416605 | CN42: 0.8173119368 | CO42: 0.8173119368 | CP42: 0.84 | CQ42: 0.8 | CR42: 0.8027802438 | CS42: 0.81 | CT42: 0.81 | CU42: 0.8136095111 | CV42: 0.8074527133 | CW42: 0.8136224947 | CX42: 0.8167563888 | CY42: 0.8167563888 | CZ42: 0.8074527133 | DC42: 2 | DD42: 6 | DE42: 38 | DF42: 0 | DG42: 0 | DH42: 0 | DI42: 0 | DJ42: 0 | DK42: 0 | DL42: HDD | DW42: % | DX42: % | EI42: Au mazout, à accumulation, <= 30.5 kW | EJ42: Oil-fired, storage-type, <= 30.5 kW | EK42: 0.55 | EL42: EF | FC42: % | FD42: % | FI42: Indice d'isolation des tuyauteries | FJ42: Spécifier le niveau d'isolation moyen de l'ensemble de la tuyauterie du système d'eau chaude sanitaire. La valeur doit être entre R0.1 et 40 (RSI 0.5678-7.04). | FK42: Define the average piping insulation value for this service water heating system. Value must be between R 0.1 and 40 (RSI 0.5678-7.04). | FS42: Date des plans : | FT42: Date of plans: | FV42: Date des plans : | FW42: Date of plans: | GD42: Quebec | GE42: Quebec | GF42: 7A
A43: 9 | B43: Éjecto-convecteur assisté | C43: Powered induction unit | BT43: SPVHP in heating mode >= 40 kW and < 70 kW | BU43: ='Minimum efficiencies entries'!C36 -> 2.9 | BV43: COP | BX43: 30 | BY43: OA Reset, min <54 °F | BZ43: 0.8 | CA43: 0.8 | CB43: 0.8 | CC43: 0.8 | CD43: 0.8 | CE43: 0.8 | CF43: 0.8 | CG43: 0.8 | CH43: 0.8 | CI43: 0.8 | CJ43: 0.8 | CK43: 0.8 | CL43: 0.8 | CM43: 0.8 | CN43: 0.8 | CO43: 0.8 | CP43: 0.8 | CQ43: 0.8 | CR43: 0.8 | CS43: 0.8 | CT43: 0.8 | CU43: 0.8 | CV43: 0.8 | CW43: 0.8 | CX43: 0.8 | CY43: 0.8 | CZ43: 0.8 | DC43: 2 | DD43: 7 | DE43: 39 | DF43: -0.00564670183 | DG43: -3.977608325e-06 | DH43: 3.110091006e-10 | DI43: 0.000139736026 | DJ43: 1.221424608e-07 | DK43: -1.193682072e-11 | DL43: TDD | DW43: % | DX43: % | EI43: Au mazout, à accumulation, > 30.5 kW | EJ43: Oil-fired, storage-type, > 30.5 kW | EK43: 0.55 | EL43: EF | FC43: % | FD43: % | FI43: Efficacité du moteur de la pompe | FJ43: Entrer l'efficacité du moteur de la pompe de circulation du système d'eau chaude sanitaire. Si plusieurs pompes sont présentes, définir l'efficacité moyenne pondérée selon la puissance des moteurs. La valeur doit être entre 30% et 99%. | FK43: Enter the efficiency of all pump motors used on this service water heating system. When multiple pumps are present, define the capacity-weighted average efficiency for all the pump motors. Value must be between 30% and 99%. | FS43: Superficie de plancher des zones climatisées | FT43: Building conditioned Floor area | FV43: Superficie de plancher des zones climatisées | FW43: Building conditioned Floor area | GD43: Prince George | GE43: Br. Columbia | GF43: 7A
A44: 10 | B44: Système multizone constitué de blocs autonomes | C44: Built-up multi-zone system | BT44: Evaporatively cooled <= 19 (65000) | BU44: ='Minimum efficiencies entries'!C37 -> 3.54 | BV44: COP | BX44: 31 | BY44: VSD, valve reset | BZ44: 0.8123396014 | CA44: 0.8033787956 | CB44: 0.519733186 | CC44: 0.5131058649 | CD44: 0.511382072 | CE44: 0.5039520515 | CF44: 0.5070892065 | CG44: 0.5101710189 | CH44: 0.5026781962 | CI44: 0.8015986998 | CJ44: 0.5045526188 | CK44: 0.5016274287 | CL44: 0.5101382355 | CM44: 0.5180499258 | CN44: 0.5178943072 | CO44: 0.5178943072 | CP44: 0.5 | CQ44: 0.5 | CR44: 0.521113391 | CS44: 0.5095127266 | CT44: 0.5095127266 | CU44: 0.5173956402 | CV44: 0.5104065379 | CW44: 0.5117160645 | CX44: 0.581023924 | CY44: 0.8795000681 | CZ44: 0.5104065379 | DB44: x | DC44: 2 | DD44: 8 | DE44: 40 | DF44: -0.004605029619 | DG44: 8.682997047e-06 | DH44: 1.054864112e-09 | DI44: 0.0002840163332 | DJ44: -1.434272053e-07 | DK44: 2.356995523e-11 | DL44: HDD | DW44: Sélection | DX44: Selection | FC44: =IF(Select_Units="IP","(btuh)/(btuh)","W/W") -> W/W | FD44: =IF(Select_Units="IP","(btuh)/(btuh)","W/W") -> W/W | FI44: Efficacité de la pompe | FJ44: Entrer l'efficacité de la pompe de circulation du système d'eau chaude sanitaire. Si plusieurs pompes sont présentes, définir l'efficacité moyenne pondérée selon la puissance des pompes. La valeur doit être entre 30% et 75%. | FK44: Enter the efficiency of all pumps ("pump efficiency" in this case refers to "pump mechanical efficiency") used on this service water heating system. When multiple pumps are present, define the capacity-weighted average efficiency for all the pumps. Value must be between 30% and 75%. | FS44: Zone climatique du bâtiment : | FT44: Climate zone: | FV44: Degrés-jours de chauffage au lieu du bâtiment : | FW44: Building Location Heating Degree-Days: | GD44: North Bay | GE44: Ontario | GF44: 7A
A45: 11 | B45: Système multizone intégré | C45: Packaged multi-zone system | BT45: Evaporatively cooled and water evaporatively cooled, split and single-package >= 19 kW and < 40 kW electric resistance heating section | BU45: ='Minimum efficiencies entries'!C38 -> 3.37 | BV45: COP | BX45: 31 | BY45: Two speed, .67 | BZ45: 0.8109984552 | CA45: 0.8026429858 | CB45: 0.5182691544 | CC45: 0.511862342 | CD45: 0.5101689908 | CE45: 0.5032928541 | CF45: 0.5062820799 | CG45: 0.5091884439 | CH45: 0.5020261965 | CI45: 0.801066564 | CJ45: 0.5040904477 | CK45: 0.5010973697 | CL45: 0.5089513774 | CM45: 0.5150165842 | CN45: 0.514255885 | CO45: 0.514255885 | CP45: 0.5 | CQ45: 0.5 | CR45: 0.5167390043 | CS45: 0.5076080636 | CT45: 0.5076080636 | CU45: 0.5162366181 | CV45: 0.508156243 | CW45: 0.5093674146 | CX45: 0.5732561785 | CY45: 0.8717702162 | CZ45: 0.508156243 | DC45: 2 | DD45: 9 | DE45: 41 | DF45: 0.008106563777 | DG45: -1.27193048e-05 | DH45: 8.605367179e-10 | DI45: -0.0004623435425 | DJ45: 7.434680985e-07 | DK45: -6.312622404e-11 | DL45: TDD | DW45: Sélection | DX45: Selection | FC45: =IF(Select_Units="IP","gpm","L/min") -> L/min | FD45: L/min | FI45: Coefficient de récupération de chaleur | FJ45: La puissance de récupération installée divisée par la puissance installée totale de chauffage de l'eau sanitaire, d'après les spécifications de conception. Si la récupération est limitée à la récupération de chaleur des eaux grises, alors la puissance installée est = Q * (Tin - Tout) * 4.182, où Q: débit en L/s, Tin: température d'admission (chaude) du fluide de récupération (°C), Tout: température de sortie (froide) du fluide de récupération (°C). La valeur doit être entre 0 et 1. Le facteur de conversion des litres par seconde en gallons US par minute est 15,85. | FK45: The installed recovery capacity divided by the total installed capacity of the SWH system, from the design specifications. If the heat recovery is limited to grey-water waste heat recovery then the installed recovery capacity is = Q * (Tin - Tout) * 4.182, where Q: flow rate (L/s), Tin: inlet temperature (warm) of the waste heat fluid (°C), Tout: outlet temperature (cold) of the waste heat fluid (°C). Value must be between 0 and 1. The conversion rate from litre per second to USGPM is 15.85 | FS45: Degrés-jours de refroidissement au lieu du bâtiment : | FT45: Building Location Cooling Degree-Days: | FV45: Degrés-jours de refroidissement au lieu du bâtiment : | FW45: Building Location Cooling Degree-Days: | GD45: Edmonton | GE45: Alberta | GF45: 7A
A46: 12 | B46: Système à deux conduits à volume constant | C46: Constant-volume dual-duct system | BT46: Evaporatively cooled and water evaporatively cooled, split and single-package >= 19 kW and < 40 kW other heating section | BU46: ='Minimum efficiencies entries'!C39 -> 3.31 | BV46: COP | BX46: 31 | BY46: VSD, fixed | BZ46: 0.8122332373 | CA46: 0.803364167 | CB46: 0.5196966649 | CC46: 0.5130241372 | CD46: 0.51129655 | CE46: 0.5039334842 | CF46: 0.5070058466 | CG46: 0.510132399 | CH46: 0.5026161571 | CI46: 0.8015811264 | CJ46: 0.5045331562 | CK46: 0.5016086076 | CL46: 0.5098937289 | CM46: 0.5180499258 | CN46: 0.5178904322 | CO46: 0.5178904322 | CP46: 0.5 | CQ46: 0.5 | CR46: 0.5200085337 | CS46: 0.5095082058 | CT46: 0.5095082058 | CU46: 0.5173683282 | CV46: 0.5102885023 | CW46: 0.5117109651 | CX46: 0.581023924 | CY46: 0.8794889651 | CZ46: 0.5102885023 | DC46: 2 | DD46: 10 | DE46: 42 | DF46: 0 | DG46: 0 | DH46: 0 | DI46: 0 | DJ46: 0 | DK46: 0 | DL46: HDD | DW46: =IF(Select_Units="IP", "po. H2O","Pa") -> Pa | DX46: =IF(Select_Units="IP", "in. w.g.","Pa") -> Pa | EX46: Tableau d'aide pour le CVCA | EY46: HVAC Help Table | FC46: L/min | FD46: L/min | FI46: Débit moyen de l'ensembles des robinets | FJ46: Entrer le débit moyen de tous les robinets desservis par ce système d'eau chaude sanitaire. La valeur doit être supérieure à 0.1 mais inférieure à 4 gpm (0.006309 et 15.4 L/min). | FK46: Enter the average flow rate of all faucets served by the service water heating system. Value must be greater than 0.1 and smaller than 4 gpm (0.006309 and 15.14 L/min). | FS46: Nombre de systèmes de CVCA dans le bâtiment : | FT46: Number of HVAC Systems in the Building: | FV46: Nombre de systèmes de CES dans le bâtiment : | FW46: Number of SWH Systems in the Building: | GD46: Sudbury | GE46: Ontario | GF46: 7A
A47: 13 | B47: Système à deux conduits à volume variable | C47: Variable-volume dual-duct system | AI47: French | AJ47: English | BT47: Evaporatively cooled and water evaporatively cooled, split and single-package >= 40 kW and < 70 kW electric resistance heating section | BU47: ='Minimum efficiencies entries'!C40 -> 3.22 | BV47: COP | BX47: 31 | BY47: Two speed, .5 | BZ47: 0.8113132956 | CA47: 0.8027010523 | CB47: 0.5196660016 | CC47: 0.5125521278 | CD47: 0.5105008613 | CE47: 0.503130875 | CF47: 0.5063653833 | CG47: 0.5098423703 | CH47: 0.5020118231 | CI47: 0.8011216374 | CJ47: 0.5036177955 | CK47: 0.5011339753 | CL47: 0.5086181916 | CM47: 0.5182725198 | CN47: 0.5181570889 | CO47: 0.5181570889 | CP47: 0.5 | CQ47: 0.5 | CR47: 0.5170829895 | CS47: 0.5096219791 | CT47: 0.5096219791 | CU47: 0.5174219264 | CV47: 0.5093645307 | CW47: 0.5118711754 | CX47: 0.5817062156 | CY47: 0.8801069645 | CZ47: 0.5093645307 | DC47: 2 | DD47: 11 | DE47: 43 | DF47: 0 | DG47: 0 | DH47: 0 | DI47: 0 | DJ47: 0 | DK47: 0 | DL47: HDD | DW47: =IF(Select_Units="IP", "Valeur R","Valeur RSI") -> Valeur RSI | DX47: =IF(Select_Units="IP", "R-value","RSI Value") -> RSI Value | EP47: Efficacité mécanique du ventilateur d'alimentation | EW47: Supply fan mechanical efficiency | EX47: Entrer le rendement mécanique de conception du ventilateur d'alimentation. | EY47: Enter the supply fan design mechanical efficiency. | FC47: L/min | FD47: L/min | FI47: Débit moyen de l'ensembles des douches | FJ47: Entrer le débit moyen de toutes les pommes de douches desservies par ce système d'eau chaude sanitaire. La valeur doit être supérieure à 0.1 mais inférieure à 4 gpm (0.006309 et 15.4 L/min). | FK47: Enter the average flow rate of all shower heads served by the service water heating system. Value must be greater than 0.1 and smaller than 4 gpm (0.006309 and 15.14 L/min). | FS47: Coefficient global HVAC-TOI : | FT47: Overall HVAC-TOI: | FV47: Coefficient global SWH-TOI : | FW47: Overall SWH-TOI: | GD47: Estevan | GE47: Saskatchewan | GF47: 7A
A48: 14 | B48: Ventilo-convecteur à deux tuyaux avec unité d'appoint facultative | C48: Two-pipe fan coil with optional make-up air unit | AH48: ToV1 | AI48: Efficacité mécanique du ventilateur d'alimentation | AJ48: Supply fan mechanical efficiency | BT48: Evaporatively cooled and water evaporatively cooled, split and single-package >= 40 kW and < 70 kW other heating section | BU48: ='Minimum efficiencies entries'!C41 -> 3.16 | BV48: COP | BX48: 31 | BY48: Constant | BZ48: 0.8 | CA48: 0.8 | CB48: 0.5 | CC48: 0.5 | CD48: 0.5 | CE48: 0.5 | CF48: 0.5 | CG48: 0.5 | CH48: 0.5 | CI48: 0.8 | CJ48: 0.5 | CK48: 0.5 | CL48: 0.5 | CM48: 0.5 | CN48: 0.5 | CO48: 0.5 | CP48: 0.5 | CQ48: 0.5 | CR48: 0.5 | CS48: 0.5 | CT48: 0.5 | CU48: 0.5 | CV48: 0.5 | CW48: 0.5 | CX48: 0.5 | CY48: 0.8 | CZ48: 0.5 | DC48: 2 | DD48: 12 | DE48: 44 | DF48: 0.1315791233 | DG48: 6.880653665e-05 | DH48: -1.510348501e-09 | DI48: 0 | DJ48: 0 | DK48: 0 | DL48: HDD | DW48: =IF(Select_Units="IP", "po. H2O","Pa") -> Pa | DX48: =IF(Select_Units="IP", "in. w.g.","Pa") -> Pa | EP48: Efficacité du moteur d'alimentation | EW48: Supply motor efficiency | EX48: Entrer le rendement de conception du moteur du ventilateur d'alimentation. | EY48: Enter the supply fan motor design efficiency. | FC48: % | FD48: % | FI48: Débit moyen de tous les autres usages | FJ48: Définir la fraction du volume hebdomadaire typique d'eau chaude qui est attribuable aux robinets. Se référer à des méthodes telles celles de l'ASHRAE pour évaluer ce %. La valeur doit être entre 0% et 100%. | FK48: Define the typical weekly fraction of the hot water volume used by faucets through this service water heating system. Refer to standard calculation methods such as those presented in ASHRAE to evaluate this %. This value must be between 0% and 100%. | FS48: Nombre de systèmes conformes : | FT48: Number of Compliant Systems: | FV48: Nombre de systèmes conformes : | FW48: Number of Compliant Systems: | GD48: Swift Current | GE48: Saskatchewan | GF48: 7A
A49: 15 | B49: Ventilo-convecteur à quatre tuyaux avec unité d'appoint facultative | C49: Four-pipe fan coil with optional make-up air unit | AH49: ToV2 | AI49: Efficacité du moteur d'alimentation | AJ49: Supply motor efficiency | BT49: =IF(Select_Lang="English",BU202,BT202) -> Water evaporatively cooled air conditioners, split and single-packaged >= 70 kW electric resistance heating section | BU49: ='Minimum efficiencies entries'!C42 -> 3.22 | BV49: COP | BX49: 32 | BY49: VSD, valve reset | BZ49: 0.8068365405 | CA49: 0.8016536196 | CB49: 0.8623000102 | CC49: 0.5603765827 | CD49: 0.9 | CE49: 0.9 | CF49: 0.9 | CG49: 0.9 | CH49: 0.9 | CI49: 0.8008604261 | CJ49: 0.9 | CK49: 0.500845969 | CL49: 0.5075301323 | CM49: 0.5189240978 | CN49: 0.5066848104 | CO49: 0.5066848104 | CP49: 0.5442173002 | CQ49: 0.52 | CR49: 0.9 | CS49: 0.9 | CT49: 0.9 | CU49: 0.8623000102 | CV49: 0.5100868593 | CW49: 0.5035921831 | CX49: 0.5603765827 | CY49: 0.8603765827 | CZ49: 0.5100868593 | DC49: 2 | DD49: 13 | DE49: 45 | DF49: 0.0001221502029 | DG49: 8.322820313e-05 | DH49: -8.025789157e-08 | DI49: -1.560035794e-05 | DJ49: -5.208438646e-06 | DK49: 5.046616678e-09 | DL49: CDD | DW49: =IF(Select_Units="IP", "°F","°C") -> °C | DX49: =IF(Select_Units="IP", "°F","°C") -> °C | DY49: ° | EP49: Efficacité mécanique du ventilateur de reprise | EW49: Return fan mechanical efficiency | EX49: Entrer le rendement mécanique de conception du ventilateur de reprise. | EY49: Enter the return fan design mechanical efficiency. | FC49: % | FD49: % | FI49: Coefficient de débit des robinets | FJ49: Définir la fraction du volume hebdomadaire typique d'eau chaude qui est attribuable aux douches. Se référer à des méthodes telles celles de l'ASHRAE pour évaluer ce %. La valeur doit être entre 0% et 100%. | FK49: Define the typical weekly fraction of the hot water volume used by showers through this service water heating system. Refer to standard calculation methods such as those presented in ASHRAE to evaluate this %. This value must be between 0% and 100%. | FS49: Nombre de systèmes non conformes : | FT49: Number of non-Compliant Systems: | FV49: Nombre de systèmes non conformes : | FW49: Number of non-Compliant Systems: | GD49: Mont Joli | GE49: Quebec | GF49: 7A
A50: 16 | B50: Ventilo-convecteur à trois tuyaux avec unité d'appoint facultative | C50: Three-pipe fan coil with optional make-up air unit | AH50: ToV3 | AI50: Efficacité mécanique du ventilateur de reprise | AJ50: Return fan mechanical efficiency | BT50: Water evaporatively cooled air conditioners, split and single-packaged >= 70 kW other heating section | BU50: ='Minimum efficiencies entries'!C43 -> 3.16 | BV50: COP | BX50: 32 | BY50: Two speed, .67, valve reset | BZ50: 0.8052586025 | CA50: 0.8012511268 | CB50: 0.8593179898 | CC50: 0.5577095292 | CD50: 0.8 | CE50: 0.8 | CF50: 0.8 | CG50: 0.8 | CH50: 0.8 | CI50: 0.800640802 | CJ50: 0.8 | CK50: 0.5006093874 | CL50: 0.5054927632 | CM50: 0.5150359374 | CN50: 0.5051743641 | CO50: 0.5051743641 | CP50: 0.5 | CQ50: 0.5 | CR50: 0.8 | CS50: 0.8 | CT50: 0.8 | CU50: 0.8593179898 | CV50: 0.5092442063 | CW50: 0.5018238563 | CX50: 0.5577095292 | CY50: 0.8577095292 | CZ50: 0.5092442063 | DC50: 2 | DD50: 14 | DE50: 46 | DF50: 0.01105951698 | DG50: -0.0004160411792 | DH50: 3.780523508e-07 | DI50: -0.05514680577 | DJ50: 0.0003454953269 | DK50: -5.037718926e-07 | DL50: CDD | DW50: =IF(Select_Units="IP", "°F","°C") -> °C | DX50: =IF(Select_Units="IP", "°F","°C") -> °C | EP50: Efficacité du moteur de reprise | EW50: Return fan motor efficiency | EX50: Entrer le rendement de conception du moteur du ventilateur de reprise. | EY50: Enter the return fan motor design efficiency. | FC50: =IF(Select_Units="IP","Gal.","L") -> L | FD50: =IF(Select_Units="IP","Gal.","L") -> L | FI50: Coefficient de débit des douches | FJ50: Entrer le débit moyen des autres appareils desservis par ce système d'eau chaude sanitaire. Une valeur de 7.6 L/min (2 gpm) peut être utilisée si aucune valeur de conception n'est disponible. La valeur doit être entre 0 et 378.5 L/min (100 gpm). | FK50: Enter the average flow rates of all other appliances using hot water in this system. A default value of 7.6 L/min (2 gpm) can be used if other design data is unavailable. This value must be greater between 0 and 378.5 L/min and (100 gpm). | FS50: Déclaration de conformité | FT50: Statement of Compliance | FV50: Déclaration de conformité | FW50: Statement of Compliance | GD50: Charlo (Campbellton) | GE50: New Brunswick | GF50: 7A
A51: 17 | B51: Thermopompe sur boucle d'eau avec unité d'air d'appoint facultative | C51: Water-loop heat pump with optional make-up air unit | AH51: ToV4 | AI51: Efficacité du moteur de reprise | AJ51: Return fan motor efficiency | BT51: Air conditioner, air-cooled, electric or no heating - SP-A, RC-A, RCU-A-C, SPY-A, RCY-A, RCU-A-CB, RCUY-A-CB, >=19 <40 kW | BU51: ='Minimum efficiencies entries'!C44 -> 3.281570466 | BX51: 32 | BY51: VSD, fixed | BZ51: 0.8022342329 | CA51: 0.8005413985 | CB51: 0.8544303198 | CC51: 0.553336148 | CD51: 0.7 | CE51: 0.7 | CF51: 0.7 | CG51: 0.7 | CH51: 0.7 | CI51: 0.8002886751 | CJ51: 0.7 | CK51: 0.5002791961 | CL51: 0.5025378275 | CM51: 0.5180499258 | CN51: 0.5024573873 | CO51: 0.5024573873 | CP51: 0.5058143955 | CQ51: 0.49 | CR51: 0.7 | CS51: 0.7 | CT51: 0.7 | CU51: 0.8544303198 | CV51: 0.5076363352 | CW51: 0.5014484742 | CX51: 0.553336148 | CY51: 0.853336148 | CZ51: 0.5076363352 | DC51: 2 | DD51: 15 | DE51: 47 | DF51: 0.04047131447 | DG51: -0.000111409334 | DH51: 1.152963337e-07 | DI51: -0.02851975602 | DJ51: 0.0001120766006 | DK51: -1.283747604e-07 | DL51: CDD | DW51: Fraction | DX51: Fraction | EP51: Régulation de la température d'alimentation | EW51: Supply temperature control | EX51: Choisir dans la liste déroulant le type de contrôle de température d'alimentation utilisé pour ce système de CVCA. | EY51: Choose from the drop down list the type of supply temperature control applicable to this HVAC system. | FS51: Ce certificat de conformité énumère les caractéristiques du bâtiment selon les dessins et devis soumis pour le permis de construction selon la partie 5.3 du Code national de l’énergie pour les bâtiments | FT51: This Certificate of Compliance lists the Building features as per actual building permit drawings and specifications in accordance with Part 5.3 of the National Energy Code for Buildings. | FV51: Ce certificat de conformité énumère les caractéristiques du bâtiment selon les dessins et devis soumis pour le permis de construction selon la partie 6.3 du Code national de l’énergie pour les bâtiments | FW51: This Certificate of Compliance lists the Building features as per actual building permit drawings and specifications in accordance with Part 6.3 of the National Energy Code for Buildings. | GD51: Riviere-du-Loup | GE51: Quebec | GF51: 7A
A52: 18 | B52: Thermopompe géothermique avec unité d'air d'appoint facultative | C52: Ground-source heat pump with optional make-up air unit | AH52: ToV5 | AI52: Régulation de la température d'alimentation | AJ52: Supply temperature control | BT52: Air conditioner, air-cooled, electric or no heating - SP-A, RC-A, RCU-A-C, SPY-A, RCY-A, RCU-A-CB, RCUY-A-CB, ≥ 39.6 < 70.3 KW | BU52: ='Minimum efficiencies entries'!C45 -> 3.222970993 | BX52: 32 | BY52: Two speed, .5, fixed | BZ52: 0.8 | CA52: 0.8 | CB52: 0.8500033276 | CC52: 0.5489747308 | CD52: 0.6 | CE52: 0.6 | CF52: 0.6 | CG52: 0.6 | CH52: 0.6 | CI52: 0.8 | CJ52: 0.6 | CK52: 0.5 | CL52: 0.5 | CM52: 0.5182725198 | CN52: 0.5 | CO52: 0.5 | CP52: 0.5 | CQ52: 0.5 | CR52: 0.6 | CS52: 0.6 | CT52: 0.6 | CU52: 0.8500033276 | CV52: 0.5061311895 | CW52: 0.5 | CX52: 0.5489747308 | CY52: 0.8489747308 | CZ52: 0.5061311895 | DC52: 2 | DD52: 16 | DE52: 48 | DF52: 0.2196174255 | DG52: 0.0002635070247 | DH52: -1.31507199e-08 | DI52: -0.08539646834 | DJ52: -8.556717706e-05 | DK52: 4.056198755e-09 | DL52: HDD | DW52: COP | DX52: COP | EP52: Efficacité de la régulation du débit d'air | EW52: Airflow control efficiency | EX52: Choisir dans la liste déroulant le type de contrôle pour le débit d'air d'alimentation utilisé pour ce système de CVCA. | EY52: Choose from the drop down list the type of supply airflow control applicable to this HVAC system. | FS52: Code national de l'énergie pour les bâtiments | FT52: National Energy Code for Buildings | FV52: Code national de l'énergie pour les bâtiments | FW52: National Energy Code for Buildings | GD52: Thunder Bay | GE52: Ontario | GF52: 7A
A53: 19 | B53: Éjecto-convecteur à deux tuyaux | C53: Induction unit, two-pipe | AH53: ToV6 | AI53: Efficacité de la régulation du débit d'air | AJ53: Airflow control efficiency | BT53: Air conditioner, air-cooled, electric or no heating - SP-A, RC-A, RCU-A-C, SPY-A, RCY-A, RCU-A-CB, RCUY-A-CB, ≥ 70.3 < 223 kW | BU53: ='Minimum efficiencies entries'!C46 -> 2.92997363 | BX53: 32 | BY53: Constant | BZ53: 0.8 | CA53: 0.8 | CB53: 0.5 | CC53: 0.5 | CD53: 0.5 | CE53: 0.5 | CF53: 0.5 | CG53: 0.5 | CH53: 0.5 | CI53: 0.8 | CJ53: 0.5 | CK53: 0.5 | CL53: 0.5 | CM53: 0.5 | CN53: 0.5 | CO53: 0.5 | CP53: 0.5 | CQ53: 0.5 | CR53: 0.5 | CS53: 0.5 | CT53: 0.5 | CU53: 0.8 | CV53: 0.5 | CW53: 0.5 | CX53: 0.5 | CY53: 0.8 | CZ53: 0.5 | DC53: 2 | DD53: 17 | DE53: 49 | DF53: 0.004191043137 | DG53: -1.813938075e-06 | DH53: 1.483701854e-10 | DI53: -0.007536181895 | DJ53: 3.568966928e-06 | DK53: -2.979925317e-10 | DL53: TDD | DW53: =IF(Select_Units="IP","W/(btu/h)","W/W") -> W/W | DX53: =IF(Select_Units="IP","W/(btu/h)","W/W") -> W/W | EP53: Pression statique totale du ventilateur d'alimentation | EW53: Supply fan total static pressure | EX53: Entrer la pression statique totale de conception du ventilateur d'alimentation. Il ne faut pas confondre cette valeur avec la pression statique externe parfois indiquée dans les devis des appareils. | EY53: Enter the supply fan design total static pressure. It is important not to enter the external static pressure value, sometimes indicated on the equipment specifications. | FS53: Auteur de la documentation | FT53: Documentation Author | FV53: Auteur de la documentation | FW53: Documentation Author | GD53: Red Deer | GE53: Alberta | GF53: 7A
A54: 20 | B54: Éjecto-convecteur à quatre tuyaux | C54: Induction unit, four-pipe | AH54: ToV7 | AI54: Pression statique totale du ventilateur d'alimentation | AJ54: Supply fan total static pressure | BT54: Air conditioner, air-cooled, electric or no heating - SP-A, RC-A, RCU-A-C, SPY-A, RCY-A, RCU-A-CB, RCUY-A-CB, >= 223 kW | BU54: ='Minimum efficiencies entries'!C47 -> 2.842074421 | DC54: 2 | DD54: 18 | DE54: 50 | DF54: -0.006577549104 | DG54: 1.873786124e-05 | DH54: -2.456710237e-08 | DI54: 0.0104510273 | DJ54: -1.299362123e-05 | DK54: 1.584074842e-08 | DL54: CDD | DW54: Sélection | DX54: Selection | EP54: Isolation des conduits de distribution | EW54: Supply duct insulation | EX54: Entrer la valeur moyenne de l'isolation des gaines d'alimentation du système de CVCA. | EY54: Enter the average insulation value for the supply ducts served by this HVAC system. | FS54: Le professionnel chargé de la coordination atteste par les présentes que la conception proposée représentée dans les documents de construction et modélisée pour cette demande de permis concorde avec tous les autres formulaires et feuilles de travail, spécifications et autres calculs soumis avec cette demande de permis. Le bâtiment proposé, dans sa conception actuelle, répond aux exigences du Code national de l’énergie pour les bâtiments. | FT54: The Coordinating Professional hereby certifies that the proposed building design represented in the construction documents and modelled for this permit application are consistent with all other forms and worksheets, specifications, and other calculations submitted with this permit application. The proposed building, as designed, meets the requirements of the National Energy Code for Buildings. | FV54: Le professionnel chargé de la coordination atteste par les présentes que la conception proposée représentée dans les documents de construction et modélisée pour cette demande de permis concorde avec tous les autres formulaires et feuilles de travail, spécifications et autres calculs soumis avec cette demande de permis. Le bâtiment proposé, dans sa conception actuelle, répond aux exigences du Code national de l’énergie pour les bâtiments. | FW54: The Coordinating Professional hereby certifies that the proposed building design represented in the construction documents and modelled for this permit application are consistent with all other forms and worksheets, specifications, and other calculations submitted with this permit application. The proposed building, as designed, meets the requirements of the National Energy Code for Buildings. | GD54: Regina | GE54: Saskatchewan | GF54: 7A
A55: 21 | B55: Éjecto-convecteur à trois tuyaux | C55: Induction unit, three-pipe | AH55: ToV8 | AI55: Isolation des conduits de distribution | AJ55: Supply duct insulation | BT55: Air conditioner, water & evaporatively cooled, electric or no heating - SP-E, SP-W, RC-E, RC-W, SPY-E, SPY-W, RCY-E, RCY-W, RCU-E-C, RCU-W-C, RCU-E-CB, RCU-W-CB, RCUY-E-CB, RCUY-W-CB, ≥ 19.0 < 39.6 kW | BU55: ='Minimum efficiencies entries'!C48 -> 3.369469675 | DC55: 2 | DD55: 19 | DE55: 51 | DF55: 0.002257566312 | DG55: -3.062543079e-07 | DH55: 3.070396124e-11 | DI55: -0.0003251136372 | DJ55: 9.954433177e-08 | DK55: -8.482021377e-12 | DL55: HDD | DW55: Sélection | DX55: Selection | EP55: Pression statique totale du ventilateur de reprise | EW55: Return fan total static pressure | EX55: Entrer la pression statique totale de conception du ventilateur de retour. Il ne faut pas confondre cette valeur avec la pression statique externe parfois indiquée dans les devis des appareils. | EY55: Enter the return fan design total static pressure. It is important not to enter the external static pressure value, sometimes indicated on the equipment specifications. | FS55: J’affirme par les présentes que je suis éligible, en vertu des dispositions des autorités compétentes, à signer ce document à titre de responsable de sa préparation et que je détiens le titre d’ingénieur civil, d’ingénieur en mécanique, d’ingénieur en électrique ou d’architecte. | FT55: I hereby affirm that I am eligible, under the provisions of the authorities having jurisdiction, to sign this document as the person responsible for its preparation; and that I am licensed as a civil engineer, mechanical engineer, electrical engineer or architect. | FV55: J’affirme par les présentes que je suis éligible, en vertu des dispositions des autorités compétentes, à signer ce document à titre de responsable de sa préparation et que je détiens le titre d’ingénieur civil, d’ingénieur en mécanique, d’ingénieur en électrique ou d’architecte. | FW55: I hereby affirm that I am eligible, under the provisions of the authorities having jurisdiction, to sign this document as the person responsible for its preparation; and that I am licensed as a civil engineer, mechanical engineer, electrical engineer or architect. | GD55: Bagotville | GE55: Quebec | GF55: 7A
A56: 22 | B56: CA intégré local, bibloc | C56: Packaged terminal AC - split | AH56: ToV9 | AI56: Pression statique totale du ventilateur de reprise | AJ56: Return fan total static pressure | BT56: Air conditioner, water & evaporatively cooled, electric or no heating - SP-E, SP-W, RC-E, RC-W, SPY-E, SPY-W, RCY-E, RCY-W, RCU-E-C, RCU-W-C, RCU-E-CB, RCU-W-CB, RCUY-E-CB, RCUY-W-CB, ≥ 39.6 < 70.3 kW | BU56: ='Minimum efficiencies entries'!C49 -> 3.222970993 | DC56: 2 | DD56: 20 | DE56: 52 | DF56: -0.0001068574326 | DG56: 2.890452185e-06 | DH56: -3.909012099e-09 | DI56: 8.045845788e-06 | DJ56: -1.693165795e-07 | DK56: 2.211865239e-10 | DL56: CDD | DW56: % | DX56: % | EP56: Chute de température de calcul des serpentins de chauffage | EW56: Heating coil design temperature drop | EX56: Entrer la valeur de conception pour le différentiel de température des serpentins de chauffage du système de CVCA. Utiliser la valeur moyenne pondérée selon la puissance dans le cas où plusieurs serpentins sont présents. | EY56: Enter the design temperature differential for the HVAC system heating coil. If multiple coils are present, use the capacity-weighted average value. | FS56: J’affirme que j’ai le droit de signer ce document à titre de responsable de sa préparation; et pour la raison suivante | FT56: I affirm that I am eligible to sign this document as the person responsible for its preparation; and for the following reason: | FV56: J’affirme que j’ai le droit de signer ce document à titre de responsable de sa préparation; et pour la raison suivante | FW56: I affirm that I am eligible to sign this document as the person responsible for its preparation; and for the following reason: | GD56: Kenora | GE56: Ontario | GF56: 7A
A57: 23 | B57: Rayonnement (plancher, plafond) avec unité d'air d'appoint facultative | C57: Radiant (in-floor, ceiling) with optional make-up air unit | AH57: ToV10 | AI57: Chute de température de calcul des serpentins de chauffage | AJ57: Heating coil design temperature drop | BT57: Air conditioner, water & evaporatively cooled, electric or no heating - SP-E, SP-W, RC-E, RC-W, SPY-E, SPY-W, RCY-E, RCY-W, RCU-E-C, RCU-W-C, RCU-E-CB, RCU-W-CB, RCUY-E-CB, RCUY-W-CB, ≥ 70.3 kW | BU57: ='Minimum efficiencies entries'!C50 -> 3.222970993 | DC57: 2 | DD57: 21 | DE57: 53 | DF57: -1.773614446e-05 | DG57: -1.622434659e-08 | DH57: 8.94796436e-13 | DI57: -7.746774784e-08 | DJ57: 3.934290947e-11 | DK57: -2.793251631e-15 | DL57: HDD | DW57: % | DX57: % | EP57: Chute de température de calcul des plinthes de chauffage | EW57: Baseboard heater design temperature drop | EX57: Entrer la valeur de conception pour le différentiel de température des plinthes de chauffage. | EY57: Enter the design temperature differential for the baseboard heaters. | FS57: Professionnel chargé de la coordination : | FT57: Coordinating Professional: | FV57: Professionnel chargé de la coordination : | FW57: Coordinating Professional: | GD57: Winnipeg | GE57: Manitoba | GF57: 7A
A58: 24 | B58: Poutres refroidies avec unité d'air d'appoint facultative | C58: Active chilled beams with optional make-up air unit | AH58: ToV11 | AI58: Chute de température de calcul des plinthes de chauffage | AJ58: Baseboard heater design temperature drop | BT58: Heat pump, electric or no heating - HSP-A, HRC-A-C, HRCU-A-C, HRC-A-CB, HRCU-A-CB, ≥ 19.0 < 39.6 kW | BU58: ='Minimum efficiencies entries'!C51 -> 3.222970993 | DC58: 2 | DD58: 22 | DE58: 54 | DF58: -1.691717752e-05 | DG58: -1.816896351e-07 | DH58: 1.999103372e-10 | DI58: 2.462017868e-07 | DJ58: -1.141000707e-09 | DK58: 1.195759603e-12 | DL58: CDD | DW58: =IF(Select_Units="IP", "Valeur R","Valeur RSI") -> Valeur RSI | DX58: =IF(Select_Units="IP", "R-value","RSI Value") -> RSI Value | EP58: Efficacité de chauffage des chaudières/générateurs d'air chaud/thermopompes | EW58: Boiler/furnace/heat pump heating efficiency | EX58: Entrer l'efficacité de l'appareil de chauffage du système. Dans le cas des pompes à chaleur, le rendement doit être exprimé en termes de fraction, comme par exemple 0.83 pour représenter 83%. Pour les petits systèmes où uniquement le AFUE est disponible, utiliser directement cette valeur. Si plus d'un appareil dessert le système, il faut spécifier l'efficacité moyenne pondérée selon la puissance des appareils. Dans le cas ou plus d'une source d'énergie est présente, il faut sélectionner l'équipement qui fournit la majorité de l'énergie de chauffage. | EY58: Enter the heating equipment efficiency. For heat pumps, the COP must be expressed as fractions, such as 0.83 for 83% efficiency. For smaller equipment where only the AFUE is available, enter this value directly. If more than one piece of equipment is serving the system, enter the capacity-weighted average efficiency. If multiple energy sources are used, the fuel source of equipment providing the majority of the heating load must be selected. | FS58: Date : | FT58: Date: | FV58: Date : | FW58: Date: | GD58: Saskatoon | GE58: Saskatchewan | GF58: 7A
A59: 25 | B59: Générateur de chaleur suspendu | C59: Unit heater | AH59: ToV12 | AI59: Efficacité de chauffage des chaudières/générateurs d'air chaud/thermopompes | AJ59: Boiler/furnace/heat pump heating efficiency | BT59: Heat pump, electric or no heating - HSP-A, HRC-A-C, HRCU-A-C, HRC-A-CB, HRCU-A-CB, ≥ 39.6 < 70.3 kW | BU59: ='Minimum efficiencies entries'!C52 -> 3.105772048 | BY59: French | BZ59: English | DC59: 2 | DD59: 23 | DE59: 55 | DF59: 0.006747766284 | DG59: 3.902458516e-06 | DH59: -2.193271978e-10 | DI59: -0.003130538884 | DJ59: -2.62786386e-06 | DK59: 1.744351244e-10 | DL59: HDD | DW59: =IF(Select_Units="IP", "Valeur R","Valeur RSI") -> Valeur RSI | DX59: =IF(Select_Units="IP", "R-value","RSI Value") -> RSI Value | EP59: Efficacité de refroidissement des refroidisseurs/systèmes à détente directe/thermopompes | EW59: Chillers/direct expansion system/heat pump cooling efficiency | EX59: Entrer l'efficacité de conception de l'équipement de refroidissement. L'efficacité doit toujours être définie en terme de COP. Si plus d'un appareil dessert le système, on doit définir l'efficacité moyenne pondérée selon la puissance des appareils. | EY59: Enter the cooling equipment efficiency. All efficiencies have to be entered in terms of COP. If more than one piece of equipment is serving the system, enter the capacity-weighted average efficiency. | FS59: Signature : | FT59: Signature: | FV59: Signature : | FW59: Signature: | GD59: Grande Prairie | GE59: Alberta | GF59: 7B
A60: 26 | B60: Ventilo-convecteur | C60: Unit ventilator | AH60: ToV13 | AI60: Efficacité de refroidissement des refroidisseurs/systèmes à détente directe/thermopompes | AJ60: Chillers/direct expansion system/heat pump cooling efficiency | BT60: Heat pump, electric or no heating - HSP-A, HRC-A-C, HRCU-A-C, HRC-A-CB, HRCU-A-CB, ≥ 70.3 kW | BU60: ='Minimum efficiencies entries'!C53 -> 2.783474949 | BY60: Rajustement AE d'alimentation | BZ60: Supply OA Reset | DC60: 2 | DD60: 24 | DE60: 56 | DF60: -0.004563339384 | DG60: 7.543673168e-05 | DH60: -8.300634732e-08 | DI60: 0.003542405714 | DJ60: -4.685791424e-05 | DK60: 5.217913925e-08 | DL60: CDD | DW60: =IF(Select_Units="IP", "pi. H2O","kPa") -> kPa | DX60: =IF(Select_Units="IP", "ft. w.g.","kPa") -> kPa | EP60: Rapport de puissance d'entrée du ventilateur de rejet | EW60: Rejection fan input power ratio | EX60: Définir la puissance unitaire des ventilateurs du système de rejet de chaleur. Cette valeur représente la puissance totale installée des ventilateurs sur la puissance de conception des équipements de rejet de chaleur. | EY60: Enter the heat rejection equipment unitary fan power. This value represents the ratio of the total installed fan power of the equipment divided by its heat rejection capacity, expressed in the same unit. | FS60: Cochez une | FT60: Check One | FV60: Cochez une | FW60: Check One | GD60: Fort St. John | GE60: Br. Columbia | GF60: 7B
A61: 27 | B61: Rayonnement avec unité d'air d'appoint facultative | C61: Radiation with optional make-up air unit | AH61: ToV14 | AI61: Rapport de puissance d'entrée du ventilateur de rejet | AJ61: Rejection fan input power ratio | BT61: Air conditioner, air-cooled, all other heating section - SP-A, RC-A, RCU-A-C, SPY-A, RCY-A, RCU-A-CB, RCUY-A-CB, >=19 <40 | BU61: ='Minimum efficiencies entries'!C54 -> 3.222970993 | BY61: Température la plus chaude | BZ61: Warmest | DC61: 2 | DD61: 25 | DE61: 57 | DF61: 0.003178211322 | DG61: 3.566289617e-06 | DH61: -2.301801509e-10 | DI61: -0.0007953703595 | DJ61: -1.504909811e-06 | DK61: 1.027882395e-10 | DL61: HDD | DW61: =IF(Select_Units="IP", "pi. H2O","kPa") -> kPa | DX61: =IF(Select_Units="IP", "ft. w.g.","kPa") -> kPa | EP61: Refroidissement par utilisation directe de l'air extérieur (économiseur sur le circuit d'air) | EW61: Cooling by direct use of outdoor air (air economizer) | EX61: Sélectionner le type de refroidissement par utilisation de l'air extérieur (TTS = température du thermomètre sec). | EY61: Select the type of air-side economizer used in this HVAC system. | FS61: Résultats sommaires de conformité | FT61: Summary compliance results | FV61: Résultats sommaires de conformité | FW61: Summary compliance results | GD61: Brandon | GE61: Manitoba | GF61: 7B
AH62: ToV15 | AI62: Refroidissement par utilisation directe de l'air extérieur (économiseur sur le circuit d'air) | AJ62: Cooling by direct use of outdoor air (air economizer) | BT62: Air conditioner, air-cooled, all other heating section - SP-A, RC-A, RCU-A-C, SPY-A, RCY-A, RCU-A-CB, RCUY-A-CB | BU62: ='Minimum efficiencies entries'!C55 -> 3.164371521 | BY62: Constant > 15°C | BZ62: Constant > 15°C | DC62: 2 | DD62: 26 | DE62: 58 | DF62: 0.001332406798 | DG62: 1.548778762e-05 | DH62: -7.930587471e-09 | DI62: -0.0008997803809 | DJ62: -1.828313494e-06 | DK62: -3.275719482e-09 | DL62: CDD | DW62: % | DX62: % | EP62: Régulation du débit d'air extérieur | EW62: Outdoor airflow control | EX62: Sélectionner le type de contrôle de l'air extérieur admis dans le système de CVCA (CVD = contrôle de ventilation selon la demande). | EY62: Select the type of outdoor air control used for this HVAC system (DCV = Demand control ventilation). | FS62: Code national de l'énergie pour les bâtiments – 2011 | FT62: National Energy Code of Canada for Buildings – 2011 | FV62: Code national de l'énergie pour les bâtiments – 2011 | FW62: National Energy Code of Canada for Buildings – 2011 | GD62: Dauphin | GE62: Manitoba | GF62: 7B
AH63: ToV16 | AI63: Régulation du débit d'air extérieur | AJ63: Outdoor airflow control | BT63: Air conditioner, air-cooled, all other heating section - SP-A, RC-A, RCU-A-C, SPY-A, RCY-A, RCU-A-CB, RCUY-A-CB | BU63: ='Minimum efficiencies entries'!C56 -> 2.871374158 | BY63: Constant <= 15°C | BZ63: Constant <= 15°C | DC63: 2 | DD63: 27 | DE63: 59 | DF63: 1558.237067 | DG63: -0.5752726744 | DH63: 4.736793513e-05 | DI63: -984.5868852 | DJ63: 0.3637690599 | DK63: -2.995675268e-05 | DL63: HDD | DW63: % | DX63: % | EP63: Efficacité de récupération de chaleur dans l'air d'évacuation | EW63: Exhaust air heat-recovery efficiency | EX63: Entrer l'efficacité de conception du système de récupération de chaleur sur l'air évacué. | EY63: Enter the design heat recovery effectiveness. | GD63: Timmins | GE63: Ontario | GF63: 7B
B64: DWH | AH64: ToV17 | AI64: Efficacité de récupération de chaleur dans l'air d'évacuation | AJ64: Exhaust air heat-recovery efficiency | BT64: Air conditioner, air-cooled, all other heating section - SP-A, RC-A, RCU-A-C, SPY-A, RCY-A, RCU-A-CB, RCUY-A-CB, >= 223 kW | BU64: ='Minimum efficiencies entries'!C57 -> 2.783474949 | BY64: VAIAL | BZ64: Forward curve with vanes | DC64: 2 | DD64: 28 | DE64: 60 | DF64: 341.259051 | DG64: -1.980529695 | DH64: 0.002604336194 | DI64: -208.9971082 | DJ64: 1.216013253 | DK64: -0.001597947512 | DL64: CDD | DW64: % | DX64: % | EP64: Refroidissement par utilisation indirecte de l'air extérieur (économiseur sur le circuit d'eau) | EW64: Cooling by indirect use of outdoor air (water economizer) | EX64: Entrer l'efficacité de conception de l'échangeur servant au refroidissement sur le circuit d'eau. | EY64: Enter the design water-side cooling coil heat exchange effectiveness. | GD64: Sept-Iles | GE64: Quebec | GF64: 7B
B65: =IF(Select_Lang="English",EP21,EO21) -> Tank | C65: 1 | AH65: ToV18 | AI65: Refroidissement par utilisation indirecte de l'air extérieur (économiseur sur le circuit d'eau) | AJ65: Cooling by indirect use of outdoor air (water economizer) | BT65: Air conditioner, water & evaporatively cooled, all other heating section - SP-E, SP-W, RC-E, RC-W, SPY-E, SPY-W, RCY-E, RCY-W, RCU-E-C, RCU-W-C, RCU-E-CB, RCU-W-CB, RCUY-E-CB, RCUY-W-CB | BU65: ='Minimum efficiencies entries'!C58 -> 3.310870202 | BY65: Moteur à vitesse variable | BZ65: VSD | DC65: 2 | DD65: 29 | DE65: 61 | DF65: -190.8360664 | DG65: 0.07176882121 | DH65: -5.991479598e-06 | DI65: 118.8874751 | DJ65: -0.04444786786 | DK65: 3.707967139e-06 | DL65: HDD | DW65: % | DX65: % | EP65: Isolation de la tuyauterie - Eau chaude | EW65: Piping insulation - hot water | EX65: Entrer la valeur moyenne de l'isolation de la tuyauterie d'eau chaude. | EY65: Enter the average piping insulation value. | GD65: Val d'Or | GE65: Quebec | GF65: 7B
B66: =IF(Select_Lang="English",EP22,EO22) -> Tankless (instantaneous) | C66: 2 | AH66: ToV19 | AI66: Isolation de la tuyauterie - Eau chaude | AJ66: Piping insulation - hot water | BT66: Air conditioner, water & evaporatively cooled, all other heating section - SP-E, SP-W, RC-E, RC-W, SPY-E, SPY-W, RCY-E, RCY-W, RCU-E-C, RCU-W-C, RCU-E-CB, RCU-W-CB, RCUY-E-CB, RCUY-W-CB | BU66: ='Minimum efficiencies entries'!C59 -> 3.164371521 | BY66: VAPAL | BZ66: Airfoil with inlet vanes | DC66: 2 | DD66: 30 | DE66: 62 | DF66: -43.46592848 | DG66: 0.20820905 | DH66: -0.0001998101494 | DI66: 27.3265228 | DJ66: -0.1273011657 | DK66: 0.0001212210531 | DL66: CDD | DW66: Sélection | DX66: Selection | EP66: Isolation de la tuyauterie - Eau réfrigérée | EW66: Piping insulation - chilled water | EX66: Entrer la valeur moyenne de l'isolation de la tuyauterie d'eau réfrigérée. | EY66: Enter the average piping insulation value. | GD66: =IF(Select_Lang="English",GF160,GD160) -> Battle Harbour (St Anthony) | GE66: Newfoundland | GF66: 7B
B67: =IF(Select_Lang="English",EP23,EO23) -> Space-heating boiler | C67: 3 | AH67: ToV20 | AI67: Isolation de la tuyauterie - Eau réfrigérée | AJ67: Piping insulation - chilled water | BT67: Air conditioner, water & evaporatively cooled, all other heating section - SP-E, SP-W, RC-E, RC-W, SPY-E, SPY-W, RCY-E, RCY-W, RCU-E-C, RCU-W-C, RCU-E-CB, RCU-W-CB, RCUY-E-CB, RCUY-W-CB | BU67: ='Minimum efficiencies entries'!C60 -> 3.164371521 | BY67: VAPA | BZ67: Riding fan curve | DC67: 2 | DD67: 31 | DE67: 63 | DF67: -65.02113334 | DG67: 0.02663793946 | DH67: -2.398111761e-06 | DI67: 40.72011671 | DJ67: -0.01648371588 | DK67: 1.488478505e-06 | DL67: HDD | DW67: Sélection | DX67: Selection | EP67: Pertes de pression dans la tuyauterie - Eau chaude | EW67: Piping pressure losses - hot water | EX67: Entrer la perte de charge totale du système de chauffage à eau chaude. Dans le cas de système multiple, spécifier la pression de tête équivalente calculée selon le débit et la perte de pression de l'ensemble des circuits rapporté selon le débit de la boucle la plus importante. | EY67: Enter the total hydronic heating system pressure losses. In the case of multiple loops associated with a single HVAC system, enter the equivalent head calculated using the flow and head of each loop and expressed as an equivalent head for the loop having the largest flow rate. | GD67: Peace River | GE67: =IF(Select_Lang="English",GG161,GE161) -> Alberta | GF67: 7B
AH68: ToV21 | AI68: Pertes de pression dans la tuyauterie - Eau chaude | AJ68: Piping pressure losses - hot water | BT68: Heat pump, all other heating section - HSP-A, HRC-A-C, HRCU-A-C, HRC-A-CB, HRCU-A-CB | BU68: ='Minimum efficiencies entries'!C61 -> 3.164371521 | BY68: TTS Double | BZ68: Dual DBT | DC68: 2 | DD68: 32 | DE68: 64 | DF68: -81.27872538 | DG68: 0.230002812 | DH68: 3.748240063e-06 | DI68: 50.80804227 | DJ68: -0.1407682602 | DK68: -5.347979398e-06 | DL68: CDD | DW68: Sélection | DX68: Selection | EP68: Pertes de pression dans la tuyauterie - Eau réfrigérée | EW68: Piping pressure losses - chilled water | EX68: Entrer la perte de charge totale du système d'eau refroidie. Dans le cas de système multiple, spécifier la pression de tête équivalente calculée selon le débit et la perte de pression de l'ensemble des circuits rapporté selon le débit de la boucle la plus importante. | EY68: Enter the total hydronic cooling system pressure losses. In the case of multiple loops associated with a single HVAC system, enter the equivalent head calculated using the flow and head of each loop and expressed as an equivalent head for the loop having the largest flow rate. | GD68: Kapuskasing | GE68: Ontario | GF68: 7B
AH69: ToV22 | AI69: Pertes de pression dans la tuyauterie - Eau réfrigérée | AJ69: Piping pressure losses - chilled water | BT69: Heat pump, all other heating section - HSP-A, HRC-A-C, HRCU-A-C, HRC-A-CB, HRCU-A-CB | BU69: ='Minimum efficiencies entries'!C62 -> 3.047172575 | BY69: Enthalpie | BZ69: Enthalpy | DC69: 3 | DD69: 1 | DE69: 65 | DF69: 5.392975106 | DG69: -0.001342478307 | DH69: 8.828779915e-08 | DI69: -3.757232411 | DJ69: 0.0009120612784 | DK69: -5.916589685e-08 | DL69: HDD | DW69: Sélection | DX69: Selection | EP69: Efficacité mécanique des pompes - Eau chaude | EW69: Pump mechanical efficiency - hot water | EX69: Entrer le rendement mécanique de conception des pompes. Dans le cas où le système est doté de plusieurs pompes, définir la valeur moyenne pondérée selon la puissance des pompes. | EY69: Enter the pump motor efficiency. When multiple pumps serve the system, use the power-weighted average pump efficiency. | GD69: Prince Albert | GE69: Saskatchewan | GF69: 7B
AH70: ToV23 | AI70: Efficacité mécanique des pompes - Eau chaude | AJ70: Pump mechanical efficiency - hot water | BT70: Heat pump, all other heating section - HSP-A, HRC-A-C, HRCU-A-C, HRC-A-CB, HRCU-A-CB | BU70: ='Minimum efficiencies entries'!C63 -> 2.724875476 | BY70: Enthalpie double | BZ70: Dual Enthalpy | DC70: 3 | DD70: 2 | DE70: =32*(DC70-1)+DD70 -> 66 | DF70: 2.529506174 | DG70: -0.0006215308983 | DH70: 4.056675663e-08 | DI70: -0.8584997119 | DJ70: 0.0002017007196 | DK70: -1.283517038e-08 | DL70: HDD | DW70: Sélection | DX70: Selection | EP70: Efficacité mécanique des pompes - Eau réfrigérée | EW70: Pump mechanical efficiency - chilled water | EX70: Entrer le rendement mécanique de conception des pompes. Dans le cas où le système est doté de plusieurs pompes, définir la valeur moyenne pondérée selon la puissance des pompes. | EY70: Enter the pump motor efficiency. When multiple pumps serve the system, use the power-weighted average pump efficiency. | GD70: Fort McMurray | GE70: Alberta | GF70: 7B
B71: =IF(Select_Lang="English", $C$72,$C$73) -> The sum of the faucet flow ratio and the shower flow ratio must not exceed 100%. | AH71: ToV24 | AI71: Efficacité mécanique des pompes - Eau réfrigérée | AJ71: Pump mechanical efficiency - chilled water | BT71: Large condensing units - RCU-A | BU71: ='Minimum efficiencies entries'!C64 -> 2.959273367 | BY71: Fixe | BZ71: Fixed | DC71: 3 | DD71: 3 | DE71: 67 | DF71: 5.390439728 | DG71: -0.001321516526 | DH71: 8.69407662e-08 | DI71: -5.395715939 | DJ71: 0.001299157905 | DK71: -8.468271735e-08 | DL71: HDD | DW71: Sélection | DX71: Selection | EP71: Efficacité des moteurs de pompe - Eau chaude | EW71: Pump motor efficiency - hot water | EX71: Entrer le rendement de conception des moteurs des pompes. Dans le cas où le système est doté de plusieurs pompes, définir la valeur moyenne pondérée selon la puissance des moteurs. | EY71: Enter the design efficiency of the pump motor. When multiple pumps serve the system, use the power-weighted average motor efficiency. | GD71: Cartwright (Happy Valley - Goose Bay) | GE71: Newfoundland | GF71: 7B
C72: The sum of the faucet flow ratio and the shower flow ratio must not exceed 100%. | AH72: ToV25 | AI72: Efficacité des moteurs de pompe - Eau chaude | AJ72: Pump motor efficiency - hot water | BT72: Large condensing units - RCU-E, RCU-W | BU72: ='Minimum efficiencies entries'!C65 -> 3.838265456 | BV72: COP | BY72: Thermomètre sec | BZ72: Dry Bulb | DC72: 3 | DD72: 4 | DE72: 68 | DF72: 2.14216038 | DG72: -0.0005267075467 | DH72: 3.470657243e-08 | DI72: -0.8890235608 | DJ72: 0.0002145776523 | DK72: -1.400663146e-08 | DL72: HDD | DW72: =IF(Select_Units="IP","btuh","W") -> W | DX72: =IF(Select_Units="IP","btuh","W") -> W | EP72: Efficacité des moteurs de pompe - Eau réfrigérée | EW72: Pump motor efficiency - chilled water | EX72: Entrer le rendement de conception des moteurs des pompes. Dans le cas où le système est doté de plusieurs pompes, définir la valeur moyenne pondérée selon la puissance des moteurs. | EY72: Enter the design efficiency of the pump motor. When multiple pumps serve the system, use the power-weighted average motor efficiency. | GD72: Happy Valley - Goose Bay | GE72: Newfoundland | GF72: 7B
B73: =IF(Select_Lang="English", $B$74,$B$75) -> HVAC Type ID - | C73: La somme du coefficient de débit des robinets et du coefficient de débit des douches ne doit pas dépasser 100%. | AH73: ToV26 | AI73: Efficacité des moteurs de pompe - Eau réfrigérée | AJ73: Pump motor efficiency - chilled water | BT73: =IF(Select_Lang="English",BU226,BT226) -> Condensing unit - Air-cooled >= 73 (250000) | BU73: ='Minimum efficiencies entries'!C66 -> 2.96 | BV73: COP | BY73: Fraction horaire | BZ73: Fraction of hourly | DC73: 3 | DD73: 5 | DE73: 69 | DF73: 0 | DG73: 0 | DH73: 0 | DI73: 0 | DJ73: 0 | DK73: 0 | DL73: CDD | EP73: Régulation de la pompe d'eau chaude | EW73: Hot water pump control | EX73: Sélectionner le type de régulation applicable aux pompes d'eau chaude. | EY73: Select the hot water pump control logic applicable to this system. | GD73: The Pas | GE73: Manitoba | GF73: 7B
B74: HVAC Type ID - | AH74: ToV27 | AI74: Régulation de la pompe d'eau chaude | AJ74: Hot water pump control | BT74: Condensing unit - Water evaporatively cooled >= 73 (250000) | BU74: ='Minimum efficiencies entries'!C67 -> 3.84 | BV74: COP | BY74: CVD reprise | BZ74: DCV Return | DC74: 3 | DD74: 6 | DE74: 70 | DF74: 0 | DG74: 0 | DH74: 0 | DI74: 0 | DJ74: 0 | DK74: 0 | DL74: TDD | EP74: Régulation de la pompe d'eau réfrigérée | EW74: Chilled water pump control | EX74: Sélectionner le type de régulation applicable aux pompes d'eau réfrigérée. | EY74: Select the chilled water pump control logic applicable to this system. | GD74: Whitehorse | GE74: Yukon | GF74: 7B
B75: Type d'installation CVCA | AH75: ToV28 | AI75: Régulation de la pompe d'eau réfrigérée | AJ75: Chilled water pump control | BT75: Ground or water source heat pumps < 35 (119500) - open systems | BU75: ='Minimum efficiencies entries'!C68 -> 4.75 | BY75: CVD alimentation | BZ75: DCV Supply | DC75: 3 | DD75: 7 | DE75: 71 | DF75: -0.9245519153 | DG75: 0.0002561003189 | DH75: -1.776883414e-08 | DI75: 0.1099810375 | DJ75: -3.386738354e-05 | DK75: 2.460665338e-09 | DL75: HDD | EP75: Régulation de la température boucle d'eau chaude | EW75: Hot water loop temperature control | EX75: Sélectionner le type de régulation de température applicable au réseau d'eau chaude. | EY75: Select the hot water temperature control logic applicable to this system. | GD75: Whitehorse | GE75: Yukon | GF75: 7B
AH76: ToV29 | AI76: Régulation de la température boucle d'eau chaude | AJ76: Hot water loop temperature control | BT76: Ground or water source heat pumps < 35 (119500) - closed systems | BU76: ='Minimum efficiencies entries'!C69 -> 3.93 | BY76: CVD frac. Horaire, reprise | BZ76: DCV, fraction of hourly, Return | DC76: 3 | DD76: 8 | DE76: 72 | DF76: 0.009111011495 | DG76: 2.816540209e-06 | DH76: -2.709786445e-10 | DI76: -0.0009343151827 | DJ76: -2.913763147e-07 | DK76: 2.801454059e-11 | DL76: HDD | EP76: Régulation de la température boucle d'eau réfrigérée | EW76: Chilled water loop temperature control | EX76: Sélectionner le type de régulation de température applicable au réseau d'eau réfrigérée. | EY76: Select the chilled water temperature control logic applicable to this system. | GD76: Fort Nelson | GE76: Br. Columbia | GF76: 8
B77: =IF(Select_Lang="English", $B$78,$B$79) -> SWH Type ID - | AH77: ToV30 | AI77: Régulation de la température boucle d'eau réfrigérée | AJ77: Chilled water loop temperature control | BT77: Internal water-loop heat pumps < 40 (136500) | BU77: ='Minimum efficiencies entries'!C70 -> 3.52 | BY77: Fixe | BZ77: Fixed | DC77: 3 | DD77: 9 | DE77: 73 | DF77: 0.6604933744 | DG77: -0.0001569666584 | DH77: 9.931251486e-09 | DI77: -1.082283355 | DJ77: 0.0002738336033 | DK77: -1.830172602e-08 | DL77: TDD | EP77: Régulation du débite d'eau chaude | EW77: Hot water flow control | EX77: Sélectionner le type de régulation de débit aux pompes d'eau chaude. Dans le cas ou plusieurs pompes ont une régulation différente, sélectionner celle qui est applicable à la majorité de la force motrice. (VV = vitesse variable) | EY77: Select the hot water pump flow control applicable to this system. In the case where multiple pumps used different controls, select the type that controls the majority of the pump installed power. | GD77: Big Trout Lake | GE77: Ontario | GF77: 8
B78: SWH Type ID - | AH78: ToV31 | AI78: Régulation du débit d'eau chaude | AJ78: Hot water flow control | BT78: Water-cooled air conditioners < 19 (65000) | BU78: ='Minimum efficiencies entries'!C71 -> 3.54 | BV78: COP | BY78: Demande seulement | BZ78: Demand-only | DC78: 3 | DD78: 10 | DE78: 74 | DF78: 0 | DG78: 0 | DH78: 0 | DI78: 0 | DJ78: 0 | DK78: 0 | DL78: HDD | EP78: Régulation du débite d'eau réfrigérée | EW78: Chilled water flow control | EX78: Sélectionner le type de régulation de débit aux pompes d'eau réfrigérée. Dans le cas ou plusieurs pompes ont une régulation différente, sélectionner celle qui est applicable à la majorité de la force motrice. (VV = vitesse variable) | EY78: Select the chilled water pump flow control applicable to this system. In the case where multiple pumps used different controls, select the type that controls the majority of the pump installed power. | GD78: Fort Smith | GE78: Northwest Terr. | GF78: 8
B79: Type d'installation SWH | AH79: ToV32 | AI79: Régulation du débit d'eau réfrigérée | AJ79: Chilled water flow control | BT79: Water-cooled air conditioners >= 19 kW and < 40 kW electric resistance heating (or none) | BU79: ='Minimum efficiencies entries'!C72 -> 3.37 | BV79: COP | BY79: Veille | BZ79: Standby | DC79: 3 | DD79: 11 | DE79: 75 | DF79: -0.0001009749853 | DG79: -1.546343649e-08 | DH79: 1.322747748e-12 | DI79: 3.346830242e-06 | DJ79: 5.214043253e-10 | DK79: -4.51831451e-14 | DL79: HDD | EW79: System Type | EX79: Choisir un système parmi les 27 installations CVCA offerts dans la liste déroulante et tel que présenté dans la tableau 5.3.1.1 du CNÉB. Les composantes applicables au système deviennent alors visibles. Si certaines composantes ne sont toutefois pas applicables au système spécifique du bâtiment, les valeurs de référence doivent obligatoirement être conservées par l'utilisateur dans le cadre de l'évaluation de conformité. | EY79: Choose from the list of 27 HVAC System Types ID available in the drop down list and as provided in Table 5.3.1.1 of the NECB. The components that are applicable to the system will then be visible. In all instances where a visible component is NOT part of the system being evaluated, its value must be defined as identical to that of the Reference value for a compliance calculation. | GD79: Thompson | GE79: Manitoba | GF79: 8
BT80: Water-cooled air conditioners >= 19 kW and < 40 kW all other | BU80: ='Minimum efficiencies entries'!C73 -> 3.31 | BV80: COP | BY80: Zone de délestage | BZ80: Snap zone | DC80: 3 | DD80: 12 | DE80: 76 | DF80: 0.5514684328 | DG80: 5.069635762e-05 | DH80: 1.327379874e-09 | DI80: 0 | DJ80: 0 | DK80: 0 | DL80: HDD | EW80: Cooling System Type | EX80: Choisir le type de système de refroidissement associé au système de CVCA, tel que défini dans le tableau 5.2.12.1 of the CNÉB. | EY80: Choose the type of cooling equipment associated with this HVAC system as defined in Table 5.2.12.1 of the NECB. | GD80: Uranium City | GE80: Saskatchewan | GF80: 8
BT81: Water-cooled air conditioners >= 40 kW and < 70 kW electric resistance heating (or none) | BU81: ='Minimum efficiencies entries'!C74 -> 3.22 | BV81: COP | BY81: Programmé | BZ81: Scheduled | DC81: 3 | DD81: 13 | DE81: 77 | DF81: 0.171087819 | DG81: 0.0006202050403 | DH81: -6.973656308e-07 | DI81: -0.01975309333 | DJ81: -4.929274734e-05 | DK81: 5.392707436e-08 | DL81: CDD | EW81: Cooling Sub-System Type | EX81: Choisir le type particulier d'appareil associé au système de refroidissement, tel que défini dans le tableau 5.2.12.1 of the CNÉB. | EY81: Choose the precise category associated with the cooling equipment system type, as defined in Table 5.2.12.1 of the NECB. | GD81: Wabush | GE81: Newfoundland | GF81: 8
BT82: Water-cooled air conditioners >= 40 kW and < 70 kW all other | BU82: ='Minimum efficiencies entries'!C75 -> 3.16 | BV82: COP | BY82: Délestage à l'extérieur | BZ82: Snap outdoor | DC82: 3 | DD82: 14 | DE82: 78 | DF82: -0.6345551132 | DG82: -0.005990660946 | DH82: 5.906965004e-06 | DI82: 42.12638582 | DJ82: -0.4153736222 | DK82: 0.0005655663234 | DL82: CDD | EW82: Cooling capacity | EX82: Cette valeur ne sert uniquement qu'à définir le rendement de référence de certains appareils de refroidissement, tel que défini dans le tableau 5.2.12.1 du CNÉB. | EY82: This value only serves in defining the Reference value performance for certain type of cooling equipment, as defined in Table 5.2.12.1 of the NECB. | GD82: Nitchequon | GE82: Quebec | GF82: 8
B83: =IF(Select_Lang="English", $C$83,$C$84) -> Incomplete Data | C83: Incomplete Data | BT83: Water-cooled air conditioners >= 70 kW electric resistance heating (or none) | BU83: ='Minimum efficiencies entries'!C76 -> 3.22 | BV83: COP | BY83: Demande seulement | BZ83: Demand-only | DC83: 3 | DD83: 15 | DE83: 79 | DF83: -0.08753634103 | DG83: 0.002692671663 | DH83: -4.216520917e-06 | DI83: 0.04995525122 | DJ83: -0.001536654238 | DK83: 2.406284741e-06 | DL83: CDD | EW83: Heating System Type | EX83: Choisir le type de système de chauffage associé au système de CVCA, tel que défini dans le tableau 5.2.12.1 of the CNÉB. Pour les cas de chauffage à résistance électrique, choisir une chaudière électrique. Toutefois, dans ce cas, les valeurs de référence pour le système de distribution à eau chaude doivent alors être conservées. | EY83: Choose the type of heating equipment associated with this HVAC system as defined in Table 5.2.12.1 of the NECB. For all resistance electric heating cases, the user must select "Electric boilers". However, in this case, all of the components relating to the hot water distribution system must be defined using the Reference values. | GD83: Kuujjuarapik | GE83: Quebec | GF83: 8
C84: Données Incomplètes | BT84: Water-cooled air conditioners >= 70 kW all other | BU84: ='Minimum efficiencies entries'!C77 -> 3.16 | BV84: COP | BY84: Veille | BZ84: Standby | DC84: 3 | DD84: 16 | DE84: 80 | DF84: -0.153914949 | DG84: 6.627441471e-05 | DH84: -5.186124112e-09 | DI84: -0.08396899055 | DJ84: 4.508256116e-05 | DK84: -2.135758001e-09 | DL84: TDD | GD84: Schefferville | GE84: Quebec | GF84: 8
BT85: Direct-expansion ground-source heat pumps <= 21 (71700) | BU85: ='Minimum efficiencies entries'!C78 -> 3.808965719 | BY85: Zone de délestage | BZ85: Snap zone | DC85: 3 | DD85: 17 | DE85: 81 | DF85: 0.1570487086 | DG85: -1.238868723e-05 | DH85: 1.253577561e-09 | DI85: -0.643771454 | DJ85: 0.0002387972755 | DK85: -1.32482476e-08 | DL85: TDD | GD85: Yellowknife | GE85: Northwest Terr. | GF85: 8
BT86: PTAC and PTHP air-cooled electrically operated - Electrically Operated | BU86: -1 | BY86: Programmé | BZ86: Scheduled | DC86: 3 | DD86: 18 | DE86: 82 | DF86: 0 | DG86: 0 | DH86: 0 | DI86: 0 | DJ86: 0 | DK86: 0 | DL86: CDD | GD86: Kuujuaq | GE86: Quebec | GF86: 8
BT87: PTHP in cooling mode (Standard rating) | BU87: -2 | BY87: Délestage à l'extérieur | BZ87: Snap outdoor | DC87: 3 | DD87: 19 | DE87: 83 | DF87: 0.1643040559 | DG87: -3.981045926e-05 | DH87: 2.644215424e-09 | DI87: -0.01057772264 | DJ87: 2.580955268e-06 | DK87: -1.7229714e-10 | DL87: HDD | GD87: Norman Wells | GE87: Northwest Terr. | GF87: 8
BT88: PTHP in heating mode (Standard rating) | BU88: -3 | BY88: Fixe | BZ88: Fixed | DC88: 3 | DD88: 20 | DE88: 84 | DF88: 0 | DG88: 0 | DH88: 0 | DI88: 0 | DJ88: 0 | DK88: 0 | DL88: HDD | GD88: Churchill | GE88: Manitoba | GF88: 8
BT89: Room air conditioners with reserve cycle with louvered sides < 10.55 (36000) | BU89: ='Minimum efficiencies entries'!C82 -> 2.490477586 | BY89: Programmé | BZ89: Scheduled | DC89: 3 | DD89: 21 | DE89: 85 | DF89: -0.0002580694871 | DG89: -2.918426407e-08 | DH89: 2.724813648e-12 | DI89: -1.628154686e-07 | DJ89: 1.410905909e-10 | DK89: -1.327051867e-14 | DL89: HDD | GD89: Inuvik | GE89: Northwest Terr. | GF89: 8
BT90: Room air conditioners with reserve cycle without louvered sides < 10.55 (36000) | BU90: ='Minimum efficiencies entries'!C83 -> 2.343978904 | BY90: Correction chaud-froid | BZ90: Load reset | DC90: 3 | DD90: 22 | DE90: 86 | DF90: 0 | DG90: 0 | DH90: 0 | DI90: 0 | DJ90: 0 | DK90: 0 | DL90: HDD | GD90: Iqualuit | GE90: Nunavut | GF90: 8
BT91: Room air conditioners without reverse cycle < 10.55 (36000) | BU91: ='Minimum efficiencies entries'!C84 -> 2.490477586 | BY91: Rajustement AE, min 140 °F | BZ91: OA Reset, min 140 °F | DC91: 3 | DD91: 23 | DE91: 87 | DF91: 0.2776803638 | DG91: -5.929702e-05 | DH91: 3.909375545e-09 | DI91: -0.1503916876 | DJ91: 3.183395357e-05 | DK91: -2.109860556e-09 | DL91: HDD | GD91: Inuvik (NWT) | GE91: Yukon | GF91: 8
BT92: Room air conditioners with louvered sides < 1.8 kW | BU92: ='Minimum efficiencies entries'!C85 -> 2.84 | BY92: Rajustement AE, min >140 °F | BZ92: OA Reset, min >140 °F | DC92: 3 | DD92: 24 | DE92: 88 | DF92: 0 | DG92: 0 | DH92: 0 | DI92: 0 | DJ92: 0 | DK92: 0 | DL92: HDD | GD92: Chesterfield Inlet | GE92: Nunavut | GF92: 8
BT93: Room air conditioners with louvered sides >= 1.8 kW and < 2.3 kW | BU93: ='Minimum efficiencies entries'!C86 -> 2.84 | BY93: Fixe | BZ93: Fixed | DC93: 3 | DD93: 25 | DE93: 89 | DF93: 0.1109914396 | DG93: -1.142347695e-05 | DH93: 3.795826099e-10 | DI93: -0.05110140408 | DJ93: 7.040958478e-06 | DK93: -3.242669434e-10 | DL93: HDD | GD93: Coral Harbour | GE93: Nunavut | GF93: 8
BT94: Room air conditioners with louvered sides >= 2.3 kW and < 4.1 kW | BU94: ='Minimum efficiencies entries'!C87 -> 2.87 | BY94: Programmé | BZ94: Scheduled | DC94: 3 | DD94: 26 | DE94: 90 | DF94: 0 | DG94: 0 | DH94: 0 | DI94: 0 | DJ94: 0 | DK94: 0 | DL94: HDD | GD94: Cambridge Bay | GE94: Nunavut | GF94: 8
BT95: Room air conditioners with louvered sides >= 4.1 kW and < 5.9 kW | BU95: ='Minimum efficiencies entries'!C88 -> 2.84 | BY95: Correction chaud-froid | BZ95: Load reset | DC95: 3 | DD95: 27 | DE95: 91 | DF95: -105.4758568 | DG95: 0.03557710114 | DH95: -2.600162549e-06 | DI95: 66.73690448 | DJ95: -0.02213510141 | DK95: 1.609388757e-06 | DL95: HDD
BT96: Room air conditioners with louvered sides >= 5.9 kW | BU96: ='Minimum efficiencies entries'!C89 -> 2.49 | BY96: Rajustement AW, min 58 °F | BZ96: OA Reset, min 58 °F | DC96: 3 | DD96: 28 | DE96: 92 | DF96: 0 | DG96: 0 | DH96: 0 | DI96: 0 | DJ96: 0 | DK96: 0 | DL96: CDD | GD96: Zones climatiques | GF96: Climate Zones
BT97: Room air conditioners without louvered sides < 2.3 kW | BU97: ='Minimum efficiencies entries'!C90 -> 2.64 | BY97: Rajustement AE, min <54 °F | BZ97: OA Reset, min <54 °F | DC97: 3 | DD97: 29 | DE97: 93 | DF97: 41.1443121 | DG97: -0.01423304654 | DH97: 1.095088533e-06 | DI97: -19.52493902 | DJ97: 0.007151116362 | DK97: -5.615277812e-07 | DL97: HDD | GD97: Ville / Emplacement | GE97: Province/Territoire | GF97: City / Location | GG97: Province/Territory
BT98: Room air conditioners wothout louvered sides >= 2.3 kW and < 5.9 kW | BU98: ='Minimum efficiencies entries'!C91 -> 2.49 | BY98: VV, réenclenchement vanne | BZ98: VSD, valve reset | DC98: 3 | DD98: 30 | DE98: 94 | DF98: 0 | DG98: 0 | DH98: 0 | DI98: 0 | DJ98: 0 | DK98: 0 | DL98: CDD | GD98: Vancouver | GE98: Colombie Brit. | GF98: Vancouver | GG98: Br. Columbia
BT99: Room air conditioners without louvered sides >= 5.9 kW | BU99: ='Minimum efficiencies entries'!C92 -> 2.49 | BY99: Deux vitesses, .67 | BZ99: Two speed, .67 | DC99: 3 | DD99: 31 | DE99: 95 | DF99: 10.77276442 | DG99: -0.002433951174 | DH99: 9.330470304e-08 | DI99: -9.600330575 | DJ99: 0.002407604588 | DK99: -9.453655326e-08 | DL99: HDD | GD99: Abbotsford | GE99: Colombie Brit. | GF99: Abbotsford | GG99: Br. Columbia
BT100: Room air conditioner heat pumps with louvered sides < 5.9 kW | BU100: ='Minimum efficiencies entries'!C93 -> 2.65 | BY100: VV, fixe | BZ100: VSD, fixed | DC100: 3 | DD100: 32 | DE100: 96 | DF100: 0 | DG100: 0 | DH100: 0 | DI100: 0 | DJ100: 0 | DK100: 0 | DL100: CDD | GD100: Tofino | GE100: Colombie Brit. | GF100: Tofino | GG100: Br. Columbia
BT101: Room air conditioner heat pumps with louvered sides < 5.9 kW | BU101: ='Minimum efficiencies entries'!C94 -> 2.49 | BY101: Deux vitesses, .5 | BZ101: Two speed, .5 | DC101: =DC100+1 -> 4 | DD101: 1 | DE101: 97 | DF101: 3.621081848 | DG101: -0.0008684182445 | DH101: 5.674325886e-08 | DI101: -2.018124242 | DJ101: 0.0004702552019 | DK101: -3.030669949e-08 | DL101: HDD | GD101: Penticton | GE101: Colombie Brit. | GF101: Penticton | GG101: Br. Columbia
BT102: =IF(Select_Lang="English",BU255,BT255) -> Room air conditioner heat pumps without louvered sides < 4.1 | BU102: ='Minimum efficiencies entries'!C95 -> 2.49 | BY102: Constant | BZ102: Constant | DC102: =DC101 -> 4 | DD102: 2 | DE102: 98 | DF102: 2.254529651 | DG102: -0.0005361632567 | DH102: 3.480295518e-08 | DI102: -0.8091439324 | DJ102: 0.0001849551502 | DK102: -1.175096138e-08 | DL102: HDD | GD102: Penticton | GE102: Colombie Brit. | GF102: Penticton | GG102: Br. Columbia
BT103: Room air conditioner heat pumps without louvered sides >= 4.1 | BU103: ='Minimum efficiencies entries'!C96 -> 2.34 | BY103: VV, réenclenchement vanne | BZ103: VSD, valve reset | DC103: =DC102 -> 4 | DD103: 3 | DE103: 99 | DF103: 4.043846084 | DG103: -0.0009642026476 | DH103: 6.369313366e-08 | DI103: -4.102991757 | DJ103: 0.0009637530328 | DK103: -6.328782456e-08 | DL103: HDD | GD103: Port Hardy | GE103: Colombie Brit. | GF103: Port Hardy | GG103: Br. Columbia
BT104: Room air conditioner casement only | BU104: ='Minimum efficiencies entries'!C97 -> 2.55 | BY104: Deux vitesses, .67, réencl., vanne | BZ104: Two speed, .67, valve reset | DC104: 4 | DD104: 4 | DE104: 100 | DF104: 1.636386798 | DG104: -0.0003931220597 | DH104: 2.601952498e-08 | DI104: -0.6950667749 | DJ104: 0.0001648424874 | DK104: -1.08498142e-08 | DL104: HDD | GD104: Windsor | GE104: Ontario | GF104: Windsor | GG104: Ontario
BT105: Room air conditioner casement slider | BU105: ='Minimum efficiencies entries'!C98 -> 2.78 | BY105: VV, fixe | BZ105: VSD, fixed | DC105: 4 | DD105: 5 | DE105: 101 | DF105: 0 | DG105: 0 | DH105: 0 | DI105: 0 | DJ105: 0 | DK105: 0 | DL105: HDD | GD105: Kamloops | GE105: Colombie Brit. | GF105: Kamloops | GG105: Br. Columbia
BT106: Air-cooled < 19 (65000) | BU106: ='Minimum efficiencies entries'!C99 -> 2.09 | BY106: Deux vitesses, .5, fixe | BZ106: Two speed, .5, fixed | DC106: 4 | DD106: 6 | DE106: 102 | DF106: 0 | DG106: 0 | DH106: 0 | DI106: 0 | DJ106: 0 | DK106: 0 | DL106: TDD | GD106: Toronto | GE106: Ontario | GF106: Toronto | GG106: Ontario
BT107: Air-cooled < 19 (65000) and < 70 (240000) | BU107: ='Minimum efficiencies entries'!C100 -> 1.99 | BY107: Constant | BZ107: Constant | DC107: 4 | DD107: 7 | DE107: 103 | DF107: -0.5099971099 | DG107: 0.0001382613123 | DH107: -9.526628771e-09 | DI107: 0.04023501819 | DJ107: -1.225600029e-05 | DK107: 8.814304581e-10 | DL107: HDD | GD107: Castlegar | GE107: Colombie Brit. | GF107: Castlegar | GG107: Br. Columbia
BT108: Air-cooled >= 70 (240000) | BU108: ='Minimum efficiencies entries'!C101 -> 1.79 | DC108: 4 | DD108: 8 | DE108: 104 | DF108: 0.04485620064 | DG108: -9.555380548e-06 | DH108: 5.563312721e-10 | DI108: -0.004358971559 | DJ108: 9.013906175e-07 | DK108: -5.120719628e-11 | DL108: HDD | GD108: Victoria | GE108: Colombie Brit. | GF108: Victoria | GG108: Br. Columbia
BT109: Water-cooled < 19 (65000) | BU109: ='Minimum efficiencies entries'!C102 -> 2.49 | DC109: 4 | DD109: 9 | DE109: 105 | DF109: -0.8794370724 | DG109: 0.0002284876185 | DH109: -1.559043113e-08 | DI109: 0.1696715393 | DJ109: -5.053736509e-05 | DK109: 3.605461908e-09 | DL109: HDD | GD109: Prince Rupert | GE109: Colombie Brit. | GF109: Prince Rupert | GG109: Br. Columbia
BT110: Water-cooled >= 19 (65000) and < 70 (240000) | BU110: ='Minimum efficiencies entries'!C103 -> 2.39 | DC110: 4 | DD110: 10 | DE110: 106 | DF110: 0 | DG110: 0 | DH110: 0 | DI110: 0 | DJ110: 0 | DK110: 0 | DL110: HDD | GD110: Halifax | GE110: Nouvelle Écosse | GF110: Halifax | GG110: Nova Scotia
BT111: Water-cooled >= 70 (240000) | BU111: ='Minimum efficiencies entries'!C104 -> 2.29 | DC111: 4 | DD111: 11 | DE111: 107 | DF111: -0.0001009749853 | DG111: -1.546343649e-08 | DH111: 1.322747748e-12 | DI111: 3.346830242e-06 | DJ111: 5.214043253e-10 | DK111: -4.51831451e-14 | DL111: HDD | GD111: Yarmouth | GE111: Nouvelle Écosse | GF111: Yarmouth | GG111: Nova Scotia
BT112: Water-cooled with fluid economizer < 19 (65000) | BU112: ='Minimum efficiencies entries'!C105 -> 2.44 | DC112: 4 | DD112: 12 | DE112: 108 | DF112: 0.3496743003 | DG112: 7.645226078e-05 | DH112: 3.286318346e-10 | DI112: 0 | DJ112: 0 | DK112: 0 | DL112: HDD | GD112: London | GE112: Ontario | GF112: London | GG112: Ontario
BT113: Water-cooled with fluid economizer >= 19 (65000) and < 70 (240000) | BU113: ='Minimum efficiencies entries'!C106 -> 2.34 | DC113: 4 | DD113: 13 | DE113: 109 | DF113: -0.01745905953 | DG113: 0.0004977931951 | DH113: -5.985660835e-07 | DI113: 0.001162449536 | DJ113: -3.097771517e-05 | DK113: 3.761313188e-08 | DL113: CDD | GD113: Trenton | GE113: Ontario | GF113: Trenton | GG113: Ontario
BT114: Water-cooled with fluid economizer >= 70 (240000) | BU114: ='Minimum efficiencies entries'!C107 -> 2.24 | DC114: 4 | DD114: 14 | DE114: 110 | DF114: 0.004532885729 | DG114: -0.0009110524051 | DH114: 6.524054233e-07 | DI114: 0.212627421 | DJ114: -0.001465751987 | DK114: 2.261427984e-06 | DL114: CDD | GD114: Montréal (Dorval) | GE114: Québec | GF114: Montreal (Dorval) | GG114: Quebec
BT115: Glycol-cooled < 19 (65000) | BU115: ='Minimum efficiencies entries'!C108 -> 2.39 | DC115: 4 | DD115: 15 | DE115: 111 | DF115: -0.002157198352 | DG115: 0.001111309367 | DH115: -1.849794231e-06 | DI115: 0.001231070254 | DJ115: -0.0006342021832 | DK115: 1.055640828e-06 | DL115: CDD | GD115: Greenwood | GE115: Nouvelle Écosse | GF115: Greenwood | GG115: Nova Scotia
BT116: Glycol-cooled >= 19 (65000) and 70 (240000) | BU116: ='Minimum efficiencies entries'!C109 -> 2.04 | DC116: 4 | DD116: 16 | DE116: 112 | DF116: -0.2080850488 | DG116: 7.969868022e-05 | DH116: -6.027310052e-09 | DI116: 0.01000757453 | DJ116: 4.903252879e-06 | DK116: 1.163526564e-09 | DL116: TDD | GD116: Terrace | GE116: Colombie Brit. | GF116: Terrace | GG116: Br. Columbia
BT117: Glycol-cooled >= 70 (240000) | BU117: ='Minimum efficiencies entries'!C110 -> 1.99 | DC117: 4 | DD117: 17 | DE117: 113 | DF117: 0.5850000002 | DG117: -0.0002101623665 | DH117: 1.861360602e-08 | DI117: -1.011265843 | DJ117: 0.0004187615504 | DK117: -2.897023426e-08 | DL117: HDD | GD117: Ottawa | GE117: Ontario | GF117: Ottawa | GG117: Ontario
BT118: Glycol-cooled with fluid economizer < 19 (65000) | BU118: ='Minimum efficiencies entries'!C111 -> 2.34 | DC118: 4 | DD118: 18 | DE118: 114 | DF118: -0.004140922868 | DG118: 0.0002010096481 | DH118: -3.120380848e-07 | DI118: 0.002951135343 | DJ118: -0.0001331284264 | DK118: 2.070771541e-07 | DL118: CDD | GD118: Charlottetown | GE118: Île-du-Prince-Édouard | GF118: Charlottetown | GG118: P.E.I.
BT119: Glycol-cooled with fluid economizer >= 19 (65000) and < 70 (240000) | BU119: ='Minimum efficiencies entries'!C112 -> 1.99 | DC119: 4 | DD119: 19 | DE119: 115 | DF119: 0.1643040559 | DG119: -3.981045926e-05 | DH119: 2.644215424e-09 | DI119: -0.01057772264 | DJ119: 2.580955268e-06 | DK119: -1.7229714e-10 | DL119: HDD | GD119: St-Hubert | GE119: Québec | GF119: St. Hubert | GG119: Quebec
BT120: Glycol-cooled with fluid economizer >= 70 (240000) | BU120: ='Minimum efficiencies entries'!C113 -> 1.94 | DC120: 4 | DD120: 20 | DE120: 116 | DF120: -0.002000461831 | DG120: 4.04837792e-05 | DH120: -5.655076738e-08 | DI120: 0.0001734404088 | DJ120: -2.617128018e-06 | DK120: 3.42358619e-09 | DL120: CDD | GD120: Lethbridge | GE120: Alberta | GF120: Lethbridge | GG120: Alberta
BT121: Chilled water air handler < 19 (65000) | BU121: ='Minimum efficiencies entries'!C114 -> 6.06 | DC121: 4 | DD121: 21 | DE121: 117 | DF121: -0.000225869024 | DG121: -1.247251583e-08 | DH121: 1.923936117e-12 | DI121: -1.270432639e-07 | DJ121: 1.750336642e-09 | DK121: -2.840920546e-12 | DL121: HDD | GD121: Cranbrook | GE121: Colombie Brit. | GF121: Cranbrook | GG121: Br. Columbia
BT122: Chilled water air handler >= 19 (65000) and < 70 (240000) | BU122: ='Minimum efficiencies entries'!C115 -> 7.06 | DC122: 4 | DD122: 22 | DE122: 118 | DF122: 0.0003925540283 | DG122: -1.237116688e-05 | DH122: 1.655849404e-08 | DI122: 1.254747121e-07 | DJ122: 2.215254735e-08 | DK122: -2.756757291e-11 | DL122: CDD | GD122: Frédéricton | GE122: Nouveau-Brunswick | GF122: Fredericton | GG122: New Brunswick
BT123: Chilled water air handler >= 70 (240000) | BU123: ='Minimum efficiencies entries'!C116 -> 9.06 | DC123: 4 | DD123: 23 | DE123: 119 | DF123: 0.06915284027 | DG123: 2.43900445e-06 | DH123: -4.382637025e-10 | DI123: -0.007812019389 | DJ123: -0.0002248170246 | DK123: 3.357445701e-07 | DL123: HDD | GD123: Truro | GE123: Nouvelle Écosse | GF123: Truro | GG123: Nova Scotia
BT124: Air cooled, with condenser, electrically operated | BU124: ='Minimum efficiencies entries'!C117 -> 2.8 | DC124: 4 | DD124: 24 | DE124: 120 | DF124: -0.4601935178 | DG124: 0.00688849868 | DH124: -1.014584773e-05 | DI124: 0.3683850705 | DJ124: -0.005082757808 | DK124: 7.491505827e-06 | DL124: CDD | GD124: Summerside | GE124: Île-du-Prince-Édouard | GF124: Summerside | GG124: P.E.I.
BT125: Air cooled, without condenser, electrically operated | BU125: ='Minimum efficiencies entries'!C118 -> 3.1 | DC125: 4 | DD125: 25 | DE125: 121 | DF125: 0.007373651718 | DG125: 1.510136661e-05 | DH125: -1.322046552e-09 | DI125: 0.002935092107 | DJ125: -7.489618771e-06 | DK125: 6.30882933e-10 | DL125: HDD | GD125: Medicine Hat | GE125: Alberta | GF125: Medicine Hat | GG125: Alberta
BT126: Water cooled, electrically operated, positive displacement (reciprocating) | BU126: ='Minimum efficiencies entries'!C119 -> 4.2 | DC126: 4 | DD126: 26 | DE126: 122 | DF126: -0.02444294946 | DG126: 0.0007238172814 | DH126: -9.663329477e-07 | DI126: 0.008459924216 | DJ126: -0.0002647339919 | DK126: 3.528608131e-07 | DL126: CDD | GD126: Moncton | GE126: Nouveau-Brunswick | GF126: Moncton | GG126: New Brunswick
BT127: Water cooled, electrically operated, positive displacement (rotary screw and scroll) < 150 Tons | BU127: ='Minimum efficiencies entries'!C120 -> 4.45 | DC127: 4 | DD127: 27 | DE127: 123 | DF127: -68.71217749 | DG127: 0.02300831494 | DH127: -1.644588725e-06 | DI127: 43.10954633 | DJ127: -0.01417924325 | DK127: 1.008515834e-06 | DL127: HDD | GD127: Mount Forest | GE127: Ontario | GF127: Mount Forest | GG127: Ontario
BT128: Water cooled, electrically operated, positive displacement (rotary screw and scroll) >= 150 Tons & < 300 Tons | BU128: ='Minimum efficiencies entries'!C121 -> 4.9 | DC128: 4 | DD128: 28 | DE128: 124 | DF128: -2.588090239 | DG128: 0.02647579222 | DH128: -3.939412299e-05 | DI128: 1.617811131 | DJ128: -0.01215661992 | DK128: 1.828921366e-05 | DL128: CDD | GD128: Saint-John | GE128: Nouveau-Brunswick | GF128: Saint John | GG128: New Brunswick
BT129: Water cooled, electrically operated, positive displacement (rotary screw and scroll) >= 300 Tons | BU129: ='Minimum efficiencies entries'!C122 -> 5.5 | DC129: 4 | DD129: 29 | DE129: 125 | DF129: 34.32234934 | DG129: -0.01151625406 | DH129: 8.759826619e-07 | DI129: -17.20031387 | DJ129: 0.006013899941 | DK129: -4.642057867e-07 | DL129: HDD | GD129: St. John's | GE129: Terre-Neuve | GF129: St John's | GG129: Newfoundland
BT130: Water cooled, electrically operated, positive displacement (centrifugal) < 150 Tons | BU130: ='Minimum efficiencies entries'!C123 -> 5 | DC130: 4 | DD130: 30 | DE130: 126 | DF130: 0.9650259634 | DG130: 0.01850439582 | DH130: -4.4272075e-05 | DI130: -0.7779359939 | DJ130: -0.00627781568 | DK130: 2.036607541e-05 | DL130: CDD | GD130: Sherbrooke | GE130: Québec | GF130: Sherbrooke | GG130: Quebec
BT131: Water cooled, electrically operated, positive displacement (centrifugal) >= 150 Tons & < 300 Tons | BU131: ='Minimum efficiencies entries'!C124 -> 5.55 | DC131: 4 | DD131: 31 | DE131: 127 | DF131: 83.35212485 | DG131: -0.02130518476 | DH131: 9.241017635e-07 | DI131: -81.04550415 | DJ131: 0.02100050336 | DK131: -9.152228301e-07 | DL131: HDD | GD131: Stephenville | GE131: Terre-Neuve | GF131: Stephenville | GG131: Newfoundland
BT132: Water cooled, electrically operated, positive displacement (centrifugal) >= 300 Tons | BU132: ='Minimum efficiencies entries'!C125 -> 6.1 | DC132: 4 | DD132: 32 | DE132: 128 | DF132: -1.203656716 | DG132: 0.01956403616 | DH132: -3.214066417e-05 | DI132: 0.8721947209 | DJ132: -0.01096271611 | DK132: 2.046470603e-05 | DL132: CDD | GD132: Williams Lake | GE132: Colombie Brit. | GF132: Williams Lake | GG132: Br. Columbia
BT133: Air cooled absorption single effect | BU133: ='Minimum efficiencies entries'!C126 -> 0.6 | DC133: =DC132+1 -> 5 | DD133: 1 | DE133: 129 | DF133: 1.063667779 | DG133: -0.0001657265545 | DH133: 7.699311337e-09 | DI133: -0.5519318882 | DJ133: 8.1659595e-05 | DK133: -3.597049767e-09 | DL133: HDD | GD133: Sault Ste. Marie | GE133: Ontario | GF133: Sault Ste. Marie | GG133: Ontario
BT134: =IF(Select_Lang="English",BU287,BT287) -> Water cooled absorption single effect | BU134: ='Minimum efficiencies entries'!C127 -> 0.7 | DC134: =DC133 -> 5 | DD134: 2 | DE134: =32*(DC134-1)+DD134 -> 130 | DF134: 0.7066728149 | DG134: -0.0001036493788 | DH134: 4.424273966e-09 | DI134: -0.2549757362 | DJ134: 3.323837438e-05 | DK134: -1.187381263e-09 | DL134: HDD | GD134: Calgary | GE134: Alberta | GF134: Calgary | GG134: Alberta
BT135: Absorption double effect, indirect-fired | BU135: ='Minimum efficiencies entries'!C128 -> 1 | DC135: =DC134 -> 5 | DD135: 3 | DE135: 131 | DF135: 0.5711776118 | DG135: -6.056960924e-05 | DH135: 1.584977725e-09 | DI135: -0.4973943764 | DJ135: 5.052817058e-05 | DK135: -1.177682933e-09 | DL135: HDD | GD135: Gander | GE135: Terre-Neuve | GF135: Gander | GG135: Newfoundland
BT136: Absorption double effect, direct-fired | BU136: ='Minimum efficiencies entries'!C129 -> 1 | DC136: 5 | DD136: 4 | DE136: 132 | DF136: 0.2756281739 | DG136: -3.038273008e-05 | DH136: 8.551847349e-10 | DI136: -0.1199635534 | DJ136: 1.273525152e-05 | DK136: -3.226645237e-10 | DL136: HDD | GD136: Québec | GE136: Québec | GF136: Quebec | GG136: Quebec
DC137: 5 | DD137: 5 | DE137: 133 | DF137: -2.351551077 | DG137: 0.0007462351 | DH137: -6.323153673e-08 | DI137: 2.558289604 | DJ137: -0.0007490682282 | DK137: 5.900374313e-08 | DL137: HDD | GD137: Prince George | GE137: Colombie Brit. | GF137: Prince George | GG137: Br. Columbia
DC138: 5 | DD138: 6 | DE138: 134 | DF138: 0.1433133957 | DG138: 2.396328551e-05 | DH138: -3.382607187e-09 | DI138: 0.8452199287 | DJ138: -0.0002341359802 | DK138: 1.633496345e-08 | DL138: TDD | GD138: North Bay | GE138: Ontario | GF138: North Bay | GG138: Ontario
DC139: 5 | DD139: 7 | DE139: 135 | DF139: -0.07265623138 | DG139: 1.421366972e-05 | DH139: -7.880099895e-10 | DI139: 0.002507615048 | DJ139: -6.348249026e-07 | DK139: 4.031875554e-11 | DL139: HDD | GD139: Edmonton | GE139: Alberta | GF139: Edmonton | GG139: Alberta
DC140: 5 | DD140: 8 | DE140: 136 | DF140: 0.01246843219 | DG140: -2.122160858e-06 | DH140: 1.187718691e-10 | DI140: -0.00109155875 | DJ140: 1.680284276e-07 | DK140: -8.915429937e-12 | DL140: TDD | GD140: Sudbury | GE140: Ontario | GF140: Sudbury | GG140: Ontario
DC141: 5 | DD141: 9 | DE141: 137 | DF141: -0.07159986965 | DG141: 9.40664897e-06 | DH141: -3.599344854e-10 | DI141: 0.004055149005 | DJ141: -8.213396522e-07 | DK141: 4.250200552e-11 | DL141: HDD | GD141: Estevan | GE141: Saskatchewan | GF141: Estevan | GG141: Saskatchewan
DC142: 5 | DD142: 10 | DE142: 138 | DF142: 0 | DG142: 0 | DH142: 0 | DI142: 0 | DJ142: 0 | DK142: 0 | DL142: HDD | GD142: Swift Current | GE142: Saskatchewan | GF142: Swift Current | GG142: Saskatchewan
DC143: 5 | DD143: 11 | DE143: 139 | DF143: 0 | DG143: 0 | DH143: 0 | DI143: 0 | DJ143: 0 | DK143: 0 | DL143: HDD | GD143: Mont Joli | GE143: Québec | GF143: Mont Joli | GG143: Quebec
DC144: 5 | DD144: 12 | DE144: 140 | DF144: 0.7742588365 | DG144: -3.77231211e-05 | DH144: 7.511437757e-09 | DI144: 0 | DJ144: 0 | DK144: 0 | DL144: HDD | GD144: Charlo (Campbellton) | GE144: Nouveau-Brunswick | GF144: Charlo (Campbellton) | GG144: New Brunswick
DC145: 5 | DD145: 13 | DE145: 141 | DF145: -0.002869367835 | DG145: 0.0004624871438 | DH145: -4.802281752e-07 | DI145: 0.0002159934056 | DJ145: -4.25880259e-05 | DK145: 4.48717342e-08 | DL145: CDD | GD145: Rivière-du-Loup | GE145: Québec | GF145: Riviere-du-Loup | GG145: Quebec
DC146: 5 | DD146: 14 | DE146: 142 | DF146: -0.001628972897 | DG146: -0.02096410662 | DH146: 2.679585377e-05 | DI146: -2.686747748 | DJ146: 0.0805504832 | DK146: -0.0001049624527 | DL146: CDD | GD146: Thunder Bay | GE146: Ontario | GF146: Thunder Bay | GG146: Ontario
DC147: 5 | DD147: 15 | DE147: 143 | DF147: 0.04487422471 | DG147: 0.001014307606 | DH147: -1.729730532e-06 | DI147: -0.02986964179 | DJ147: -0.0005424644914 | DK147: 9.405597439e-07 | DL147: CDD | GD147: Red Deer | GE147: Alberta | GF147: Red Deer | GG147: Alberta
DC148: 5 | DD148: 16 | DE148: 144 | DF148: 0.05112378613 | DG148: -0.0008786753028 | DH148: 1.246382132e-06 | DI148: 0.1398508023 | DJ148: 0.000152169743 | DK148: -3.367140907e-07 | DL148: CDD | GD148: Regina | GE148: Saskatchewan | GF148: Regina | GG148: Saskatchewan
BT149: French | BU149: English | DC149: 5 | DD149: 17 | DE149: 145 | DF149: -0.07159081935 | DG149: 2.079425857e-05 | DH149: 1.411337132e-09 | DI149: 0.08584285954 | DJ149: -3.018311736e-05 | DK149: 4.846135619e-10 | DL149: HDD | GD149: Bagotville | GE149: Québec | GF149: Bagotville | GG149: Quebec
BT150: Thermopompes et conditionneurs d'air autonomes refroidis à l'air et commandés par moteur électirque | BU150: Air Cooled Unitary Central Air-Conditioners and Heat Pumps - Electrically Operated | DC150: 5 | DD150: 18 | DE150: 146 | DF150: 0 | DG150: 0 | DH150: 0 | DI150: 0 | DJ150: 0 | DK150: 0 | DL150: CDD | GD150: Kenora | GE150: Ontario | GF150: Kenora | GG150: Ontario
BT151: Conditionneurs d'air (CAVM) et thermopompes (TVM) verticaux monoblocs | BU151: Single-Package Vertical Air Conditioners (SPVAC) and Heat Pumps (SPVHP) | DC151: 5 | DD151: 19 | DE151: 147 | DF151: 0.08405128399 | DG151: -2.198261098e-05 | DH151: 1.518836611e-09 | DI151: -0.006171710557 | DJ151: 1.672248413e-06 | DK151: -1.154616821e-10 | DL151: HDD | GD151: Winnipeg | GE151: Manitoba | GF151: Winnipeg | GG151: Manitoba
BT152: Thermopompes et conditionneurs d'air autonomes refroidis par évaporation ou par eau et par évaporation, et commandés par moteur électirque | BU152: Evaporatively Cooled and Water Evaporatively Cooled Unitary Air Conditioners and Heat Pumps - Electically Operated | DC152: 5 | DD152: 20 | DE152: 148 | DF152: 0 | DG152: 0 | DH152: 0 | DI152: 0 | DJ152: 0 | DK152: 0 | DL152: CDD | GD152: Saskatoon | GE152: Saskatchewan | GF152: Saskatoon | GG152: Saskatchewan
BT153: Groupes condenseur-compresseur | BU153: Condensing Units | DC153: 5 | DD153: 21 | DE153: 149 | DF153: -0.0001361446457 | DG153: -2.355107673e-08 | DH153: 1.493938122e-12 | DI153: 1.831043669e-07 | DJ153: -5.567976182e-11 | DK153: 6.313811174e-15 | DL153: HDD | GD153: Grande Prairie | GE153: Alberta | GF153: Grande Prairie | GG153: Alberta
BT154: Thermopompes et conditionneurs d'air autonomes refroidis par eau et par évaporation et commandés par moteur électirque | BU154: Water-Cooled Unitary Air Conditioners and Heat Pumps - Electrically Operated | DC154: 5 | DD154: 22 | DE154: 150 | DF154: 0 | DG154: 0 | DH154: 0 | DI154: 0 | DJ154: 0 | DK154: 0 | DL154: CDD | GD154: Fort St. John | GE154: Colombie Brit. | GF154: Fort St. John | GG154: Br. Columbia
BT155: Thermopompes géothermiques à expansion directe commandées par moteur électrique | BU155: Direct-expansion ground-source heat pumps <= 21 (71700) | DC155: 5 | DD155: 23 | DE155: 151 | DF155: 0.03756639448 | DG155: 8.326458658e-06 | DH155: -6.223779419e-10 | DI155: -0.02158787734 | DJ155: -4.303552322e-06 | DK155: 3.204298608e-10 | DL155: HDD | GD155: Brandon | GE155: Manitoba | GF155: Brandon | GG155: Manitoba
BT156: Conditionneurs d'air (CAIL) et thermopompes (TIL) intégrés locaux | BU156: Packaged Terminal Air Conditioners (PTAC) and Heat Pumps (PTHP) | DC156: 5 | DD156: 24 | DE156: 152 | DF156: 0 | DG156: 0 | DH156: 0 | DI156: 0 | DJ156: 0 | DK156: 0 | DL156: CDD | GD156: Dauphin | GE156: Manitoba | GF156: Dauphin | GG156: Manitoba
BT157: Climatiseurs de pièce et climatiseurs/thermopompes | BU157: Room Air Conditioners and Room Air Conditioner Heat Pumps | DC157: 5 | DD157: 25 | DE157: 153 | DF157: 0.003074621413 | DG157: 1.393919391e-05 | DH157: -1.072054094e-09 | DI157: 0.002350037117 | DJ157: -6.494014429e-06 | DK157: 5.02646356e-10 | DL157: HDD | GD157: Timmins | GE157: Ontario | GF157: Timmins | GG157: Ontario
BT158: Conditionneurs d'air de salle d'ordinateurs | BU158: Computer Room Air Conditioners | DC158: 5 | DD158: 26 | DE158: 154 | DF158: 0 | DG158: 0 | DH158: 0 | DI158: 0 | DJ158: 0 | DK158: 0 | DL158: CDD | GD158: Sept-Îles | GE158: Québec | GF158: Sept-Iles | GG158: Quebec
BT159: Refroidisseurs à eau monobloc | BU159: Packaged Water Chillers | DC159: 5 | DD159: 27 | DE159: 155 | DF159: -115.7602692 | DG159: 0.04298174113 | DH159: -3.525302388e-06 | DI159: 71.0898659 | DJ159: -0.02611236782 | DK159: 2.136472905e-06 | DL159: HDD | GD159: Val d'Or | GE159: Québec | GF159: Val d'Or | GG159: Quebec
DC160: 5 | DD160: 28 | DE160: 156 | DF160: 0 | DG160: 0 | DH160: 0 | DI160: 0 | DJ160: 0 | DK160: 0 | DL160: CDD | GD160: Battle Harbour (St Anthony) | GE160: Terre-Neuve | GF160: Battle Harbour (St Anthony) | GG160: Newfoundland
DC161: 5 | DD161: 29 | DE161: 157 | DF161: 82.42801899 | DG161: -0.02328948745 | DH161: 1.570929633e-06 | DI161: -48.37042813 | DJ161: 0.01386261133 | DK161: -9.382052916e-07 | DL161: HDD | GD161: Peace River | GE161: Alberta | GF161: Peace River | GG161: Alberta
DC162: 5 | DD162: 30 | DE162: 158 | DF162: 0 | DG162: 0 | DH162: 0 | DI162: 0 | DJ162: 0 | DK162: 0 | DL162: CDD | GD162: Kapuskasing | GE162: Ontario | GF162: Kapuskasing | GG162: Ontario
DC163: 5 | DD163: 31 | DE163: 159 | DF163: -108.3751368 | DG163: 0.04161808791 | DH163: -3.537267923e-06 | DI163: 107.6450221 | DJ163: -0.04097539721 | DK163: 3.484025202e-06 | DL163: HDD | GD163: Prince Albert | GE163: Saskatchewan | GF163: Prince Albert | GG163: Saskatchewan
DC164: 5 | DD164: 32 | DE164: 160 | DF164: 0 | DG164: 0 | DH164: 0 | DI164: 0 | DJ164: 0 | DK164: 0 | DL164: CDD | GD164: Fort McMurray | GE164: Alberta | GF164: Fort McMurray | GG164: Alberta
DC165: =DC164+1 -> 6 | DD165: 1 | DE165: 161 | DF165: 0.1482941884 | DG165: 6.315142678e-05 | DH165: -4.016345867e-09 | DI165: -0.108169546 | DJ165: -3.628693122e-05 | DK165: 2.138002391e-09 | DL165: HDD | GD165: Cartwright (Happy Valley - Goose Bay) | GE165: Terre-Neuve | GF165: Cartwright (Happy Valley - Goose Bay) | GG165: Newfoundland
DC166: =DC165 -> 6 | DD166: 2 | DE166: 162 | DF166: 0.08322564053 | DG166: 3.713585094e-05 | DH166: -2.384651888e-09 | DI166: -0.03584714846 | DJ166: -1.275427108e-05 | DK166: 7.56713278e-10 | DL166: HDD | GD166: Happy Valley - Goose Bay | GE166: Terre-Neuve | GF166: Happy Valley - Goose Bay | GG166: Newfoundland
DC167: =DC166 -> 6 | DD167: 3 | DE167: 163 | DF167: -0.08690245229 | DG167: 0.000175662453 | DH167: -1.30967998e-08 | DI167: 0.1275577368 | DJ167: -0.0002841562328 | DK167: 2.106420945e-08 | DL167: HDD | GD167: The Pas | GE167: Manitoba | GF167: The Pas | GG167: Manitoba
BT168: Sub-Systems | DC168: 6 | DD168: 4 | DE168: 164 | DF168: -0.02111233219 | DG168: 4.507457762e-05 | DH168: -3.375236441e-09 | DI168: 0.00790725196 | DJ168: -1.936887468e-05 | DK168: 1.441236336e-09 | DL168: HDD | GD168: Whitehorse | GE168: Yukon | GF168: Whitehorse | GG168: Yukon
DC169: 6 | DD169: 5 | DE169: 165 | DF169: -6.007189271 | DG169: 0.00179351104 | DH169: -1.432967102e-07 | DI169: 4.309462985 | DJ169: -0.001208889937 | DK169: 9.719546251e-08 | DL169: HDD | GD169: Whitehorse | GE169: Yukon | GF169: Whitehorse | GG169: Yukon
BP170: =15/3.413 -> 4.394960445 | BQ170: SEER | BR170: Air Cooled Unitary Central Air-Conditioners and Heat Pumps - Electrically Operated | BS170: Thermopompes et conditionneurs d'air autonomes refroidis à l'air et commandés par moteur électrique | BT170: Systeme biblocs <= 19 (65000) | BU170: Split System <= 19 (65000) | BV170: 1 | DC170: 6 | DD170: 6 | DE170: 166 | DF170: 0 | DG170: 0 | DH170: 0 | DI170: 0 | DJ170: 0 | DK170: 0 | DL170: HDD | GD170: Fort Nelson | GE170: Colombie Brit. | GF170: Fort Nelson | GG170: Br. Columbia
BP171: =14/3.413 -> 4.101963082 | BQ171: SEER | BT171: System monoblocs <= 19 (65000) | BU171: Single-package systems <= 19 (65000) | BV171: 1 | DC171: 6 | DD171: 7 | DE171: 167 | DF171: -0.003252896168 | DG171: -6.307224734e-06 | DH171: 4.677316305e-10 | DI171: -0.0001913114763 | DJ171: 3.695022686e-07 | DK171: -3.223178239e-11 | DL171: TDD | GD171: Big Trout Lake | GE171: Ontario | GF171: Big Trout Lake | GG171: Ontario
BP172: =9.7/3.413 -> 2.842074421 | BQ172: EER | BT172: Toutes les phases > 19 (65000) et < 73 (250000) | BU172: All phases > 19 (65000) and < 73 (250000) | BV172: 1 | DC172: 6 | DD172: 8 | DE172: 168 | DF172: -4.929919635e-05 | DG172: 1.668775672e-07 | DH172: 3.253382161e-10 | DI172: 1.182521122e-05 | DJ172: -3.453681389e-08 | DK172: -2.052947136e-11 | DL172: CDD | GD172: Fort Smith | GE172: Territoires du N.O. | GF172: Fort Smith | GG172: Northwest Terr.
BP173: 3.28 | BQ173: COP | BT173: Conditionneurs d'air, toutes les phases, systemes biblocs et monoblocs >= 19 kW et , 40 kW, section de chauffage a resistance electrique | BU173: Air conditioners, all phases, split and single package >= 19 kW and < 40 kW, electric resistance heating section | BV173: 1 | DC173: 6 | DD173: 9 | DE173: 169 | DF173: 0.01044617989 | DG173: -1.474974568e-05 | DH173: 1.078861583e-09 | DI173: 8.945072237e-05 | DJ173: 6.32236476e-07 | DK173: -5.177736327e-11 | DL173: TDD | GD173: Thompson | GE173: Manitoba | GF173: Thompson | GG173: Manitoba
BP174: 3.22 | BQ174: COP | BT174: Conditionneurs d'air, toutes les phases, systemes biblocs et monoblocs >= 19 kW et , 40 kW, autre section de chauffage | BU174: Air conditioners, all phases, split and single package >= 19 kW and < 40 kW, other heating section | BV174: 1 | DC174: 6 | DD174: 10 | DE174: 170 | DF174: 0 | DG174: 0 | DH174: 0 | DI174: 0 | DJ174: 0 | DK174: 0 | DL174: HDD | GD174: Uranium City | GE174: Saskatchewan | GF174: Uranium City | GG174: Saskatchewan
BP175: 3.22 | BQ175: COP | BT175: Conditionneurs d'air, toutes les phases, systemes biblocs et monoblocs >= 40 kW et , 70 kW, section de chauffage a resistance electrique | BU175: Air conditioners, all phases, split and single package >= 40 kW and < 70 kW, electric resistance heating section | BV175: 1 | DC175: 6 | DD175: 11 | DE175: 171 | DF175: 0 | DG175: 0 | DH175: 0 | DI175: 0 | DJ175: 0 | DK175: 0 | DL175: HDD | GD175: Wabush | GE175: Terre-Neuve | GF175: Wabush | GG175: Newfoundland
BP176: 3.16 | BQ176: COP | BT176: Conditionneurs d'air, toutes les phases, systemes biblocs et monoblocs >= 40 kW et , 70 kW, autre section de chauffage | BU176: Air conditioners, all phases, split and single package >= 40 kW and < 70 kW, other heating section | BV176: 1 | DC176: 6 | DD176: 12 | DE176: 172 | DF176: 0.1730059154 | DG176: 4.687682534e-05 | DH176: 1.475731238e-10 | DI176: 0 | DJ176: 0 | DK176: 0 | DL176: HDD | GD176: Nitchequon | GE176: Québec | GF176: Nitchequon | GG176: Quebec
BP177: 2.93 | BQ177: COP | BT177: Conditionneurs d'air, toutes les phases, systemes biblocs et monoblocs >= 70 kW et , 223 kW, section de chauffage a resistance electric | BU177: Air conditioners, all phases, split and single package >= 70 kW and < 223 kW, electric resistance heating section | BV177: 1 | DC177: 6 | DD177: 13 | DE177: 173 | DF177: 0.03901775007 | DG177: -2.665722953e-05 | DH177: 1.100417347e-07 | DI177: -0.003678528258 | DJ177: 2.763685529e-06 | DK177: -1.025730141e-08 | DL177: CDD | GD177: Kuujjuarapik | GE177: Québec | GF177: Kuujjuarapik | GG177: Quebec
BP178: 2.87 | BQ178: COP | BT178: Conditionneurs d'air, toutes les phases, systemes biblocs et monoblocs >= 70 kW et ,223 kW, section de chauffage a resistance electric | BU178: Air conditioners, all phases, split and single package >= 70 kW and < 223 kW, electric resistance heating section | BV178: 1 | DC178: 6 | DD178: 14 | DE178: 174 | DF178: -0.3404382454 | DG178: -0.002600722044 | DH178: 2.374635354e-06 | DI178: -0.3802022136 | DJ178: 0.007796413056 | DK178: -7.607624947e-06 | DL178: CDD | GD178: Schefferville | GE178: Québec | GF178: Schefferville | GG178: Quebec
BP179: 2.84 | BQ179: COP | BT179: Conditionneurs d'air, toutes les phases, systemes biblocs et monoblocs >= 223 kW et < 22 kW, section de chauffage a resistance electric | BU179: Air conditioners, all phases, split and single package >= 223 kW, electric resistance heating section | BV179: 1 | DC179: 6 | DD179: 15 | DE179: 175 | DF179: 0.06289968051 | DG179: -1.284337084e-05 | DH179: 8.209382208e-10 | DI179: 0.08475266521 | DJ179: -2.106411252e-05 | DK179: 1.633725775e-09 | DL179: TDD | GD179: Yellowknife | GE179: Territoires du N.O. | GF179: Yellowknife | GG179: Northwest Terr.
BP180: 2.78 | BQ180: COP | BT180: Air-cooled unitary air-conditioner, all phases, split and single package >= 223 kW, other heating section | BU180: Air conditioners, all phases, split and single package >= 223 kW, other heating section | BV180: 1 | DC180: 6 | DD180: 16 | DE180: 176 | DF180: -0.1527680235 | DG180: 0.0001748306295 | DH180: -1.591811747e-07 | DI180: 0.1855946662 | DJ180: -0.0002105349945 | DK180: 1.907753587e-07 | DL180: CDD | GD180: Kuujuaq | GE180: Québec | GF180: Kuujuaq | GG180: Quebec
BP181: 3.22 | BQ181: COP | BT181: Thermopompes >= 19 kW et , 40 kW, section de chauffage a resistance electrique monobloc et bibloc | BU181: Heat Pumps >= 19 kW and < 40 kW, electric resistance heating section, split and single | BV181: 1 | DC181: 6 | DD181: 17 | DE181: 177 | DF181: 0.01173835689 | DG181: 2.31606653e-06 | DH181: -1.882222502e-10 | DI181: -0.007261647934 | DJ181: -2.832086902e-06 | DK181: 2.422997443e-10 | DL181: HDD | GD181: Norman Wells | GE181: Territoires du N.O. | GF181: Norman Wells | GG181: Northwest Terr.
BP182: 3.16 | BQ182: COP | BT182: Thermopompes >= 19 kW et , 40 kW, autre section de chauffage, monobloc et bibloc | BU182: Heat Pumps >= 19 kW and < 40 kW, other heating section, split and single | BV182: 1 | DC182: 6 | DD182: 18 | DE182: 178 | DF182: 0 | DG182: 0 | DH182: 0 | DI182: 0 | DJ182: 0 | DK182: 0 | DL182: CDD | GD182: Churchill | GE182: Manitoba | GF182: Churchill | GG182: Manitoba
BP183: 3.1 | BQ183: COP | BT183: Thermopompes >= 40 kW et , 70 kW,section de chauffage a resistance electrique monobloc et bibloc | BU183: Heat Pumps >= 40 kW and < 70 kW, electric resistance heating section, split and single | BV183: 1 | DC183: 6 | DD183: 19 | DE183: 179 | DF183: 8.883002818e-05 | DG183: 4.330747937e-07 | DH183: -2.476084897e-11 | DI183: -0.0001442491574 | DJ183: 4.48126618e-08 | DK183: -4.67480461e-12 | DL183: HDD | GD183: Inuvik | GE183: Territoires du N.O. | GF183: Inuvik | GG183: Northwest Terr.
BP184: 3.04 | BQ184: COP | BT184: Thermopompes >= 40 kW et , 70 kW, section de chauffage a resistance electrique monobloc et bibloc | BU184: Heat Pumps >= 40 kW and < 70 kW, otherheating section, split and single | BV184: 1 | DC184: 6 | DD184: 20 | DE184: 180 | DF184: 0 | DG184: 0 | DH184: 0 | DI184: 0 | DJ184: 0 | DK184: 0 | DL184: HDD | GD184: Iqualuit | GE184: Nunavut | GF184: Iqualuit | GG184: Nunavut
BP185: 2.78 | BQ185: COP | BT185: Thermopompes >= 70 kW, electric resistance heating section, split et single | BU185: Heat Pumps >= 70 kW, electric resistance heating section, split and single | BV185: 1 | DC185: 6 | DD185: 21 | DE185: 181 | DF185: -1.483999643e-05 | DG185: -2.189008244e-08 | DH185: 1.455498457e-12 | DI185: -1.691915278e-07 | DJ185: 8.482375585e-11 | DK185: -6.909448769e-15 | DL185: HDD | GD185: Inuvik (NWT) | GE185: Yukon | GF185: Inuvik (NWT) | GG185: Yukon
BP186: 2.72 | BQ186: COP | BT186: Thermopompes >= 70 kW, other heating section, split et single | BU186: Heat Pumps >= 70 kW, other heating section, split and single | BV186: 1 | DC186: 6 | DD186: 22 | DE186: 182 | DF186: 0 | DG186: 0 | DH186: 0 | DI186: 0 | DJ186: 0 | DK186: 0 | DL186: HDD | GD186: Chesterfield Inlet | GE186: Nunavut | GF186: Chesterfield Inlet | GG186: Nunavut
BP187: 3.3 | BQ187: COP | BT187: Thermopompes >= 19 kW et , 70 kWen mode de refroidissement a une temp. de 8.3 ⁰C db / 6.1 ⁰C wb | BU187: Heat Pumps >= 19 kW and < 70 kW in cooling mode at 8.3 ⁰C db / 6.1 ⁰C wb | BV187: 1 | DC187: 6 | DD187: 23 | DE187: 183 | DF187: 0.008955280591 | DG187: 4.26292723e-06 | DH187: -2.526623771e-10 | DI187: -0.004674793934 | DJ187: -2.45432142e-06 | DK187: 1.484510912e-10 | DL187: HDD | GD187: Coral Harbour | GE187: Nunavut | GF187: Coral Harbour | GG187: Nunavut
BP188: 2.25 | BQ188: COP | BT188: Thermopompes >= 19 kW et , 70 kW en mode de refroidissement a une temp. de 8.3 ⁰C db / -9.4 ⁰C wb | BU188: Heat Pumps >= 19 kW and < 70 kW in cooling mode at 8.3 ⁰C db / -9.4 ⁰C wb | BV188: 1 | DC188: 6 | DD188: 24 | DE188: 184 | DF188: 0 | DG188: 0 | DH188: 0 | DI188: 0 | DJ188: 0 | DK188: 0 | DL188: HDD | GD188: Cambridge Bay | GE188: Nunavut | GF188: Cambridge Bay | GG188: Nunavut
BP189: 3.2 | BQ189: COP | BT189: Thermopompes >= 70 kW ien mode de refroidissement a une temp. de at 8.3 ⁰C db / -6.1 ⁰C wb | BU189: Heat Pumps >= 70 kW in cooling mode at 8.3 ⁰C db / 6.1 ⁰C wb | BV189: 1 | DC189: 6 | DD189: 25 | DE189: 185 | DF189: 0.003056628067 | DG189: 4.545375058e-06 | DH189: -3.39135811e-10 | DI189: -0.0002081839248 | DJ189: -2.113601372e-06 | DK189: 1.671730546e-10 | DL189: HDD
BP190: 2.05 | BQ190: COP | BT190: Thermopompes >= 70 kW en mode refroidissement a une temp. de 8.3 ⁰C db / -9.4 ⁰C wb | BU190: Heat Pumps >= 70 kW in cooling mode at 8.3 ⁰C db / -9.4 ⁰C wb | BV190: 1 | DC190: 6 | DD190: 26 | DE190: 186 | DF190: 0 | DG190: 0 | DH190: 0 | DI190: 0 | DJ190: 0 | DK190: 0 | DL190: HDD
BP191: =10/3.413 -> 2.92997363 | BQ191: EER | BR191: Single-Package Vertical Air Conditioners (SPVAC) and Heat Pumps (SPVHP) | BS191: Single-Package Vertical Air Conditioners (SPVAC) and Heat Pumps (SPVHP) | BT191: CAVM et TVM en mode de refroidissement < 19 kW | BU191: SPVAC and SPVHP in cooling mode < 19 kW | BV191: 2 | DC191: 6 | DD191: 27 | DE191: 187 | DF191: 1384.682039 | DG191: -0.5044690972 | DH191: 4.0928899e-05 | DI191: -875.7516706 | DJ191: 0.3193354103 | DK191: -2.591312009e-05 | DL191: HDD
BP192: =9.5/3.413 -> 2.783474949 | BQ192: EER | BT192: CAVM et TVM en mode de refroidissement >= 19 kW et , 40 kW | BU192: SPVAC and SPVHP in cooling mode >= 19 kW and < 40 kW | BV192: 2 | DC192: 6 | DD192: 28 | DE192: 188 | DF192: 0 | DG192: 0 | DH192: 0 | DI192: 0 | DJ192: 0 | DK192: 0 | DL192: HDD
BP193: =8.6/3.413 -> 2.519777322 | BQ193: EER | BT193: CAVM et TVM en mode de refroidissement >= 40 kW et , 70 kW | BU193: SPVAC and SPVHP in cooling mode >= 40 kW and < 70 kW | BV193: 2 | DC193: 6 | DD193: 29 | DE193: 189 | DF193: -19.37744935 | DG193: 0.005662405091 | DH193: -4.365101889e-07 | DI193: 11.97708654 | DJ193: -0.003435078148 | DK193: 2.636636075e-07 | DL193: HDD
BP194: =3.1 -> 3.1 | BQ194: COP | BT194: TVM en mode de chauffage < 19 kW | BU194: SPVHP in heating mode < 19 kW | BV194: 2 | DC194: 6 | DD194: 30 | DE194: 190 | DF194: 0 | DG194: 0 | DH194: 0 | DI194: 0 | DJ194: 0 | DK194: 0 | DL194: HDD
BP195: 3 | BQ195: COP | BT195: TVM en mode de chauffage >= 19 kW et < 40 kW | BU195: SPVHP in heating mode >= 19 kW and < 40 kW | BV195: 2 | DC195: 6 | DD195: 31 | DE195: 191 | DF195: -95.12619963 | DG195: 0.03981780611 | DH195: -3.670766124e-06 | DI195: 95.04427593 | DJ195: -0.03944417103 | DK195: 3.642372807e-06 | DL195: HDD
BP196: 2.9 | BQ196: COP | BT196: TVM en mode de chauffage >= 40 kW et < 70 kW | BU196: SPVHP in heating mode >= 40 kW and < 70 kW | BV196: 2 | DC196: 6 | DD196: 32 | DE196: 192 | DF196: 0 | DG196: 0 | DH196: 0 | DI196: 0 | DJ196: 0 | DK196: 0 | DL196: HDD
BP197: 3.54 | BQ197: COP | BR197: Evaporatively Cooled and Water Evaporatively Cooled Unitary Air Conditioners and Heat Pumps - Electically Operated | BS197: Evaporatively Cooled and Water Evaporatively Cooled Unitary Air Conditioners and Heat Pumps - Electically Operated | BT197: Refroidissement par evaporation <= 19 (65000) | BU197: Evaporatively cooled <= 19 (65000) | BV197: 3 | DC197: =DC196+1 -> 7 | DD197: 1 | DE197: 193 | DF197: 0.8222072579 | DG197: 2.970230221e-05 | DH197: -5.089509064e-09 | DI197: -0.3731262746 | DJ197: -2.864244144e-05 | DK197: 3.221640339e-09 | DL197: HDD
BP198: 3.37 | BQ198: COP | BT198: Refroidissement par evaporation ou par eau et evaporation, biblocs et monoblocs >= 19 kW et < 40 kW section de chauffage a resistance electrique | BU198: Evaporatively cooled and water evaporatively cooled, split and single-package >= 19 kW and < 40 kW electric resistance heating section | BV198: 3 | DC198: =DC197 -> 7 | DD198: 2 | DE198: =32*(DC198-1)+DD198 -> 194 | DF198: 0.5341858852 | DG198: 3.149141805e-05 | DH198: -4.231947482e-09 | DI198: -0.1721731768 | DJ198: -1.711446808e-05 | DK198: 1.755532646e-09 | DL198: TDD
BP199: 3.31 | BQ199: COP | BT199: Refroidissement par evaporation ou par eau et evaporation, biblocs et monoblocs >= 19 kW et < 40 kW autre section de chauffage | BU199: Evaporatively cooled and water evaporatively cooled, split and single-package >= 19 kW and < 40 kW other heating section | BV199: 3 | DC199: =DC198 -> 7 | DD199: 3 | DE199: 195 | DF199: 0.6342502783 | DG199: 3.856339898e-05 | DH199: -5.443090994e-09 | DI199: -0.5554699187 | DJ199: -2.893767081e-05 | DK199: 4.256511631e-09 | DL199: TDD
BP200: 3.22 | BQ200: COP | BT200: Refroidissement par evaporation ou par eau et evaporation, biblocs et monoblocs >= 40 kW et < 70 kW section de chauffage a resistance electrique | BU200: Evaporatively cooled and water evaporatively cooled, split and single-package >= 40 kW and < 70 kW electric resistance heating section | BV200: 3 | DC200: 7 | DD200: 4 | DE200: 196 | DF200: 0.3123937812 | DG200: 1.39611824e-05 | DH200: -2.300246397e-09 | DI200: -0.1305645148 | DJ200: -7.278784181e-06 | DK200: 1.052271995e-09 | DL200: HDD
... 362 more rows

Sheet Minimum efficiencies entries (hidden)
L8: Ranges
B9: Sub-System | M9: System
B10: Split System <= 19 (65000) | C10: 4.394960445 | D10: SEER | F10: Table 5.2.12.1 - Heating | L10: Minimum | M10: 1 | N10: 2 | O10: 3 | P10: 4 | Q10: 5 | R10: 6 | S10: 7 | T10: 8 | U10: 9 | V10: 10 | W10: 11 | X10: 12 | Y10: 13 | Z10: 14 | AA10: 15 | AB10: 16 | AC10: 17 | AD10: 18 | AE10: 19 | AF10: 20 | AG10: 21 | AH10: 22 | AI10: 23 | AJ10: 24 | AK10: 25 | AL10: 26 | AM10: 27
B11: Single-package systems <= 19 (65000) | C11: 4.101963082 | D11: SEER | F11: Electric boilers | G11: 1 | L11: ToV1 | M11: 0.3 | N11: 0.3 | O11: 0.3 | P11: 0.3 | Q11: 0.3 | R11: 0.3 | S11: 0.3 | T11: 0.3 | U11: 0.3 | V11: 0.3 | W11: 0.3 | X11: 0.3 | Y11: 0.3 | Z11: 0.3 | AA11: 0.3 | AB11: 0.3 | AC11: 0.3 | AD11: 0.3 | AE11: 0.3 | AF11: 0.3 | AG11: 0.3 | AH11: 0.3 | AI11: 0.3 | AJ11: 0.3 | AK11: 0.3 | AL11: 0.3 | AM11: 0.3
B12: All phases > 19 (65000) and < 73 (250000) | C12: 2.842074421 | D12: EER | F12: Gas-fired boilers, < 88 kW | G12: 0.85 | H12: AFUE | L12: ToV2 | M12: 0.3 | N12: 0.3 | O12: 0.3 | P12: 0.3 | Q12: 0.3 | R12: 0.3 | S12: 0.3 | T12: 0.3 | U12: 0.3 | V12: 0.3 | W12: 0.3 | X12: 0.3 | Y12: 0.3 | Z12: 0.3 | AA12: 0.3 | AB12: 0.3 | AC12: 0.3 | AD12: 0.3 | AE12: 0.3 | AF12: 0.3 | AG12: 0.3 | AH12: 0.3 | AI12: 0.3 | AJ12: 0.3 | AK12: 0.3 | AL12: 0.4 | AM12: 0.3
B13: Air conditioners, all phases, split and single package >= 19 kW and < 40 kW, electric resistance heating section | C13: 3.28 | D13: COP | F13: Gas-fired boilers, >= 88 kW and < 733 kW | G13: 0.83 | H13: Et | L13: ToV3 | M13: 0.2 | N13: 0.2 | O13: 0.2 | P13: 0.2 | Q13: 0.2 | R13: 0.1 | S13: 0.2 | T13: 0.1 | U13: 0.1 | V13: 0.2 | W13: 0.1 | X13: 0.2 | Y13: 0.2 | Z13: 0.2 | AA13: 0.2 | AB13: 0.2 | AC13: 0.2 | AD13: 0.2 | AE13: 0.2 | AF13: 0.2 | AG13: 0.2 | AH13: 0.2 | AI13: 0.2 | AJ13: 0.2 | AK13: 0.2 | AL13: 0.2 | AM13: 0.2
B14: Air conditioners, all phases, split and single package >= 19 kW and < 40 kW, other heating section | C14: 3.22 | D14: COP | F14: Gas-fired boilers, >= 733 kW | G14: 0.833 | H14: Ec | L14: ToV4 | M14: 0.3 | N14: 0.3 | O14: 0.3 | P14: 0.3 | Q14: 0.3 | R14: 0.3 | S14: 0.3 | T14: 0.3 | U14: 0.3 | V14: 0.3 | W14: 0.3 | X14: 0.3 | Y14: 0.3 | Z14: 0.3 | AA14: 0.3 | AB14: 0.3 | AC14: 0.3 | AD14: 0.3 | AE14: 0.3 | AF14: 0.3 | AG14: 0.3 | AH14: 0.3 | AI14: 0.3 | AJ14: 0.3 | AK14: 0.3 | AL14: 0.3 | AM14: 0.3
B15: Air conditioners, all phases, split and single package >= 40 kW and < 70 kW, electric resistance heating section | C15: 3.22 | D15: COP | F15: Oil-fired boilers, < 88 kW | G15: 0.847 | H15: AFUE | L15: ToV5 | M15: 0.5 | N15: 0.2 | O15: 0.7302608654 | P15: 0.7302608654 | Q15: 0.5 | R15: 0.5 | S15: 0.5 | T15: 0.5 | U15: 0.5 | V15: 0.5 | W15: 0.5 | X15: 0.5 | Y15: 0.5 | Z15: 0.5 | AA15: 0.5 | AB15: 0.5 | AC15: 0.5 | AD15: 0.5 | AE15: 0.5 | AF15: 0.5 | AG15: 0.5 | AH15: 0.86 | AI15: 0.5 | AJ15: 0.5 | AK15: 0.86 | AL15: 0.86 | AM15: 0.5
B16: Air conditioners, all phases, split and single package >= 40 kW and < 70 kW, other heating section | C16: 3.16 | D16: COP | F16: Oil-fired boilers, >= 88 kW and < 733 kW | G16: 0.834 | H16: Et | L16: ToV6 | M16: 0.207 | N16: 0.207 | O16: 0.207 | P16: 0.207 | Q16: 0.207 | R16: 0.207 | S16: 0.207 | T16: 0.207 | U16: 0.207 | V16: 0.207 | W16: 0.207 | X16: 0.207 | Y16: 0.207 | Z16: 0.207 | AA16: 0.207 | AB16: 0.207 | AC16: 0.207 | AD16: 0.207 | AE16: 0.207 | AF16: 0.207 | AG16: 0.207 | AH16: 0.207 | AI16: 0.207 | AJ16: 0.207 | AK16: 0.207 | AL16: 0.207 | AM16: 0.207
B17: Air conditioners, all phases, split and single package >= 70 kW and < 223 kW, electric resistance heating section | C17: 2.93 | D17: COP | F17: Oil-fired boilers, >= 733 kW | G17: 0.858 | H17: Ec | L17: ToV7 | M17: 0 | N17: 0 | O17: 0 | P17: 0 | Q17: 0 | R17: 0 | S17: 0 | T17: 0 | U17: 0 | V17: 0 | W17: 0 | X17: 0 | Y17: 0 | Z17: 0 | AA17: 0 | AB17: 0 | AC17: 0 | AD17: 0 | AE17: 0 | AF17: 0 | AG17: 0 | AH17: 0 | AI17: 0 | AJ17: 0 | AK17: 0 | AL17: 0 | AM17: 0
B18: Air conditioners, all phases, split and single package >= 70 kW and < 223 kW, electric resistance heating section | C18: 2.87 | D18: COP | F18: Oil-fired boilers, residulal (No.5 or No.6 oil) and other, < 88 kW | G18: 0.847 | H18: AFUE | L18: ToV8 | M18: 0 | N18: 0 | O18: 0 | P18: 0 | Q18: 0 | R18: 2 | S18: 0 | T18: 0 | U18: 0 | V18: 0 | W18: 0 | X18: 1 | Y18: 0 | Z18: 0 | AA18: 0 | AB18: 0 | AC18: 1 | AD18: 1 | AE18: 0 | AF18: 0 | AG18: 0 | AH18: 0 | AI18: 0 | AJ18: 0 | AK18: 0 | AL18: 0 | AM18: 0
B19: Air conditioners, all phases, split and single package >= 223 kW, electric resistance heating section | C19: 2.84 | D19: COP | F19: Oil-fired boilers, residulal (No.5 or No.6 oil) and other, >= 88 kW and < 733 kW | G19: 0.834 | H19: Et | L19: ToV9 | M19: 0.3011 | N19: 0.3011 | O19: 0.3011 | P19: 0.3011 | Q19: 0.3011 | R19: 0.3011 | S19: 0.3011 | T19: 0.3011 | U19: 0.3011 | V19: 0.3011 | W19: 0.3011 | X19: 0.3011 | Y19: 0.3011 | Z19: 0.3011 | AA19: 0.3011 | AB19: 0.3011 | AC19: 0.3011 | AD19: 0.3011 | AE19: 0.3011 | AF19: 0.3011 | AG19: 0.3011 | AH19: 0.3011 | AI19: 0.3011 | AJ19: 0.3011 | AK19: 0.3011 | AL19: 0.3011 | AM19: 0.3011
B20: Air conditioners, all phases, split and single package >= 223 kW, other heating section | C20: 2.78 | D20: COP | F20: Oil-fired boilers, residulal (No.5 or No.6 oil) and other, >= 733 kW | G20: 0.858 | H20: Ec | L20: ToV10 | M20: 0.1 | N20: 0.1 | O20: 0.1 | P20: 0.1 | Q20: 0.1 | R20: 0.1 | S20: 0.1 | T20: 0.1 | U20: 0.1 | V20: 0.1 | W20: 6 | X20: 0.1 | Y20: 0.1 | Z20: 6 | AA20: 6 | AB20: 6 | AC20: 6 | AD20: 0.1 | AE20: 6 | AF20: 6 | AG20: 6 | AH20: 0.1 | AI20: 6 | AJ20: 6 | AK20: 6 | AL20: 6 | AM20: 6
B21: Heat Pumps >= 19 kW and < 40 kW, electric resistance heating section, split and single | C21: 3.22 | D21: COP | F21: Gas-fired warm-air furnaces, <= 117.23 kW | G21: 0.924 | H21: AFUE | L21: ToV11 | M21: 0.1 | N21: 0.1 | O21: 11 | P21: 11 | Q21: 0.1 | R21: 0.1 | S21: 0.1 | T21: 0.1 | U21: 0.1 | V21: 0.1 | W21: 0.1 | X21: 0.1 | Y21: 0.1 | Z21: 6 | AA21: 6 | AB21: 6 | AC21: 6 | AD21: 0.1 | AE21: 6 | AF21: 6 | AG21: 6 | AH21: 0.1 | AI21: 0.1 | AJ21: 6 | AK21: 0.1 | AL21: 6 | AM21: 0.1
B22: Heat Pumps >= 19 kW and < 40 kW, other heating section, split and single | C22: 3.16 | D22: COP | F22: Gas-fired warm-air furnaces, > 117.23 kW | G22: 0.81 | H22: Et | L22: ToV12 | M22: 0.3 | N22: 0.3 | O22: 0.3 | P22: 0.3 | Q22: 0.3 | R22: 0.3 | S22: 0.3 | T22: 0.3 | U22: 0.3 | V22: 0.3 | W22: 0.3 | X22: 0.3 | Y22: 0.3 | Z22: 0.3 | AA22: 0.3 | AB22: 0.3 | AC22: 0.3 | AD22: 0.3 | AE22: 0.3 | AF22: 0.3 | AG22: 0.3 | AH22: 0.3 | AI22: 0.3 | AJ22: 0.3 | AK22: 0.3 | AL22: 0.3 | AM22: 0.3
B23: Heat Pumps >= 40 kW and < 70 kW, electric resistance heating section, split and single | C23: 3.1 | D23: COP | F23: Gas-fired duct furnaces, <= 117.23 kW | G23: 0.81 | H23: Et | L23: ToV13 | M23: 0.5 | N23: 0.5 | O23: 0.5 | P23: 0.5 | Q23: 0.5 | R23: 0.5 | S23: 0.5 | T23: 0.5 | U23: 0.5 | V23: 0.5 | W23: 0.5 | X23: 0.5 | Y23: 0.5 | Z23: 0.5 | AA23: 0.5 | AB23: 0.5 | AC23: 0.5 | AD23: 0.5 | AE23: 0.5 | AF23: 0.5 | AG23: 0.5 | AH23: 0.5 | AI23: 0.5 | AJ23: 0.5 | AK23: 0.5 | AL23: 0.5 | AM23: 0.5
B24: Heat Pumps >= 40 kW and < 70 kW, otherheating section, split and single | C24: 3.04 | D24: COP | F24: Gas-fired unit heaters, <= 117.23 kW | G24: 0.82 | H24: Et | L24: ToV14 | M24: 0 | N24: 0 | O24: 0 | P24: 0 | Q24: 0 | R24: 0 | S24: 0 | T24: 0 | U24: 0 | V24: 0 | W24: 0 | X24: 0 | Y24: 0 | Z24: 0 | AA24: 0 | AB24: 0 | AC24: 0 | AD24: 0 | AE24: 0 | AF24: 0 | AG24: 0 | AH24: 0 | AI24: 0 | AJ24: 0 | AK24: 0 | AL24: 0 | AM24: 0
B25: Heat Pumps >= 70 kW, electric resistance heating section, split and single | C25: 2.78 | D25: COP | F25: Oil-fired warm-air furnaces, <= 66 kW | G25: 0.845 | H25: Et | L25: ToV15 | M25: 0.7611739734 | N25: 0.8 | O25: 0 | P25: 0 | Q25: 0 | R25: 0 | S25: 0 | T25: 0 | U25: 0 | V25: 0.78 | W25: 0 | X25: 0 | Y25: 0 | Z25: 0 | AA25: 0 | AB25: 0 | AC25: 0 | AD25: 0 | AE25: 0 | AF25: 0 | AG25: 0 | AH25: 0 | AI25: 0 | AJ25: 0 | AK25: 0 | AL25: 0 | AM25: 0
B26: Heat Pumps >= 70 kW, other heating section, split and single | C26: 2.72 | D26: COP | F26: Oil-fired warm-air furnaces, > 66 kW | G26: 0.813 | H26: Et | L26: ToV16 | M26: 0 | N26: 0.8 | O26: 0 | P26: 0 | Q26: 0 | R26: 0 | S26: 0 | T26: 0 | U26: 0 | V26: 0.8 | W26: 0 | X26: 0 | Y26: 0 | Z26: 0 | AA26: 0 | AB26: 0 | AC26: 0 | AD26: 0 | AE26: 0 | AF26: 0 | AG26: 0 | AH26: 0 | AI26: 0 | AJ26: 0 | AK26: 0 | AL26: 0 | AM26: 0
B27: Heat Pumps >= 19 kW and < 70 kW in cooling mode at 8.3 ⁰C db / 6.1 ⁰C wb | C27: 3.3 | D27: COP | F27: Oil-fired duct furnaces or unit heaters | G27: 0.81 | H27: Et | L27: ToV17 | M27: 0 | N27: 0 | O27: 0 | P27: 0 | Q27: 0 | R27: 0 | S27: 0 | T27: 0 | U27: 0 | V27: 0 | W27: 0 | X27: 0 | Y27: 0 | Z27: 0 | AA27: 0 | AB27: 0 | AC27: 0 | AD27: 0 | AE27: 0 | AF27: 0 | AG27: 0 | AH27: 0 | AI27: 0 | AJ27: 0 | AK27: 0 | AL27: 0 | AM27: 0
B28: Heat Pumps >= 19 kW and < 70 kW in cooling mode at 8.3 ⁰C db / -9.4 ⁰C wb | C28: 2.25 | D28: COP | L28: ToV18 | M28: 0 | N28: 0 | O28: 0 | P28: 0 | Q28: 0 | R28: 0 | S28: 0 | T28: 0 | U28: 0 | V28: 0 | W28: 0 | X28: 0 | Y28: 0 | Z28: 0 | AA28: 0 | AB28: 0 | AC28: 3 | AD28: 0 | AE28: 0 | AF28: 0 | AG28: 0 | AH28: 0 | AI28: 0 | AJ28: 0 | AK28: 0 | AL28: 0 | AM28: 0
B29: Heat Pumps >= 70 kW in cooling mode at 8.3 ⁰C db / 6.1 ⁰C wb | C29: 3.2 | D29: COP | L29: ToV19 | M29: 0 | N29: 0 | O29: 0 | P29: 0 | Q29: 0 | R29: 0 | S29: 0 | T29: 0 | U29: 0 | V29: 0 | W29: 0 | X29: 0 | Y29: 0 | Z29: 0 | AA29: 0 | AB29: 0 | AC29: 0 | AD29: 0 | AE29: 0 | AF29: 0 | AG29: 0 | AH29: 0 | AI29: 0 | AJ29: 0 | AK29: 0 | AL29: 0 | AM29: 0
B30: Heat Pumps >= 70 kW in cooling mode at 8.3 ⁰C db / -9.4 ⁰C wb | C30: 2.05 | D30: COP | L30: ToV20 | M30: 0 | N30: 0 | O30: 0 | P30: 0 | Q30: 0 | R30: 0 | S30: 0 | T30: 0 | U30: 0 | V30: 0 | W30: 0 | X30: 0 | Y30: 0 | Z30: 0 | AA30: 0 | AB30: 0 | AC30: 0 | AD30: 0 | AE30: 0 | AF30: 0 | AG30: 0 | AH30: 0 | AI30: 0 | AJ30: 0 | AK30: 0 | AL30: 0 | AM30: 0
B31: SPVAC and SPVHP in cooling mode < 19 kW | C31: 2.92997363 | D31: EER | L31: ToV21 | M31: 0.1 | N31: 0.1 | O31: 0.1 | P31: 0.1 | Q31: 0.1 | R31: 0.1 | S31: 0.1 | T31: 0.1 | U31: 0.1 | V31: 0.1 | W31: 0.1 | X31: 0.1 | Y31: 0.1 | Z31: 0.1 | AA31: 0.1 | AB31: 0.1 | AC31: 0.1 | AD31: 0.1 | AE31: 0.1 | AF31: 0.1 | AG31: 0.1 | AH31: 0.1 | AI31: 0.1 | AJ31: 0.1 | AK31: 0.1 | AL31: 0.1 | AM31: 0.1
B32: SPVAC and SPVHP in cooling mode >= 19 kW and < 40 kW | C32: 2.783474949 | D32: EER | L32: ToV22 | M32: 0.1 | N32: 0.1 | O32: 0.1 | P32: 0.1 | Q32: 0.1 | R32: 0.1 | S32: 0.1 | T32: 0.1 | U32: 0.1 | V32: 0.1 | W32: 0.1 | X32: 0.1 | Y32: 0.1 | Z32: 0.1 | AA32: 0.1 | AB32: 0.1 | AC32: 0.1 | AD32: 0.1 | AE32: 0.1 | AF32: 0.1 | AG32: 0.1 | AH32: 0.1 | AI32: 0.1 | AJ32: 0.1 | AK32: 0.1 | AL32: 0.1 | AM32: 0.1
B33: SPVAC and SPVHP in cooling mode >= 40 kW and < 70 kW | C33: 2.519777322 | D33: EER | L33: ToV23 | M33: 0.4 | N33: 0.4 | O33: 0.4 | P33: 0.4 | Q33: 0.4 | R33: 0.4 | S33: 0.4 | T33: 0.4 | U33: 0.4 | V33: 0.4 | W33: 0.4 | X33: 0.4 | Y33: 0.4 | Z33: 0.4 | AA33: 0.4 | AB33: 0.4 | AC33: 0.4 | AD33: 0.4 | AE33: 0.4 | AF33: 0.4 | AG33: 0.4 | AH33: 0.4 | AI33: 0.4 | AJ33: 0.4 | AK33: 0.4 | AL33: 0.4 | AM33: 0.4
B34: SPVHP in heating mode < 19 kW | C34: 3.1 | D34: COP | L34: ToV24 | M34: 0.4 | N34: 0.4 | O34: 0.4 | P34: 0.4 | Q34: 0.4 | R34: 0.4 | S34: 0.4 | T34: 0.4 | U34: 0.4 | V34: 0.4 | W34: 0.4 | X34: 0.4 | Y34: 0.4 | Z34: 0.4 | AA34: 0.4 | AB34: 0.4 | AC34: 0.4 | AD34: 0.4 | AE34: 0.4 | AF34: 0.4 | AG34: 0.4 | AH34: 0.4 | AI34: 0.4 | AJ34: 0.4 | AK34: 0.4 | AL34: 0.4 | AM34: 0.4
B35: SPVHP in heating mode >= 19 kW and < 40 kW | C35: 3 | D35: COP | L35: ToV25 | M35: 0.3 | N35: 0.3 | O35: 0.3 | P35: 0.3 | Q35: 0.3 | R35: 0.3 | S35: 0.3 | T35: 0.3 | U35: 0.3 | V35: 0.3 | W35: 0.3 | X35: 0.3 | Y35: 0.3 | Z35: 0.3 | AA35: 0.3 | AB35: 0.3 | AC35: 0.3 | AD35: 0.3 | AE35: 0.3 | AF35: 0.3 | AG35: 0.3 | AH35: 0.3 | AI35: 0.3 | AJ35: 0.3 | AK35: 0.3 | AL35: 0.3 | AM35: 0.3
B36: SPVHP in heating mode >= 40 kW and < 70 kW | C36: 2.9 | D36: COP | L36: ToV26 | M36: 0.3 | N36: 0.3 | O36: 0.3 | P36: 0.3 | Q36: 0.3 | R36: 0.3 | S36: 0.3 | T36: 0.3 | U36: 0.3 | V36: 0.3 | W36: 0.3 | X36: 0.3 | Y36: 0.3 | Z36: 0.3 | AA36: 0.3 | AB36: 0.3 | AC36: 0.3 | AD36: 0.3 | AE36: 0.3 | AF36: 0.3 | AG36: 0.3 | AH36: 0.3 | AI36: 0.3 | AJ36: 0.3 | AK36: 0.3 | AL36: 0.3 | AM36: 0.3
B37: Evaporatively cooled <= 19 (65000) | C37: 3.54 | D37: COP | L37: ToV27 | M37: 0.7954288836 | N37: 0.7848538915 | O37: 0.7831165579 | P37: 0.7815552326 | Q37: 0.7863507472 | R37: 0.7833857715 | S37: 0.7915066467 | T37: 0.79 | U37: 0.7863507472 | V37: 0.781803632 | W37: 0.7785287493 | X37: 0.7815845628 | Y37: 0.7980748082 | Z37: 0.7715449919 | AA37: 0.7709360349 | AB37: 0.7709360349 | AC37: 0.77 | AD37: 0.77 | AE37: 0.6216350824 | AF37: 0.77 | AG37: 0.77 | AH37: 0.7754265075 | AI37: 0.7851441909 | AJ37: 0.7665396915 | AK37: 0.7911099909 | AL37: 0.7912131229 | AM37: 0.7851441909
B38: Evaporatively cooled and water evaporatively cooled, split and single-package >= 19 kW and < 40 kW electric resistance heating section | C38: 3.37 | D38: COP | L38: ToV28 | M38: 0.7924060001 | N38: 0.8 | O38: 0.6874816482 | P38: 0.7235831826 | Q38: 0.7626506338 | R38: 0.7626506338 | S38: 0.79 | T38: 0.7626506338 | U38: 0.7626506338 | V38: 0.8 | W38: 0.7626506338 | X38: 0.8 | Y38: 0.8 | Z38: 0.7912345616 | AA38: 0.7506230569 | AB38: 0.7506230569 | AC38: 0.8 | AD38: 0.78 | AE38: 0.6216350824 | AF38: 0.79 | AG38: 0.79 | AH38: 0.6874816482 | AI38: 0.7533892026 | AJ38: 0.7861521901 | AK38: 0.7235831826 | AL38: 0.7235831826 | AM38: 0.7533892026
B39: Evaporatively cooled and water evaporatively cooled, split and single-package >= 19 kW and < 40 kW other heating section | C39: 3.31 | D39: COP | L39: ToV29 | M39: 0.7914210782 | N39: 0.7990259239 | O39: 0.7830824914 | P39: 0.7821013935 | Q39: 0.794460692 | R39: 0.794460692 | S39: 0.794460692 | T39: 0.794460692 | U39: 0.794460692 | V39: 0.799463929 | W39: 0.794460692 | X39: 0.794460692 | Y39: 0.7913068422 | Z39: 0.7907503047 | AA39: 0.7665565936 | AB39: 0.7665565936 | AC39: 0.77 | AD39: 0.77 | AE39: 0.7792014347 | AF39: 0.79 | AG39: 0.79 | AH39: 0.7830824914 | AI39: 0.7665572531 | AJ39: 0.7910626597 | AK39: 0.6200408872 | AL39: 0.6188493606 | AM39: 0.7665572531
B40: Evaporatively cooled and water evaporatively cooled, split and single-package >= 40 kW and < 70 kW electric resistance heating section | C40: 3.22 | D40: COP | L40: ToV30 | M40: 0.77743511 | N40: 0.793987061 | O40: 0.7679711819 | P40: 0.7605699705 | Q40: 0.8 | R40: 0.8 | S40: 0.7829462164 | T40: 0.7951614954 | U40: 0.7692907619 | V40: 0.7965607329 | W40: 0.8 | X40: 0.8 | Y40: 0.7757176454 | Z40: 0.8 | AA40: 0.7734374625 | AB40: 0.7734374625 | AC40: 0.8 | AD40: 0.8 | AE40: 0.8 | AF40: 0.78 | AG40: 0.78 | AH40: 0.7679711819 | AI40: 0.7841537493 | AJ40: 0.7834234033 | AK40: 0.7605699705 | AL40: 0.7605699705 | AM40: 0.7841537493
B41: Evaporatively cooled and water evaporatively cooled, split and single-package >= 40 kW and < 70 kW other heating section | C41: 3.16 | D41: COP | L41: ToV31 | M41: 0.8 | N41: 0.8 | O41: 0.5 | P41: 0.5 | Q41: 0.5 | R41: 0.5 | S41: 0.5 | T41: 0.5 | U41: 0.5 | V41: 0.8 | W41: 0.5 | X41: 0.5 | Y41: 0.5 | Z41: 0.5 | AA41: 0.5 | AB41: 0.5 | AC41: 0.5 | AD41: 0.5 | AE41: 0.5 | AF41: 0.5 | AG41: 0.5 | AH41: 0.5 | AI41: 0.5 | AJ41: 0.5 | AK41: 0.5 | AL41: 0.8 | AM41: 0.5
B42: Water evaporatively cooled air conditioners, split and single-packaged >= 70 kW electric resistance heating section | C42: 3.22 | D42: COP | L42: ToV32 | M42: 0.8 | N42: 0.8 | O42: 0.5 | P42: 0.5 | Q42: 0.5 | R42: 0.5 | S42: 0.5 | T42: 0.5 | U42: 0.5 | V42: 0.8 | W42: 0.5 | X42: 0.5 | Y42: 0.5 | Z42: 0.4966054492 | AA42: 0.5 | AB42: 0.5 | AC42: 0.5 | AD42: 0.49 | AE42: 0.5 | AF42: 0.5 | AG42: 0.5 | AH42: 0.8 | AI42: 0.5 | AJ42: 0.5 | AK42: 0.5 | AL42: 0.8 | AM42: 0.5
B43: Water evaporatively cooled air conditioners, split and single-packaged >= 70 kW other heating section | C43: 3.16 | D43: COP | L43: Maximum | M43: 1 | N43: 2 | O43: 3 | P43: 4 | Q43: 5 | R43: 6 | S43: 7 | T43: 8 | U43: 9 | V43: 10 | W43: 11 | X43: 12 | Y43: 13 | Z43: 14 | AA43: 15 | AB43: 16 | AC43: 17 | AD43: 18 | AE43: 19 | AF43: 20 | AG43: 21 | AH43: 22 | AI43: 23 | AJ43: 24 | AK43: 25 | AL43: 26 | AM43: 27
B44: Air conditioner, air-cooled, electric or no heating - SP-A, RC-A, RCU-A-C, SPY-A, RCY-A, RCU-A-CB, RCUY-A-CB - >=19 <40 | C44: 3.281570466 | L44: ToV1 | M44: 0.9 | N44: 0.9 | O44: 0.7 | P44: 0.9 | Q44: 0.9 | R44: 0.9 | S44: 0.9 | T44: 0.9 | U44: 0.9 | V44: 0.9 | W44: 0.9 | X44: 0.9 | Y44: 0.9 | Z44: 0.9 | AA44: 0.9 | AB44: 0.9 | AC44: 0.9 | AD44: 0.9 | AE44: 0.9 | AF44: 0.9 | AG44: 0.9 | AH44: 0.7 | AI44: 0.9 | AJ44: 0.9 | AK44: 0.9 | AL44: 0.9 | AM44: 0.9
B45: Air conditioner, air-cooled, electric or no heating - SP-A, RC-A, RCU-A-C, SPY-A, RCY-A, RCU-A-CB, RCUY-A-CB | C45: 3.222970993 | L45: ToV2 | M45: 0.99 | N45: 0.99 | O45: 0.99 | P45: 0.99 | Q45: 0.99 | R45: 0.99 | S45: 0.99 | T45: 0.99 | U45: 0.99 | V45: 0.99 | W45: 0.99 | X45: 0.99 | Y45: 0.99 | Z45: 0.99 | AA45: 0.99 | AB45: 0.99 | AC45: 0.99 | AD45: 0.99 | AE45: 0.99 | AF45: 0.99 | AG45: 0.99 | AH45: 0.99 | AI45: 0.99 | AJ45: 0.99 | AK45: 0.99 | AL45: 0.99 | AM45: 0.99
B46: Air conditioner, air-cooled, electric or no heating - SP-A, RC-A, RCU-A-C, SPY-A, RCY-A, RCU-A-CB, RCUY-A-CB | C46: 2.92997363 | L46: ToV3 | M46: 0.6 | N46: 0.6 | O46: 0.55 | P46: 0.55 | Q46: 0.6 | R46: 0.34 | S46: 0.6 | T46: 0.4 | U46: 0.55 | V46: 0.6 | W46: 0.45 | X46: 0.6 | Y46: 0.6 | Z46: 0.6 | AA46: 0.55 | AB46: 0.55 | AC46: 0.6 | AD46: 0.6 | AE46: 0.6 | AF46: 0.6 | AG46: 0.6 | AH46: 0.5 | AI46: 0.6 | AJ46: 0.6 | AK46: 0.6 | AL46: 0.6 | AM46: 0.6
B47: Air conditioner, air-cooled, electric or no heating - SP-A, RC-A, RCU-A-C, SPY-A, RCY-A, RCU-A-CB, RCUY-A-CB - >= 223 (>= 760) | C47: 2.842074421 | L47: ToV4 | M47: 0.99 | N47: 0.99 | O47: 0.99 | P47: 0.99 | Q47: 0.99 | R47: 0.99 | S47: 0.99 | T47: 0.99 | U47: 0.99 | V47: 0.99 | W47: 0.99 | X47: 0.99 | Y47: 0.99 | Z47: 0.99 | AA47: 0.99 | AB47: 0.99 | AC47: 0.99 | AD47: 0.99 | AE47: 0.99 | AF47: 0.99 | AG47: 0.99 | AH47: 0.99 | AI47: 0.99 | AJ47: 0.99 | AK47: 0.99 | AL47: 0.99 | AM47: 0.99
B48: Air conditioner, water & evaporatively cooled, electric or no heating - SP-E, SP-W, RC-E, RC-W, SPY-E, SPY-W, RCY-E, RCY-W, RCU-E-C, RCU-W-C, RCU-E-CB, RCU-W-CB, RCUY-E-CB, RCUY-W-CB | C48: 3.369469675 | L48: ToV5 | M48: 1 | N48: 0.4252789745 | O48: 0.94 | P48: 0.94 | Q48: 1 | R48: 1 | S48: 1 | T48: 1 | U48: 1 | V48: 1 | W48: 1 | X48: 1 | Y48: 1 | Z48: 1 | AA48: 1 | AB48: 1 | AC48: 1 | AD48: 1 | AE48: 1 | AF48: 1 | AG48: 1 | AH48: 1 | AI48: 1 | AJ48: 1 | AK48: 1 | AL48: 1 | AM48: 1
B49: Air conditioner, water & evaporatively cooled, electric or no heating - SP-E, SP-W, RC-E, RC-W, SPY-E, SPY-W, RCY-E, RCY-W, RCU-E-C, RCU-W-C, RCU-E-CB, RCU-W-CB, RCUY-E-CB, RCUY-W-CB | C49: 3.222970993 | L49: ToV6 | M49: 0.604 | N49: 0.604 | O49: 0.604 | P49: 0.604 | Q49: 0.604 | R49: 0.604 | S49: 0.604 | T49: 0.604 | U49: 0.604 | V49: 0.604 | W49: 0.604 | X49: 0.604 | Y49: 0.604 | Z49: 0.604 | AA49: 0.604 | AB49: 0.604 | AC49: 0.604 | AD49: 0.604 | AE49: 0.604 | AF49: 0.604 | AG49: 0.604 | AH49: 0.604 | AI49: 0.604 | AJ49: 0.604 | AK49: 0.604 | AL49: 0.604 | AM49: 0.604
B50: Air conditioner, water & evaporatively cooled, electric or no heating - SP-E, SP-W, RC-E, RC-W, SPY-E, SPY-W, RCY-E, RCY-W, RCU-E-C, RCU-W-C, RCU-E-CB, RCU-W-CB, RCUY-E-CB, RCUY-W-CB | C50: 3.222970993 | L50: ToV7 | M50: 9 | N50: 9 | O50: 6.8 | P50: 9 | Q50: 9 | R50: 9 | S50: 9 | T50: 9 | U50: 9 | V50: 9 | W50: 9 | X50: 9 | Y50: 9 | Z50: 9 | AA50: 9 | AB50: 9 | AC50: 9 | AD50: 9 | AE50: 9 | AF50: 9 | AG50: 9 | AH50: 6 | AI50: 9 | AJ50: 9 | AK50: 9 | AL50: 6 | AM50: 9
B51: Heat pump, electric or no heating - HSP-A, HRC-A-C, HRCU-A-C, HRC-A-CB, HRCU-A-CB | C51: 3.222970993 | L51: ToV8 | M51: 6 | N51: 6 | O51: 6 | P51: 6 | Q51: 6 | R51: 7 | S51: 6 | T51: 6 | U51: 6 | V51: 6 | W51: 8 | X51: 6 | Y51: 5 | Z51: 6 | AA51: 6 | AB51: 6 | AC51: 3.7 | AD51: 4 | AE51: 6 | AF51: 6 | AG51: 6 | AH51: 6 | AI51: 6 | AJ51: 6 | AK51: 6 | AL51: 6 | AM51: 6
B52: Heat pump, electric or no heating - HSP-A, HRC-A-C, HRCU-A-C, HRC-A-CB, HRCU-A-CB | C52: 3.105772048 | L52: ToV9 | M52: 5 | N52: 5 | O52: 5 | P52: 5 | Q52: 5 | R52: 5 | S52: 5 | T52: 5 | U52: 5 | V52: 5 | W52: 5 | X52: 5 | Y52: 5 | Z52: 4 | AA52: 5 | AB52: 5 | AC52: 5 | AD52: 2 | AE52: 5 | AF52: 5 | AG52: 5 | AH52: 5 | AI52: 5 | AJ52: 5 | AK52: 5 | AL52: 5 | AM52: 5
B53: Heat pump, electric or no heating - HSP-A, HRC-A-C, HRCU-A-C, HRC-A-CB, HRCU-A-CB | C53: 2.783474949 | L53: ToV10 | M53: 50 | N53: 50 | O53: 50 | P53: 50 | Q53: 50 | R53: 50 | S53: 50 | T53: 50 | U53: 50 | V53: 50 | W53: 40 | X53: 50 | Y53: 50 | Z53: 38 | AA53: 40 | AB53: 40 | AC53: 40 | AD53: 50 | AE53: 40 | AF53: 40 | AG53: 40 | AH53: 50 | AI53: 40 | AJ53: 40 | AK53: 40 | AL53: 40 | AM53: 40
B54: Air conditioner, air-cooled, all other heating section - SP-A, RC-A, RCU-A-C, SPY-A, RCY-A, RCU-A-CB, RCUY-A-CB - >=19 <40 | C54: 3.222970993 | L54: ToV11 | M54: 50 | N54: 50 | O54: 40 | P54: 40 | Q54: 50 | R54: 50 | S54: 50 | T54: 50 | U54: 50 | V54: 50 | W54: 50 | X54: 50 | Y54: 50 | Z54: 40 | AA54: 40 | AB54: 40 | AC54: 40 | AD54: 50 | AE54: 40 | AF54: 40 | AG54: 40 | AH54: 50 | AI54: 50 | AJ54: 40 | AK54: 50 | AL54: 40 | AM54: 50
B55: Air conditioner, air-cooled, all other heating section - SP-A, RC-A, RCU-A-C, SPY-A, RCY-A, RCU-A-CB, RCUY-A-CB | C55: 3.164371521 | L55: ToV12 | M55: 3 | N55: 3 | O55: 3 | P55: 3 | Q55: 3 | R55: 3 | S55: 3 | T55: 3 | U55: 3 | V55: 3 | W55: 3 | X55: 3 | Y55: 3 | Z55: 3 | AA55: 3 | AB55: 3 | AC55: 3 | AD55: 7 | AE55: 3 | AF55: 3 | AG55: 3 | AH55: 3 | AI55: 3 | AJ55: 3 | AK55: 3 | AL55: 3 | AM55: 3
B56: Air conditioner, air-cooled, all other heating section - SP-A, RC-A, RCU-A-C, SPY-A, RCY-A, RCU-A-CB, RCUY-A-CB | C56: 2.871374158 | L56: ToV13 | M56: 8 | N56: 8 | O56: 6 | P56: 8 | Q56: 6 | R56: 6 | S56: 10 | T56: 6 | U56: 10 | V56: 10 | W56: 7 | X56: 10 | Y56: 10 | Z56: 10 | AA56: 10 | AB56: 10 | AC56: 7 | AD56: 6 | AE56: 10 | AF56: 10 | AG56: 10 | AH56: 6 | AI56: 10 | AJ56: 10 | AK56: 10 | AL56: 10 | AM56: 10
B57: Air conditioner, air-cooled, all other heating section - SP-A, RC-A, RCU-A-C, SPY-A, RCY-A, RCU-A-CB, RCUY-A-CB - >= 223 (>= 760) | C57: 2.783474949 | L57: ToV14 | M57: 1 | N57: 1 | O57: 0.1 | P57: 0.1 | Q57: 0.1 | R57: 0.1 | S57: 0.1 | T57: 0.1 | U57: 1 | V57: 1 | W57: 0.1 | X57: 1 | Y57: 0.1 | Z57: 0.1 | AA57: 0.1 | AB57: 1 | AC57: 0.1 | AD57: 1 | AE57: 1 | AF57: 1 | AG57: 1 | AH57: 0.1 | AI57: 0.08 | AJ57: 1 | AK57: 1 | AL57: 1 | AM57: 0.08
B58: Air conditioner, water & evaporatively cooled, all other heating section - SP-E, SP-W, RC-E, RC-W, SPY-E, SPY-W, RCY-E, RCY-W, RCU-E-C, RCU-W-C, RCU-E-CB, RCU-W-CB, RCUY-E-CB, RCUY-W-CB | C58: 3.310870202 | L58: ToV15 | M58: 0.800499445 | N58: 0.8007197878 | O58: 0.95 | P58: 0.95 | Q58: 0.95 | R58: 0.8 | S58: 0.95 | T58: 0.95 | U58: 0.95 | V58: 0.8000354321 | W58: 0.95 | X58: 0.95 | Y58: 0.95 | Z58: 0.95 | AA58: 0.95 | AB58: 0.95 | AC58: 0.95 | AD58: 0.95 | AE58: 0.95 | AF58: 0.95 | AG58: 0.95 | AH58: 0.95 | AI58: 0.95 | AJ58: 0.9 | AK58: 0.95 | AL58: 0.95 | AM58: 0.95
B59: Air conditioner, water & evaporatively cooled, all other heating section - SP-E, SP-W, RC-E, RC-W, SPY-E, SPY-W, RCY-E, RCY-W, RCU-E-C, RCU-W-C, RCU-E-CB, RCU-W-CB, RCUY-E-CB, RCUY-W-CB | C59: 3.164371521 | L59: ToV16 | M59: 0.9298675019 | N59: 0.8510818938 | O59: 0.93 | P59: 0.93 | Q59: 0.93 | R59: 0.93 | S59: 0.93 | T59: 0.93 | U59: 0.93 | V59: 0.849310871 | W59: 0.93 | X59: 0.93 | Y59: 0.93 | Z59: 0.2601509701 | AA59: 0.117238915 | AB59: 0.117238915 | AC59: 0.12 | AD59: 0.12 | AE59: 0.12 | AF59: 0.12 | AG59: 0.12 | AH59: 0.93 | AI59: 0.12 | AJ59: 0.117238915 | AK59: 0.93 | AL59: 0.93 | AM59: 0.12
B60: Air conditioner, water & evaporatively cooled, all other heating section - SP-E, SP-W, RC-E, RC-W, SPY-E, SPY-W, RCY-E, RCY-W, RCU-E-C, RCU-W-C, RCU-E-CB, RCU-W-CB, RCUY-E-CB, RCUY-W-CB | C60: 3.164371521 | L60: ToV17 | M60: 0.9 | N60: 0.8 | O60: 0.99 | P60: 0.99 | Q60: 0.9 | R60: 0.8 | S60: 0.9 | T60: 0.9 | U60: 0.9 | V60: 0.6 | W60: 0.6 | X60: 0.9 | Y60: 0.7 | Z60: 0.9 | AA60: 0.99 | AB60: 0.99 | AC60: 0.99 | AD60: 0.99 | AE60: 0.99 | AF60: 0.9 | AG60: 0.99 | AH60: 0.99 | AI60: 0.9 | AJ60: 0.99 | AK60: 0.99 | AL60: 0.99 | AM60: 0.99
B61: Heat pump, all other heating section - HSP-A, HRC-A-C, HRCU-A-C, HRC-A-CB, HRCU-A-CB | C61: 3.164371521 | L61: ToV18 | M61: 0.99 | N61: 0.99 | O61: 0.99 | P61: 0.99 | Q61: 0.99 | R61: 0.99 | S61: 0.99 | T61: 0.99 | U61: 0.99 | V61: 0.99 | W61: 0.99 | X61: 0.99 | Y61: 0.99 | Z61: 0.99 | AA61: 0.99 | AB61: 0.99 | AC61: 0.99 | AD61: 0.99 | AE61: 0.99 | AF61: 0.99 | AG61: 0.99 | AH61: 0.99 | AI61: 0.99 | AJ61: 0.99 | AK61: 0.99 | AL61: 0.99 | AM61: 0.99
B62: Heat pump, all other heating section - HSP-A, HRC-A-C, HRCU-A-C, HRC-A-CB, HRCU-A-CB | C62: 3.047172575 | L62: ToV19 | M62: 9 | N62: 9 | O62: 9 | P62: 9 | Q62: 9 | R62: 9 | S62: 9 | T62: 9 | U62: 9 | V62: 9 | W62: 9 | X62: 9 | Y62: 9 | Z62: 9 | AA62: 9 | AB62: 9 | AC62: 9 | AD62: 9 | AE62: 9 | AF62: 9 | AG62: 9 | AH62: 9 | AI62: 9 | AJ62: 9 | AK62: 9 | AL62: 9 | AM62: 9
B63: Heat pump, all other heating section - HSP-A, HRC-A-C, HRCU-A-C, HRC-A-CB, HRCU-A-CB | C63: 2.724875476 | L63: ToV20 | M63: 9 | N63: 9 | O63: 9 | P63: 8 | Q63: 9 | R63: 9 | S63: 9 | T63: 9 | U63: 9 | V63: 9 | W63: 9 | X63: 9 | Y63: 9 | Z63: 9 | AA63: 9 | AB63: 9 | AC63: 9 | AD63: 9 | AE63: 9 | AF63: 9 | AG63: 9 | AH63: 9 | AI63: 9 | AJ63: 9 | AK63: 9 | AL63: 9 | AM63: 9
B64: Large condensing units - RCU-A | C64: 2.959273367 | L64: ToV21 | M64: 150 | N64: 150 | O64: 150 | P64: 150 | Q64: 150 | R64: 150 | S64: 150 | T64: 150 | U64: 150 | V64: 150 | W64: 150 | X64: 150 | Y64: 150 | Z64: 150 | AA64: 150 | AB64: 150 | AC64: 150 | AD64: 150 | AE64: 150 | AF64: 150 | AG64: 150 | AH64: 150 | AI64: 150 | AJ64: 150 | AK64: 150 | AL64: 150 | AM64: 150
B65: Large condensing units - RCU-E, RCU-W | C65: 3.838265456 | D65: COP | L65: ToV22 | M65: 150 | N65: 150 | O65: 150 | P65: 150 | Q65: 150 | R65: 150 | S65: 150 | T65: 150 | U65: 150 | V65: 150 | W65: 150 | X65: 150 | Y65: 150 | Z65: 150 | AA65: 150 | AB65: 150 | AC65: 150 | AD65: 150 | AE65: 150 | AF65: 150 | AG65: 150 | AH65: 150 | AI65: 150 | AJ65: 150 | AK65: 150 | AL65: 150 | AM65: 150
B66: Condensing unit - Air-cooled >= 73 (250000) | C66: 2.96 | D66: COP | L66: ToV23 | M66: 0.7 | N66: 0.7 | O66: 0.7 | P66: 0.7 | Q66: 0.7 | R66: 0.7 | S66: 0.7 | T66: 0.7 | U66: 0.7 | V66: 0.7 | W66: 0.7 | X66: 0.7 | Y66: 0.7 | Z66: 0.7 | AA66: 0.7 | AB66: 0.7 | AC66: 0.7 | AD66: 0.7 | AE66: 0.7 | AF66: 0.7 | AG66: 0.7 | AH66: 0.7 | AI66: 0.7 | AJ66: 0.7 | AK66: 0.7 | AL66: 0.7 | AM66: 0.7
B67: Condensing unit - Water evaporatively cooled >= 73 (250000) | C67: 3.84 | D67: COP | L67: ToV24 | M67: 0.7 | N67: 0.7 | O67: 0.7 | P67: 0.7 | Q67: 0.7 | R67: 0.7 | S67: 0.7 | T67: 0.7 | U67: 0.7 | V67: 0.7 | W67: 0.7 | X67: 0.7 | Y67: 0.7 | Z67: 0.7 | AA67: 0.7 | AB67: 0.7 | AC67: 0.7 | AD67: 0.7 | AE67: 0.7 | AF67: 0.7 | AG67: 0.7 | AH67: 0.7 | AI67: 0.7 | AJ67: 0.7 | AK67: 0.7 | AL67: 0.7 | AM67: 0.7
B68: Ground or water source heat pumps < 35 (119500) - open systems | C68: 4.75 | L68: ToV25 | M68: 0.99 | N68: 0.99 | O68: 0.99 | P68: 0.99 | Q68: 0.99 | R68: 0.99 | S68: 0.99 | T68: 0.99 | U68: 0.99 | V68: 0.99 | W68: 0.99 | X68: 0.99 | Y68: 0.99 | Z68: 0.99 | AA68: 0.99 | AB68: 0.99 | AC68: 0.99 | AD68: 0.99 | AE68: 0.99 | AF68: 0.99 | AG68: 0.99 | AH68: 0.99 | AI68: 0.99 | AJ68: 0.99 | AK68: 0.99 | AL68: 0.99 | AM68: 0.99
B69: Ground or water source heat pumps < 35 (119500) - closed systems | C69: 3.93 | L69: ToV26 | M69: 0.99 | N69: 0.99 | O69: 0.99 | P69: 0.99 | Q69: 0.99 | R69: 0.99 | S69: 0.99 | T69: 0.99 | U69: 0.99 | V69: 0.99 | W69: 0.99 | X69: 0.99 | Y69: 0.99 | Z69: 0.99 | AA69: 0.99 | AB69: 0.99 | AC69: 0.99 | AD69: 0.99 | AE69: 0.99 | AF69: 0.99 | AG69: 0.99 | AH69: 0.99 | AI69: 0.99 | AJ69: 0.99 | AK69: 0.99 | AL69: 0.99 | AM69: 0.99
B70: Internal water-loop heat pumps < 40 (136500) | C70: 3.52 | L70: ToV27 | M70: 0.8554924532 | N70: 0.8 | O70: 0.8913112147 | P70: 0.89921354 | Q70: 0.8472830429 | R70: 0.8 | S70: 0.8252341926 | T70: 0.8419976025 | U70: 0.8477853594 | V70: 0.8498100224 | W70: 0.8510216045 | X70: 0.8484614921 | Y70: 0.8020198097 | Z70: 0.9857354512 | AA70: 0.9588387545 | AB70: 0.9588387545 | AC70: 0.96 | AD70: 0.96 | AE70: 0.8 | AF70: 1.02 | AG70: 1.02 | AH70: 0.9499716562 | AI70: 1.071874062 | AJ70: 1.096438886 | AK70: 0.8683435244 | AL70: 0.8661845892 | AM70: 1.071874062
B71: Water-cooled air conditioners < 19 (65000) | C71: 3.54 | D71: COP | L71: ToV28 | M71: 0.8051485247 | N71: 0.8230807547 | O71: 0.8 | P71: 0.8 | Q71: 0.8011291147 | R71: 0.8011291147 | S71: 0.81 | T71: 0.8011291147 | U71: 0.81 | V71: 0.8158413919 | W71: 0.8011291147 | X71: 0.8134622077 | Y71: 0.8357035123 | Z71: 0.8 | AA71: 0.8 | AB71: 0.8 | AC71: 0.81 | AD71: 0.812 | AE71: 0.8 | AF71: 0.8 | AG71: 0.8 | AH71: 0.850502131 | AI71: 0.850502131 | AJ71: 0.8 | AK71: 0.8 | AL71: 0.8 | AM71: 0.850502131
B72: Water-cooled air conditioners >= 19 kW and < 40 kW electric resistance heating (or none) | C72: 3.37 | D72: COP | L72: ToV29 | M72: 0.8674606105 | N72: 0.8153852024 | O72: 0.9077070753 | P72: 0.9176556783 | Q72: 0.8543970824 | R72: 0.8543970824 | S72: 0.8543970824 | T72: 0.8543970824 | U72: 0.8543970824 | V72: 0.8007567295 | W72: 0.81 | X72: 0.81 | Y72: 0.8311202637 | Z72: 1.047734098 | AA72: 1.029834584 | AB72: 1.029834584 | AC72: 1.03 | AD72: 1.03 | AE72: 0.8452628299 | AF72: 1.05 | AG72: 1.05 | AH72: 1.040479652 | AI72: 1.040479652 | AJ72: 1.130075095 | AK72: 1.221116182 | AL72: 1.386506283 | AM72: 1.040479652
B73: Water-cooled air conditioners >= 19 kW and < 40 kW all other | C73: 3.31 | D73: COP | L73: ToV30 | M73: 0.8332972721 | N73: 0.8079954034 | O73: 0.8136095111 | P73: 0.8167563888 | Q73: 0.8035423166 | R73: 0.8035423166 | S73: 0.8266265661 | T73: 0.855751661 | U73: 0.8359758237 | V73: 0.8041024153 | W73: 0.8035423166 | X73: 0.8035423166 | Y73: 0.8324159124 | Z73: 0.8222552501 | AA73: 0.8404565348 | AB73: 0.8404565348 | AC73: 0.84 | AD73: 0.8 | AE73: 0.8027802438 | AF73: 0.81 | AG73: 0.81 | AH73: 0.8217655857 | AI73: 0.8217655857 | AJ73: 0.8136224947 | AK73: 0.8167563888 | AL73: 0.8167563888 | AM73: 0.8217655857
B74: Water-cooled air conditioners >= 40 kW and < 70 kW electric resistance heating (or none) | C74: 3.22 | D74: COP | L74: ToV31 | M74: 0.8123396014 | N74: 0.8033787956 | O74: 0.519733186 | P74: 0.5131058649 | Q74: 0.511382072 | R74: 0.5039520515 | S74: 0.5070892065 | T74: 0.5101710189 | U74: 0.5026781962 | V74: 0.8015986998 | W74: 0.5045526188 | X74: 0.5016274287 | Y74: 0.5101382355 | Z74: 0.5182725198 | AA74: 0.5181570889 | AB74: 0.5181570889 | AC74: 0.5 | AD74: 0.5 | AE74: 0.521113391 | AF74: 0.5096219791 | AG74: 0.5096219791 | AH74: 0.5104065379 | AI74: 0.5104065379 | AJ74: 0.5118711754 | AK74: 0.581023924 | AL74: 0.8801069645 | AM74: 0.5104065379
B75: Water-cooled air conditioners >= 40 kW and < 70 kW all other | C75: 3.16 | D75: COP | L75: ToV32 | M75: 0.8068365405 | N75: 0.8016536196 | O75: 0.8623000102 | P75: 0.5603765827 | Q75: 0.9 | R75: 0.9 | S75: 0.9 | T75: 0.9 | U75: 0.9 | V75: 0.8008604261 | W75: 0.9 | X75: 0.500845969 | Y75: 0.5075301323 | Z75: 0.5 | AA75: 0.5066848104 | AB75: 0.5066848104 | AC75: 0.52 | AD75: 0.52 | AE75: 0.9 | AF75: 0.9 | AG75: 0.9 | AH75: 0.5100868593 | AI75: 0.5100868593 | AJ75: 0.5035921831 | AK75: 0.5603765827 | AL75: 0.8603765827 | AM75: 0.5100868593
B76: Water-cooled air conditioners >= 70 kW electric resistance heating (or none) | C76: 3.22 | D76: COP
B77: Water-cooled air conditioners >= 70 kW all other | C77: 3.16 | D77: COP
B78: Direct-expansion ground-source heat pumps <= 21 (71700) | C78: 3.808965719
B79: PTAC and PTHP air-cooled electrically operated - Electrically Operated | C79: -1
B80: PTHP in cooling mode (Standard rating) | C80: -2
B81: PTHP in heating mode (Standard rating) | C81: -3
B82: Room air conditioners with reserve cycle with louvered sides < 10.55 (36000) | C82: 2.490477586
B83: Room air conditioners with reserve cycle without louvered sides < 10.55 (36000) | C83: 2.343978904
B84: Room air conditioners without reverse cycle < 10.55 (36000) | C84: 2.490477586
B85: Room air conditioners with louvered sides < 1.8 kW | C85: 2.84
B86: Room air conditioners with louvered sides >= 1.8 kW and < 2.3 kW | C86: 2.84
B87: Room air conditioners with louvered sides >= 2.3 kW and < 4.1 kW | C87: 2.87
B88: Room air conditioners with louvered sides >= 4.1 kW and < 5.9 kW | C88: 2.84
B89: Room air conditioners with louvered sides >= 5.9 kW | C89: 2.49
B90: Room air conditioners without louvered sides < 2.3 kW | C90: 2.64
B91: Room air conditioners wothout louvered sides >= 2.3 kW and < 5.9 kW | C91: 2.49
B92: Room air conditioners without louvered sides >= 5.9 kW | C92: 2.49
B93: Room air conditioner heat pumps with louvered sides < 5.9 kW | C93: 2.65
B94: Room air conditioner heat pumps with louvered sides < 5.9 kW | C94: 2.49
B95: Room air conditioner heat pumps without louvered sides < 4.1 | C95: 2.49
B96: Room air conditioner heat pumps without louvered sides >= 4.1 | C96: 2.34
B97: Room air conditioner casement only | C97: 2.55
B98: Room air conditioner casement slider | C98: 2.78
B99: Air-cooled < 19 (65000) | C99: 2.09
B100: Air-cooled < 19 (65000) and < 70 (240000) | C100: 1.99
B101: Air-cooled >= 70 (240000) | C101: 1.79
B102: Water-cooled < 19 (65000) | C102: 2.49
B103: Water-cooled >= 19 (65000) and < 70 (240000) | C103: 2.39
B104: Water-cooled >= 70 (240000) | C104: 2.29
B105: Water-cooled with fluid economizer < 19 (65000) | C105: 2.44
B106: Water-cooled with fluid economizer >= 19 (65000) and < 70 (240000) | C106: 2.34
B107: Water-cooled with fluid economizer >= 70 (240000) | C107: 2.24
B108: Glycol-cooled < 19 (65000) | C108: 2.39
B109: Glycol-cooled >= 19 (65000) and 70 (240000) | C109: 2.04
B110: Glycol-cooled >= 70 (240000) | C110: 1.99
B111: Glycol-cooled with fluid economizer < 19 (65000) | C111: 2.34
B112: Glycol-cooled with fluid economizer >= 19 (65000) and < 70 (240000) | C112: 1.99
B113: Glycol-cooled with fluid economizer >= 70 (240000) | C113: 1.94
B114: Chilled water air handler < 19 (65000) | C114: 6.06
B115: Chilled water air handler >= 19 (65000) and < 70 (240000) | C115: 7.06
B116: Chilled water air handler >= 70 (240000) | C116: 9.06
B117: Air cooled, with condenser, electrically operated | C117: 2.8
B118: Air cooled, without condenser, electrically operated | C118: 3.1
B119: Water cooled, electrically operated, positive displacement (reciprocating) | C119: 4.2
B120: Water cooled, electrically operated, positive displacement (rotary screw and scroll) < 150 Tons | C120: 4.45
B121: Water cooled, electrically operated, positive displacement (rotary screw and scroll) >= 150 Tons & < 300 Tons | C121: 4.9
B122: Water cooled, electrically operated, positive displacement (rotary screw and scroll) >= 300 Tons | C122: 5.5
B123: Water cooled, electrically operated, positive displacement (centrifugal) < 150 Tons | C123: 5
B124: Water cooled, electrically operated, positive displacement (centrifugal) >= 150 Tons & < 300 Tons | C124: 5.55
B125: Water cooled, electrically operated, positive displacement (centrifugal) >= 300 Tons | C125: 6.1
B126: Air cooled absorption single effect | C126: 0.6
B127: Water cooled absorption single effect | C127: 0.7
B128: Absorption double effect, indirect-fired | C128: 1
B129: Absorption double effect, direct-fired | C129: 1

Sheet Climate-Climat
B1: =Tables!GD2 -> Climate Zones
B2: =Tables!GD3 -> City / Location | C2: =Tables!GE3 -> Province/Territory | D2: =Tables!GF3 -> Zone
B3: =Tables!GD4 -> Vancouver | C3: =Tables!GE4 -> Br. Columbia | D3: =Tables!GF4 -> 4
B4: =Tables!GD5 -> Abbotsford | C4: =Tables!GE5 -> Br. Columbia | D4: =Tables!GF5 -> 5
B5: =Tables!GD6 -> Tofino | C5: =Tables!GE6 -> Br. Columbia | D5: =Tables!GF6 -> 5
B6: =Tables!GD7 -> Penticton | C6: =Tables!GE7 -> Br. Columbia | D6: =Tables!GF7 -> 5
B7: =Tables!GD8 -> Penticton | C7: =Tables!GE8 -> Br. Columbia | D7: =Tables!GF8 -> 5
B8: =Tables!GD9 -> Port Hardy | C8: =Tables!GE9 -> Br. Columbia | D8: =Tables!GF9 -> 5
B9: =Tables!GD10 -> Windsor | C9: =Tables!GE10 -> Ontario | D9: =Tables!GF10 -> 5
B10: =Tables!GD11 -> Kamloops | C10: =Tables!GE11 -> Br. Columbia | D10: =Tables!GF11 -> 5
B11: =Tables!GD12 -> Toronto | C11: =Tables!GE12 -> Ontario | D11: =Tables!GF12 -> 5
B12: =Tables!GD13 -> Castlegar | C12: =Tables!GE13 -> Br. Columbia | D12: =Tables!GF13 -> 5
B13: =Tables!GD14 -> Victoria | C13: =Tables!GE14 -> Br. Columbia | D13: =Tables!GF14 -> 5
B14: =Tables!GD15 -> Prince Rupert | C14: =Tables!GE15 -> Br. Columbia | D14: =Tables!GF15 -> 6
B15: =Tables!GD16 -> Halifax | C15: =Tables!GE16 -> Nova Scotia | D15: =Tables!GF16 -> 6
B16: =Tables!GD17 -> Yarmouth | C16: =Tables!GE17 -> Nova Scotia | D16: =Tables!GF17 -> 6
B17: =Tables!GD18 -> London | C17: =Tables!GE18 -> Ontario | D17: =Tables!GF18 -> 6
B18: =Tables!GD19 -> Trenton | C18: =Tables!GE19 -> Ontario | D18: =Tables!GF19 -> 6
B19: =Tables!GD20 -> Montreal (Dorval) | C19: =Tables!GE20 -> Quebec | D19: =Tables!GF20 -> 6
B20: =Tables!GD21 -> Greenwood | C20: =Tables!GE21 -> Nova Scotia | D20: =Tables!GF21 -> 6
B21: =Tables!GD22 -> Terrace | C21: =Tables!GE22 -> Br. Columbia | D21: =Tables!GF22 -> 6
B22: =Tables!GD23 -> Ottawa | C22: =Tables!GE23 -> Ontario | D22: =Tables!GF23 -> 6
B23: =Tables!GD24 -> Charlottetown | C23: =Tables!GE24 -> P.E.I. | D23: =Tables!GF24 -> 6
B24: =Tables!GD25 -> St. Hubert | C24: =Tables!GE25 -> Quebec | D24: =Tables!GF25 -> 6
B25: =Tables!GD26 -> Lethbridge | C25: =Tables!GE26 -> Alberta | D25: =Tables!GF26 -> 6
B26: =Tables!GD27 -> Cranbrook | C26: =Tables!GE27 -> Br. Columbia | D26: =Tables!GF27 -> 6
B27: =Tables!GD28 -> Fredericton | C27: =Tables!GE28 -> New Brunswick | D27: =Tables!GF28 -> 6
B28: =Tables!GD29 -> Truro | C28: =Tables!GE29 -> Nova Scotia | D28: =Tables!GF29 -> 6
B29: =Tables!GD30 -> Summerside | C29: =Tables!GE30 -> P.E.I. | D29: =Tables!GF30 -> 6
B30: =Tables!GD31 -> Medicine Hat | C30: =Tables!GE31 -> Alberta | D30: =Tables!GF31 -> 6
B31: =Tables!GD32 -> Moncton | C31: =Tables!GE32 -> New Brunswick | D31: =Tables!GF32 -> 6
B32: =Tables!GD33 -> Mount Forest | C32: =Tables!GE33 -> Ontario | D32: =Tables!GF33 -> 6
B33: =Tables!GD34 -> Saint John | C33: =Tables!GE34 -> New Brunswick | D33: =Tables!GF34 -> 6
B34: =Tables!GD35 -> St John's | C34: =Tables!GE35 -> Newfoundland | D34: =Tables!GF35 -> 6
B35: =Tables!GD36 -> Sherbrooke | C35: =Tables!GE36 -> Quebec | D35: =Tables!GF36 -> 6
B36: =Tables!GD37 -> Stephenville | C36: =Tables!GE37 -> Newfoundland | D36: =Tables!GF37 -> 6
B37: =Tables!GD38 -> Williams Lake | C37: =Tables!GE38 -> Br. Columbia | D37: =Tables!GF38 -> 7A
B38: =Tables!GD39 -> Sault Ste. Marie | C38: =Tables!GE39 -> Ontario | D38: =Tables!GF39 -> 7A
B39: =Tables!GD40 -> Calgary | C39: =Tables!GE40 -> Alberta | D39: =Tables!GF40 -> 7A
B40: =Tables!GD41 -> Gander | C40: =Tables!GE41 -> Newfoundland | D40: =Tables!GF41 -> 7A
B41: =Tables!GD42 -> Quebec | C41: =Tables!GE42 -> Quebec | D41: =Tables!GF42 -> 7A
B42: =Tables!GD43 -> Prince George | C42: =Tables!GE43 -> Br. Columbia | D42: =Tables!GF43 -> 7A
B43: =Tables!GD44 -> North Bay | C43: =Tables!GE44 -> Ontario | D43: =Tables!GF44 -> 7A
B44: =Tables!GD45 -> Edmonton | C44: =Tables!GE45 -> Alberta | D44: =Tables!GF45 -> 7A
B45: =Tables!GD46 -> Sudbury | C45: =Tables!GE46 -> Ontario | D45: =Tables!GF46 -> 7A
B46: =Tables!GD47 -> Estevan | C46: =Tables!GE47 -> Saskatchewan | D46: =Tables!GF47 -> 7A
B47: =Tables!GD48 -> Swift Current | C47: =Tables!GE48 -> Saskatchewan | D47: =Tables!GF48 -> 7A
B48: =Tables!GD49 -> Mont Joli | C48: =Tables!GE49 -> Quebec | D48: =Tables!GF49 -> 7A
B49: =Tables!GD50 -> Charlo (Campbellton) | C49: =Tables!GE50 -> New Brunswick | D49: =Tables!GF50 -> 7A
B50: =Tables!GD51 -> Riviere-du-Loup | C50: =Tables!GE51 -> Quebec | D50: =Tables!GF51 -> 7A
B51: =Tables!GD52 -> Thunder Bay | C51: =Tables!GE52 -> Ontario | D51: =Tables!GF52 -> 7A
B52: =Tables!GD53 -> Red Deer | C52: =Tables!GE53 -> Alberta | D52: =Tables!GF53 -> 7A
B53: =Tables!GD54 -> Regina | C53: =Tables!GE54 -> Saskatchewan | D53: =Tables!GF54 -> 7A
B54: =Tables!GD55 -> Bagotville | C54: =Tables!GE55 -> Quebec | D54: =Tables!GF55 -> 7A
B55: =Tables!GD56 -> Kenora | C55: =Tables!GE56 -> Ontario | D55: =Tables!GF56 -> 7A
B56: =Tables!GD57 -> Winnipeg | C56: =Tables!GE57 -> Manitoba | D56: =Tables!GF57 -> 7A
B57: =Tables!GD58 -> Saskatoon | C57: =Tables!GE58 -> Saskatchewan | D57: =Tables!GF58 -> 7A
B58: =Tables!GD59 -> Grande Prairie | C58: =Tables!GE59 -> Alberta | D58: =Tables!GF59 -> 7B
B59: =Tables!GD60 -> Fort St. John | C59: =Tables!GE60 -> Br. Columbia | D59: =Tables!GF60 -> 7B
B60: =Tables!GD61 -> Brandon | C60: =Tables!GE61 -> Manitoba | D60: =Tables!GF61 -> 7B
B61: =Tables!GD62 -> Dauphin | C61: =Tables!GE62 -> Manitoba | D61: =Tables!GF62 -> 7B
B62: =Tables!GD63 -> Timmins | C62: =Tables!GE63 -> Ontario | D62: =Tables!GF63 -> 7B
B63: =Tables!GD64 -> Sept-Iles | C63: =Tables!GE64 -> Quebec | D63: =Tables!GF64 -> 7B
B64: =Tables!GD65 -> Val d'Or | C64: =Tables!GE65 -> Quebec | D64: =Tables!GF65 -> 7B
B65: =Tables!GD66 -> Battle Harbour (St Anthony) | C65: =Tables!GE66 -> Newfoundland | D65: =Tables!GF66 -> 7B
B66: =Tables!GD67 -> Peace River | C66: =Tables!GE67 -> Alberta | D66: =Tables!GF67 -> 7B
B67: =Tables!GD68 -> Kapuskasing | C67: =Tables!GE68 -> Ontario | D67: =Tables!GF68 -> 7B
B68: =Tables!GD69 -> Prince Albert | C68: =Tables!GE69 -> Saskatchewan | D68: =Tables!GF69 -> 7B
B69: =Tables!GD70 -> Fort McMurray | C69: =Tables!GE70 -> Alberta | D69: =Tables!GF70 -> 7B
B70: =Tables!GD71 -> Cartwright (Happy Valley - Goose Bay) | C70: =Tables!GE71 -> Newfoundland | D70: =Tables!GF71 -> 7B
B71: =Tables!GD72 -> Happy Valley - Goose Bay | C71: =Tables!GE72 -> Newfoundland | D71: =Tables!GF72 -> 7B
B72: =Tables!GD73 -> The Pas | C72: =Tables!GE73 -> Manitoba | D72: =Tables!GF73 -> 7B
B73: =Tables!GD74 -> Whitehorse | C73: =Tables!GE74 -> Yukon | D73: =Tables!GF74 -> 7B
B74: =Tables!GD75 -> Whitehorse | C74: =Tables!GE75 -> Yukon | D74: =Tables!GF75 -> 7B
B75: =Tables!GD76 -> Fort Nelson | C75: =Tables!GE76 -> Br. Columbia | D75: =Tables!GF76 -> 8
B76: =Tables!GD77 -> Big Trout Lake | C76: =Tables!GE77 -> Ontario | D76: =Tables!GF77 -> 8
B77: =Tables!GD78 -> Fort Smith | C77: =Tables!GE78 -> Northwest Terr. | D77: =Tables!GF78 -> 8
B78: =Tables!GD79 -> Thompson | C78: =Tables!GE79 -> Manitoba | D78: =Tables!GF79 -> 8
B79: =Tables!GD80 -> Uranium City | C79: =Tables!GE80 -> Saskatchewan | D79: =Tables!GF80 -> 8
B80: =Tables!GD81 -> Wabush | C80: =Tables!GE81 -> Newfoundland | D80: =Tables!GF81 -> 8
B81: =Tables!GD82 -> Nitchequon | C81: =Tables!GE82 -> Quebec | D81: =Tables!GF82 -> 8
B82: =Tables!GD83 -> Kuujjuarapik | C82: =Tables!GE83 -> Quebec | D82: =Tables!GF83 -> 8
B83: =Tables!GD84 -> Schefferville | C83: =Tables!GE84 -> Quebec | D83: =Tables!GF84 -> 8
B84: =Tables!GD85 -> Yellowknife | C84: =Tables!GE85 -> Northwest Terr. | D84: =Tables!GF85 -> 8
B85: =Tables!GD86 -> Kuujuaq | C85: =Tables!GE86 -> Quebec | D85: =Tables!GF86 -> 8
B86: =Tables!GD87 -> Norman Wells | C86: =Tables!GE87 -> Northwest Terr. | D86: =Tables!GF87 -> 8
B87: =Tables!GD88 -> Churchill | C87: =Tables!GE88 -> Manitoba | D87: =Tables!GF88 -> 8
B88: =Tables!GD89 -> Inuvik | C88: =Tables!GE89 -> Northwest Terr. | D88: =Tables!GF89 -> 8
B89: =Tables!GD90 -> Iqualuit | C89: =Tables!GE90 -> Nunavut | D89: =Tables!GF90 -> 8
B90: =Tables!GD91 -> Inuvik (NWT) | C90: =Tables!GE91 -> Yukon | D90: =Tables!GF91 -> 8
B91: =Tables!GD92 -> Chesterfield Inlet | C91: =Tables!GE92 -> Nunavut | D91: =Tables!GF92 -> 8
B92: =Tables!GD93 -> Coral Harbour | C92: =Tables!GE93 -> Nunavut | D92: =Tables!GF93 -> 8
B93: =Tables!GD94 -> Cambridge Bay | C93: =Tables!GE94 -> Nunavut | D93: =Tables!GF94 -> 8

Sheet HVAC-CVCA Report-Rapport
B2: =Tables!FS4 -> Statement of Compliance – National Energy Code of Canada for Buildings 2011 Summary Compliance Report to NECB Part 5 - HVAC
B4: =Tables!FS5 -> Project Name: | C4: =Introduction!D13 -> Test 1 | D4: =Tables!FS27 -> Date: | E4: =TODAY() -> 2019-02-20
B5: =Tables!FS6 -> Project Address: | C5: =Introduction!D15 -> 5555 street AAAA
B6: =Tables!FS7 -> Applicant Name: | C6: =Introduction!D17 -> ABC | D6: =Tables!FS9 -> Applicant Phone: | E6: =Introduction!D19 -> ####
B7: =Tables!FS8 -> Applicant Address: | C7: =Introduction!D18 -> ####
B9: =Tables!FS10 -> General information
B10: =Tables!FS11 -> Date of plans: | D10: =CONCATENATE(Tables!FS12," ",Tables!EQ4) -> Building conditioned Floor area (m2): | E10: =Introduction!D16 -> 1000
B11: =Tables!FS13 -> Climate zone: | C11: =Climate_Zone -> Zone 5 | D11: =Tables!FS15 -> Number of HVAC Systems in the Building: | E11: =NumSystems -> 1
B13: =Tables!FS19 & " - " &Tables!FS21 -> Statement of Compliance - National Energy Code for Buildings
B14: =Tables!FS20 -> This Certificate of Compliance lists the Building features as per actual building permit drawings and specifications in accordance with Part 5.3 of the National Energy Code for Buildings.
B15: =Tables!FS22 -> Documentation Author | D15: =Tables!FS27 -> Date:
B16: =Tables!FS28 -> Signature:
B17: =Tables!FS23 -> The Coordinating Professional hereby certifies that the proposed building design represented in the construction documents and modelled for this permit application are consistent with all other forms and worksheets, specifications, and other calculations submitted with this permit application. The proposed building, as designed, meets the requirements of the National Energy Code for Buildings.
B18: =Tables!FS29 -> Check One
C19: ="1. "&Tables!FS24 -> 1. I hereby affirm that I am eligible, under the provisions of the authorities having jurisdiction, to sign this document as the person responsible for its preparation; and that I am licensed as a civil engineer, mechanical engineer, electrical engineer or architect.
C20: ="2. "&Tables!FS25 -> 2. I affirm that I am eligible to sign this document as the person responsible for its preparation; and for the following reason:
B21: =Tables!FS26 -> Coordinating Professional: | D21: =D15 -> Date:
B22: =Tables!FS28 -> Signature:
B23: =Tables!FS31 -> National Energy Code of Canada for Buildings – 2011
B25: =Tables!FS30 -> Summary compliance results
B26: =Tables!FS16&" "&TEXT(SUM('HVAC-CVCA'!B6:XFD6),"0.000000") -> Overall HVAC-TOI: 0.000000
B27: =Tables!FS17&" "&COUNTIF('HVAC-CVCA'!B6:XFD6,">=0") -> Number of Compliant Systems: 1
B28: =Tables!FS18&" "&COUNTIF('HVAC-CVCA'!B6:XFD6,"<0") -> Number of non-Compliant Systems: 0
B30: ='HVAC-CVCA'!B2 -> HVAC system deemed to comply with Section 5.3

Sheet SWH-CES Report-Rapport
B2: =Tables!FV4 -> Statement of Compliance – National Energy Code of Canada for Buildings 2011 Summary Compliance Report to NECB Part 6 - SWH
B4: =Tables!FV5 -> Project Name: | C4: =Introduction!D13 -> Test 1 | D4: =Tables!FV27 -> Date: | E4: =TODAY() -> 2019-02-20
B5: =Tables!FV6 -> Project Address: | C5: =Introduction!D15 -> 5555 street AAAA
B6: =Tables!FV7 -> Applicant Name: | C6: =Introduction!D17 -> ABC | D6: =Tables!FV9 -> Applicant Phone: | E6: =Introduction!D19 -> ####
B7: =Tables!FV8 -> Applicant Address: | C7: =Introduction!D18 -> ####
B9: =Tables!FV10 -> General information
B10: =Tables!FV11 -> Date of plans: | D10: =CONCATENATE(Tables!FS12," ",Tables!EQ4) -> Building conditioned Floor area (m2): | E10: =Introduction!D16 -> 1000
B11: =Tables!FS13 -> Climate zone: | C11: =Climate_Zone -> Zone 5 | D11: =Tables!FV15 -> Number of SWH Systems in the Building: | E11: =Tables!F1 -> 1
B13: =Tables!FV19 & " - " &Tables!FV21 -> Statement of Compliance - National Energy Code for Buildings
B14: =Tables!FV20 -> This Certificate of Compliance lists the Building features as per actual building permit drawings and specifications in accordance with Part 6.3 of the National Energy Code for Buildings.
B15: =Tables!FV22 -> Documentation Author | D15: =Tables!FV27 -> Date:
B16: =Tables!FV28 -> Signature:
B17: =Tables!FV23 -> The Coordinating Professional hereby certifies that the proposed building design represented in the construction documents and modelled for this permit application are consistent with all other forms and worksheets, specifications, and other calculations submitted with this permit application. The proposed building, as designed, meets the requirements of the National Energy Code for Buildings.
B18: =Tables!FV29 -> Check One
C19: ="1. "&Tables!FV24 -> 1. I hereby affirm that I am eligible, under the provisions of the authorities having jurisdiction, to sign this document as the person responsible for its preparation; and that I am licensed as a civil engineer, mechanical engineer, electrical engineer or architect.
C20: ="2. "&Tables!FV25 -> 2. I affirm that I am eligible to sign this document as the person responsible for its preparation; and for the following reason:
B21: =Tables!FV26 -> Coordinating Professional: | D21: =D15 -> Date:
B22: =Tables!FV28 -> Signature:
B23: =Tables!FS31 -> National Energy Code of Canada for Buildings – 2011
B25: =Tables!FV30 -> Summary compliance results
B26: =IF('SWH-CES'!A4=0,Tables!FV16&" "&TEXT(SUM('SWH-CES'!B6:XFD6),"0.00"),Tables!B83) -> Overall SWH-TOI: 0.00
B27: =Tables!FV17&" "&COUNTIF('SWH-CES'!B6:XFD6,">=0") -> Number of Compliant Systems: 1
B28: =Tables!FV18&" "&COUNTIF('SWH-CES'!B6:XFD6,"<0") -> Number of non-Compliant Systems: 0
B30: ='SWH-CES'!B2 -> The SWH system is deemed to comply with Section 6.3

Sheet Help-Aide
C1: =Tables!EX3 -> HVAC Help Table
C2: =LEFT(Tables!DZ4,LEN(Tables!DZ4)-1) -> System Type | D2: =Tables!EX36 -> Choose from the list of 27 HVAC System Types ID available in the drop down list and as provided in Table 5.3.1.1 of the NECB. The components that are applicable to the system will then be visible. In all instances where a visible component is NOT part of the system being evaluated, its value must be defined as identical to that of the Reference value for a compliance calculation.
C3: =LEFT(Tables!DZ5,LEN(Tables!DZ5)-1) -> Cooling System Type | D3: =Tables!EX37 -> Choose the type of cooling equipment associated with this HVAC system as defined in Table 5.2.12.1 of the NECB.
C4: =LEFT(Tables!DZ6,LEN(Tables!DZ6)-1) -> Cooling Sub-System Type | D4: =Tables!EX38 -> Choose the precise category associated with the cooling equipment system type, as defined in Table 5.2.12.1 of the NECB.
C5: =LEFT(Tables!DZ7,LEN(Tables!DZ7)-1) -> Cooling capacity | D5: =Tables!EX39 -> This value only serves in defining the Reference value performance for certain type of cooling equipment, as defined in Table 5.2.12.1 of the NECB.
C6: =LEFT(Tables!DZ8,LEN(Tables!DZ8)-1) -> Heating System Type | D6: =Tables!EX40 -> Choose the type of heating equipment associated with this HVAC system as defined in Table 5.2.12.1 of the NECB. For all resistance electric heating cases, the user must select "Electric boilers". However, in this case, all of the components relating to the hot water distribution system must be defined using the Reference values.
C7: =Tables!AI4 -> Supply fan mechanical efficiency | D7: =Tables!EX4 -> Enter the supply fan design mechanical efficiency.
C8: =Tables!AI5 -> Supply motor efficiency | D8: =Tables!EX5 -> Enter the supply fan motor design efficiency.
C9: =Tables!AI6 -> Return fan mechanical efficiency | D9: =Tables!EX6 -> Enter the return fan design mechanical efficiency.
C10: =Tables!AI7 -> Return fan motor efficiency | D10: =Tables!EX7 -> Enter the return fan motor design efficiency.
C11: =Tables!AI8 -> Supply temperature control | D11: =Tables!EX8 -> Choose from the drop down list the type of supply temperature control applicable to this HVAC system.
C12: =Tables!AI9 -> Airflow control efficiency | D12: =Tables!EX9 -> Choose from the drop down list the type of supply airflow control applicable to this HVAC system.
C13: =Tables!AI10 -> Supply fan total static pressure | D13: =Tables!EX10 -> Enter the supply fan design total static pressure. It is important not to enter the external static pressure value, sometimes indicated on the equipment specifications.
C14: =Tables!AI11 -> Supply duct insulation | D14: =Tables!EX11 -> Enter the average insulation value for the supply ducts served by this HVAC system.
C15: =Tables!AI12 -> Return fan total static pressure | D15: =Tables!EX12 -> Enter the return fan design total static pressure. It is important not to enter the external static pressure value, sometimes indicated on the equipment specifications.
C16: =Tables!AI13 -> Heating coil design temperature drop | D16: =Tables!EX13 -> Enter the design temperature differential for the HVAC system heating coil. If multiple coils are present, use the capacity-weighted average value.
C17: =Tables!AI14 -> Baseboard heater design temperature drop | D17: =Tables!EX14 -> Enter the design temperature differential for the baseboard heaters.
C18: =Tables!AI15 -> Boiler/furnace/heat pump heating efficiency | D18: =Tables!EX15 -> Enter the heating equipment efficiency. For heat pumps, the COP must be expressed as fractions, such as 0.83 for 83% efficiency. For smaller equipment where only the AFUE is available, enter this value directly. If more than one piece of equipment is serving the system, enter the capacity-weighted average efficiency. If multiple energy sources are used, the fuel source of equipment providing the majority of the heating load must be selected.
C19: =Tables!AI16 -> Chillers/direct expansion system/heat pump cooling efficiency | D19: =Tables!EX16 -> Enter the cooling equipment efficiency. All efficiencies have to be entered in terms of COP. If more than one piece of equipment is serving the system, enter the capacity-weighted average efficiency.
C20: =Tables!AI17 -> Rejection fan input power ratio | D20: =Tables!EX17 -> Enter the heat rejection equipment unitary fan power. This value represents the ratio of the total installed fan power of the equipment divided by its heat rejection capacity, expressed in the same unit.
C21: =Tables!AI18 -> Cooling by direct use of outdoor air (air economizer) | D21: =Tables!EX18 -> Select the type of air-side economizer used in this HVAC system.
C22: =Tables!AI19 -> Outdoor airflow control | D22: =Tables!EX19 -> Select the type of outdoor air control used for this HVAC system (DCV = Demand control ventilation).
C23: =Tables!AI20 -> Exhaust air heat-recovery efficiency | D23: =Tables!EX20 -> Enter the design heat recovery effectiveness.
C24: =Tables!AI21 -> Cooling by indirect use of outdoor air (water economizer) | D24: =Tables!EX21 -> Enter the design water-side cooling coil heat exchange effectiveness.
C25: =Tables!AI22 -> Piping insulation - hot water | D25: =Tables!EX22 -> Enter the average piping insulation value.
C26: =Tables!AI23 -> Piping insulation - chilled water | D26: =Tables!EX23 -> Enter the average piping insulation value.
C27: =Tables!AI24 -> Piping pressure losses - hot water | D27: =Tables!EX24 -> Enter the total hydronic heating system pressure losses. In the case of multiple loops associated with a single HVAC system, enter the equivalent head calculated using the flow and head of each loop and expressed as an equivalent head for the loop having the largest flow rate.
C28: =Tables!AI25 -> Piping pressure losses - chilled water | D28: =Tables!EX25 -> Enter the total hydronic cooling system pressure losses. In the case of multiple loops associated with a single HVAC system, enter the equivalent head calculated using the flow and head of each loop and expressed as an equivalent head for the loop having the largest flow rate.
C29: =Tables!AI26 -> Pump mechanical efficiency - hot water | D29: =Tables!EX26 -> Enter the pump motor efficiency. When multiple pumps serve the system, use the power-weighted average pump efficiency.
C30: =Tables!AI27 -> Pump mechanical efficiency - chilled water | D30: =Tables!EX27 -> Enter the pump motor efficiency. When multiple pumps serve the system, use the power-weighted average pump efficiency.
C31: =Tables!AI28 -> Pump motor efficiency - hot water | D31: =Tables!EX28 -> Enter the design efficiency of the pump motor. When multiple pumps serve the system, use the power-weighted average motor efficiency.
C32: =Tables!AI29 -> Pump motor efficiency - chilled water | D32: =Tables!EX29 -> Enter the design efficiency of the pump motor. When multiple pumps serve the system, use the power-weighted average motor efficiency.
C33: =Tables!AI30 -> Hot water pump control | D33: =Tables!EX30 -> Select the hot water pump control logic applicable to this system.
C34: =Tables!AI31 -> Chilled water pump control | D34: =Tables!EX31 -> Select the chilled water pump control logic applicable to this system.
C35: =Tables!AI32 -> Hot water loop temperature control | D35: =Tables!EX32 -> Select the hot water temperature control logic applicable to this system.
C36: =Tables!AI33 -> Chilled water loop temperature control | D36: =Tables!EX33 -> Select the chilled water temperature control logic applicable to this system.
C37: =Tables!AI34 -> Hot water flow control | D37: =Tables!EX34 -> Select the hot water pump flow control applicable to this system. In the case where multiple pumps used different controls, select the type that controls the majority of the pump installed power.
C38: =Tables!AI35 -> Chilled water flow control | D38: =Tables!EX35 -> Select the chilled water pump flow control applicable to this system. In the case where multiple pumps used different controls, select the type that controls the majority of the pump installed power.
C41: =Tables!FJ3 -> SWH Help Table
C42: =LEFT(Tables!FG4,LEN(Tables!FG4)-1) -> System Type | D42: =Tables!FJ4 -> Select the system type that most closely matches the one being evaluated.
C43: =LEFT(Tables!FG5,LEN(Tables!FG5)-1) -> Equipment Type | D43: =Tables!FJ5 -> Select the type of equipment used in producing the service hot water.
C44: =LEFT(Tables!FG6,LEN(Tables!FG6)-1) -> Tank Volume | D44: =Tables!FJ6 -> Total volume of all storage tanks included in this system. Value must be equal or greater than 0.
C45: =Tables!EL4 -> Service water heating equipment efficiency | D45: =Tables!FJ7 -> Enter the efficiency of the equipment used in producing the service hot water. For heat pumps, enter the COP in terms of %. For Efficiency Factors (EF), enter directly that value except for electric hot water tanks where an efficiency of 100% is to be used. If more than one equipment of the same type serves a system, enter the capacity-weighted average efficiency. Value must be greater than 0.
C46: =Tables!EL5 -> Tank insulation value | D46: =Tables!FJ8 -> Define the tank's insulating value. For systems with multiple tanks, enter the surface-weighted average insulating value. Value must be between R 0.1 and 40 (RSI 0.5678-7.04).
C47: =Tables!EL6 -> Piping insulation value | D47: =Tables!FJ9 -> Define the average piping insulation value for this service water heating system. Value must be between R 0.1 and 40 (RSI 0.5678-7.04).
C48: =Tables!EL7 -> Pump motor efficiency | D48: =Tables!FJ10 -> Enter the efficiency of all pump motors used on this service water heating system. When multiple pumps are present, define the capacity-weighted average efficiency for all the pump motors. Value must be between 30% and 99%.
C49: =Tables!EL8 -> Pump efficiency | D49: =Tables!FJ11 -> Enter the efficiency of all pumps ("pump efficiency" in this case refers to "pump mechanical efficiency") used on this service water heating system. When multiple pumps are present, define the capacity-weighted average efficiency for all the pumps. Value must be between 30% and 75%.
C50: =Tables!EL9 -> Heat recovery ratio | D50: =Tables!FJ12 -> The installed recovery capacity divided by the total installed capacity of the SWH system, from the design specifications. If the heat recovery is limited to grey-water waste heat recovery then the installed recovery capacity is = Q * (Tin - Tout) * 4.182, where Q: flow rate (L/s), Tin: inlet temperature (warm) of the waste heat fluid (°C), Tout: outlet temperature (cold) of the waste heat fluid (°C). Value must be between 0 and 1. The conversion rate from litre per second to USGPM is 15.85
C51: =Tables!EL10 -> Average flow of all faucets | D51: =Tables!FJ13 -> Enter the average flow rate of all faucets served by the service water heating system. Value must be greater than 0.1 and smaller than 4 gpm (0.006309 and 15.14 L/min).
C52: =Tables!EL11 -> Average flow of all showers | D52: =Tables!FJ14 -> Enter the average flow rate of all shower heads served by the service water heating system. Value must be greater than 0.1 and smaller than 4 gpm (0.006309 and 15.14 L/min).
C53: =Tables!EL12 -> Faucet flow ratio | D53: =Tables!FJ15 -> Define the typical weekly fraction of the hot water volume used by faucets through this service water heating system. Refer to standard calculation methods such as those presented in ASHRAE to evaluate this %. This value must be between 0% and 100%.
C54: =Tables!EL13 -> Shower flow ratio | D54: =Tables!FJ16 -> Define the typical weekly fraction of the hot water volume used by showers through this service water heating system. Refer to standard calculation methods such as those presented in ASHRAE to evaluate this %. This value must be between 0% and 100%.
C55: =Tables!EL14 -> Average flow of other uses | D55: =Tables!FJ17 -> Enter the average flow rates of all other appliances using hot water in this system. A default value of 7.6 L/min (2 gpm) can be used if other design data is unavailable. This value must be greater between 0 and 378.5 L/min and (100 gpm).

Sheet Glossary-Glossaire
C1: =IF(Select_Lang="English",Tables!GJ13,Tables!GL13) -> Glossary
C2: =IF(Select_Lang="English",IF(Tables!GJ16="","",Tables!GJ16),Tables!GL16) -> OA | D2: =IF(Select_Lang="English",IF(Tables!GK16="","",Tables!GK16),Tables!GM16) -> Outdoor Air
C3: =IF(Select_Lang="English",IF(Tables!GJ17="","",Tables!GJ17),Tables!GL17) -> SPVAC | D3: =IF(Select_Lang="English",IF(Tables!GK17="","",Tables!GK17),Tables!GM17) -> Single Package Vertical Air Conditioner
C4: =IF(Select_Lang="English",IF(Tables!GJ18="","",Tables!GJ18),Tables!GL18) -> SPVHP | D4: =IF(Select_Lang="English",IF(Tables!GK18="","",Tables!GK18),Tables!GM18) -> Single Package Vertical Heat Pump
C5: =IF(Select_Lang="English",IF(Tables!GJ19="","",Tables!GJ19),Tables!GL19) -> PTHP | D5: =IF(Select_Lang="English",IF(Tables!GK19="","",Tables!GK19),Tables!GM19) -> Packaged Terminal Heat Pump
C6: =IF(Select_Lang="English",IF(Tables!GJ20="","",Tables!GJ20),Tables!GL20) -> PTAC | D6: =IF(Select_Lang="English",IF(Tables!GK20="","",Tables!GK20),Tables!GM20) -> Packaged Terminal Air Conditioner
C7: =IF(Select_Lang="English",IF(Tables!GJ21="","",Tables!GJ21),Tables!GL21) -> VSD | D7: =IF(Select_Lang="English",IF(Tables!GK21="","",Tables!GK21),Tables!GM21) -> Variable Speed Drive
C8: =IF(Select_Lang="English",IF(Tables!GJ22="","",Tables!GJ22),Tables!GL22) -> DCV | D8: =IF(Select_Lang="English",IF(Tables!GK22="","",Tables!GK22),Tables!GM22) -> Demand Control Ventilation
C9: =IF(Select_Lang="English",IF(Tables!GJ23="","",Tables!GJ23),Tables!GL23) -> DBT | D9: =IF(Select_Lang="English",IF(Tables!GK23="","",Tables!GK23),Tables!GM23) -> Dry Bulb Temperature
C10: =IF(Select_Lang="English",IF(Tables!GJ24="","",Tables!GJ24),Tables!GL24) -> VAV | D10: =IF(Select_Lang="English",IF(Tables!GK24="","",Tables!GK24),Tables!GM24) -> Variable Air Volume
C11: =IF(Select_Lang="English",IF(Tables!GJ25="","",Tables!GJ25),Tables!GL25) ->  | D11: =IF(Select_Lang="English",IF(Tables!GK25="","",Tables!GK25),Tables!GM25) -> 
C12: =IF(Select_Lang="English",IF(Tables!GJ26="","",Tables!GJ26),Tables!GL26) ->  | D12: =IF(Select_Lang="English",IF(Tables!GK26="","",Tables!GK26),Tables!GM26) -> 
C13: =IF(Select_Lang="English",IF(Tables!GJ27="","",Tables!GJ27),Tables!GL27) ->  | D13: =IF(Select_Lang="English",IF(Tables!GK27="","",Tables!GK27),Tables!GM27) -> 
C14: =IF(Select_Lang="English",IF(Tables!GJ28="","",Tables!GJ28),Tables!GL28) ->  | D14: =IF(Select_Lang="English",IF(Tables!GK28="","",Tables!GK28),Tables!GM28) -> 
